{"text_format":"1","workbook":"xlsx","n_sheets":8,"sheets":["Basic Settings","Additional Settings","Consent","websurvey","Thank you","Finish","survey blank","question templates"],"not_rendered":{"charts":0,"images":0,"macros":1,"external_links":0,"defined_names":33,"comments":0,"pivot_tables":0},"unopened":[],"bounds":{"document_bytes":16777216,"sheet_cells":100000,"rows_first":2000,"rows_last":500,"rows_between":2000,"halvings":0,"cell_chars":16384,"cell_head_chars":4096},"cells_cut":0,"cells_raw":0,"read":"whole","date_system":"1900"}

{"sheet":"Basic Settings","index":0,"n_rows":42,"n_cols":5,"rows_kept":42,"cut":false,"hidden":false,"merged":[[15,0,15,2],[4,0,4,2],[8,0,8,2],[6,0,6,2],[7,0,7,2],[55,0,55,2],[18,0,18,2],[41,0,41,2],[24,0,24,2],[26,0,26,2],[30,0,30,2],[31,0,31,2]]}
["Online Survey Generator"]
["by Brian Pfohl (bpfohl@bates.edu)"]
["version 2.7, September 2013"]
[]
["This spreadsheet will allow you to create surveys to be used online at Bates.  You must have macros enabled to use this spreadsheet. If you wish to test whether the macros are correctly enabled, click the Macro Test button. If you do not get a Success message, your macros are NOT correctly enabled."]
[]
["There are several steps necessary to getting your survey working online.  Using this spreadsheet will only complete the first several steps (Steps 2 - 9).  Please refer to the following website for instructions on how to finish getting your survey online:"]
["http://abacus.bates.edu/~bpfohl/websurveys"]
["The above website also includes instructions for using this spreadsheet."]
["Required Information"]
["Bates user name:","bstudent"]
["Survey Name:","websurvey","(No spaces allowed. Only alphanumeric characters)","websurvey"]
["Web page title:","My Web Survey","(Spaces allowed)",true,"check change"]
[]
["Elapsed Time Option"]
["Check this box to record in your data the time elapsed for each participant from when they launch a question page on their browser until they click the button at the bottom of that page. The participant will not be able to see the result nor the fact that time is being tracked.",null,null,false]
[]
["Random Assignment"]
["You may choose to configure multiple surveys.  Your participants will be randomly assigned to one of the surveys after viewing the consent page. "]
[]
[null,null,null,false]
["If you enable random assignment, you must configure it on the Additional Settings tab."]
[]
["Participation credit"]
["If you are designing this scenario as an element of your thesis research, you may be eligible to offer your survey-takers participation credit.  Participation credit is worth extra credit points to students in some psychology classes, like Psyc 101, so it provides an incentive for people to take your survey. However, your research may not be eligible for participation credit. You must apply and be approved for a psychology department experiment number to generate this survey. Please see the following website for more information and for an experiment number application form."]
[]
["http://www.bates.edu/psychology/resources-for-students/recruiting-participants-for-your-research/"]
[]
[null,null,null,false]
[]
["By checking this box, you will create a link to a google docs form after your regular survey.  This follow-up will ask for the participant's email address, as well as the instructor of the course that they would like to receive credit for. The information will be stored completely separately from your survey results. "]
["If you choose the participation credit option, please enter the codeword that you have been assigned.  After you apply for an experiment number, you will be assigned an experiment number and a codeword."]
["Codeword:"]
[]
[]
[]
[]
[]
[]
["Please enter your assigned experiment number:",null,"You must enter the number that you receive from the department for your registered experiment."]
[]
[{"$f":"\"For a basic web survey, you must configure three pages: Consent, \" & B12 & \", and Thank you. Choose the appropriate tab at the bottom of this spreadsheet to configure each page.  Refer to the Finish tab when you are done.\"","v":"For a basic web survey, you must configure three pages: Consent, websurvey, and Thank you. Choose the appropriate tab at the bottom of this spreadsheet to configure each page.  Refer to the Finish tab when you are done."}]

{"sheet":"Additional Settings","index":1,"n_rows":4876,"n_cols":6,"rows_kept":4876,"cut":false,"hidden":true,"merged":[[10,0,10,2],[3,0,3,2],[7,0,7,2],[5,0,5,2],[9,0,9,2]]}
["Additional Settings"]
[]
["Random Assignment Configuration"]
["If the Enable Random Assignment checkbox on the \"Basic Settings\" tab is checked when the HTML files are generated, the consent page will not simply take the user to the questionnaire page, but will randomly assign the user to one of a number of questionnaire pages.  Each condition has an equally likely chance of being assigned."]
[]
["There are two ways to create additional questionnaires: Create a blank questionnaire or duplicate an existing questionnaire.  The Add New Condition… button below will open a new window giving you both options."]
[]
["The most common type of random assignment is one where each condition is similar with only a few changes.  The easiest way to create a set of questionnaires like this is to completely create the questionnaire for the first condition, then duplicate that questionnaire as many times as necessary.  Then edit the newly created questionnaires to allow for differences between the conditions."]
[]
["Here are the current questionnaires that will be used for random assignment.  The order is not important, since each has an equal likelihood of being chosen. The first one is the survey name that you specified on the Basic Setting tab and it cannot be deleted."]
[]
[]
[]
[]
[null,"Condition Number","Questionnaire Name"]
[null,1,{"$f":"'Basic Settings'!B12","v":"websurvey"},null,null,{"$f":"CONCATENATE(B16,\" - \",C16)","v":"1 - websurvey"}]
[null,null,null,null,null,{"$f":"CONCATENATE(B17,\" - \",C17)","v":" - "}]
[null,null,null,null,null," - "]
[null,null,null,null,null," - "]
[null,null,null,null,null," - "]
[null,null,null,null,null," - "]
[null,null,null,null,null," - "]
[null,null,null,null,null," - "]
[null,null,null,null,null," - "]
[null,null,null,null,null," - "]
[null,null,null,null,null," - "]
[null,null,null,null,null," - "]
[null,null,null,null,null," - "]
[null,null,null,null,null," - "]
[null,null,null,null,null," - "]
[null,null,null,null,null," - "]
[null,null,null,null,null," - "]
[null,null,null,null,null," - "]
[null,null,null,null,null," - "]
[null,null,null,null,null," - "]
[null,null,null,null,null," - "]
[null,null,null,null,null," - "]
[null,null,null,null,null," - "]
[null,null,null,null,null," - "]
[null,null,null,null,null," - "]
[null,null,null,null,null," - "]
[null,null,null,null,null," - "]
[null,null,null,null,null," - "]
[null,null,null,null,null," - "]
[null,null,null,null,null," - "]
[null,null,null,null,null," - "]
[null,null,null,null,null," - "]
[null,null,null,null,null," - "]
[null,null,null,null,null," - "]
[null,null,null,null,null," - "]
[null,null,null,null,null," - "]
[null,null,null,null,null," - "]
[null,null,null,null,null," - "]
[null,null,null,null,null," - "]
[null,null,null,null,null,{"$f":"CONCATENATE(B55,\" - \",C55)","v":" - "}]
[null,null,null,null,null," - "]
[null,null,null,null,null," - "]
[null,null,null,null,null," - "]
[null,null,null,null,null," - "]
[null,null,null,null,null," - "]
[null,null,null,null,null," - "]
[null,null,null,null,null," - "]
[null,null,null,null,null," - "]
[null,null,null,null,null," - "]
[null,null,null,null,null," - "]
[null,null,null,null,null," - "]
[null,null,null,null,null," - "]
[null,null,null,null,null," - "]
[null,null,null,null,null," - "]
[null,null,null,null,null," - "]
[null,null,null,null,null," - "]
[null,null,null,null,null," - "]
[null,null,null,null,null," - "]
[null,null,null,null,null," - "]
[null,null,null,null,null," - "]
[null,null,null,null,null," - "]
[null,null,null,null,null," - "]
[null,null,null,null,null," - "]
[null,null,null,null,null," - "]
[null,null,null,null,null," - "]
[null,null,null,null,null," - "]
[null,null,null,null,null," - "]
[null,null,null,null,null," - "]
[null,null,null,null,null," - "]
[null,null,null,null,null," - "]
[null,null,null,null,null," - "]
[null,null,null,null,null," - "]
[null,null,null,null,null," - "]
[null,null,null,null,null," - "]
[null,null,null,null,null," - "]
[null,null,null,null,null," - "]
[null,null,null,null,null," - "]
[null,null,null,null,null," - "]
[null,null,null,null,null," - "]
[null,null,null,null,null," - "]
[null,null,null,null,null," - "]
[null,null,null,null,null," - "]
[null,null,null,null,null," - "]
[null,null,null,null,null," - "]
[null,null,null,null,null," - "]
[null,null,null,null,null," - "]
[null,null,null,null,null," - "]
[null,null,null,null,null," - "]
[null,null,null,null,null," - "]
[null,null,null,null,null," - "]
[null,null,null,null,null," - "]
[null,null,null,null,null," - "]
[null,null,null,null,null," - "]
[null,null,null,null,null," - "]
[null,null,null,null,null," - "]
[null,null,null,null,null," - "]
[null,null,null,null,null," - "]
[null,null,null,null,null," - "]
[null,null,null,null,null," - "]
[null,null,null,null,null," - "]
[null,null,null,null,null," - "]
[null,null,null,null,null," - "]
[null,null,null,null,null," - "]
[null,null,null,null,null,{"$f":"CONCATENATE(B119,\" - \",C119)","v":" - "}]
[null,null,null,null,null," - "]
[null,null,null,null,null," - "]
[null,null,null,null,null," - "]
[null,null,null,null,null," - "]
[null,null,null,null,null," - "]
[null,null,null,null,null," - "]
[null,null,null,null,null," - "]
[null,null,null,null,null," - "]
[null,null,null,null,null," - "]
[null,null,null,null,null," - "]
[null,null,null,null,null," - "]
[null,null,null,null,null," - "]
[null,null,null,null,null," - "]
[null,null,null,null,null," - "]
[null,null,null,null,null," - "]
[null,null,null,null,null," - "]
[null,null,null,null,null," - "]
[null,null,null,null,null," - "]
[null,null,null,null,null," - "]
[null,null,null,null,null," - "]
[null,null,null,null,null," - "]
[null,null,null,null,null," - "]
[null,null,null,null,null," - "]
[null,null,null,null,null," - "]
[null,null,null,null,null," - "]
[null,null,null,null,null," - "]
[null,null,null,null,null," - "]
[null,null,null,null,null," - "]
[null,null,null,null,null," - "]
[null,null,null,null,null," - "]
[null,null,null,null,null," - "]
[null,null,null,null,null," - "]
[null,null,null,null,null," - "]
[null,null,null,null,null," - "]
[null,null,null,null,null," - "]
[null,null,null,null,null," - "]
[null,null,null,null,null," - "]
[null,null,null,null,null," - "]
[null,null,null,null,null," - "]
[null,null,null,null,null," - "]
[null,null,null,null,null," - "]
[null,null,null,null,null," - "]
[null,null,null,null,null," - "]
[null,null,null,null,null," - "]
[null,null,null,null,null," - "]
[null,null,null,null,null," - "]
[null,null,null,null,null," - "]
[null,null,null,null,null," - "]
[null,null,null,null,null," - "]
[null,null,null,null,null," - "]
[null,null,null,null,null," - "]
[null,null,null,null,null," - "]
[null,null,null,null,null," - "]
[null,null,null,null,null," - "]
[null,null,null,null,null," - "]
[null,null,null,null,null," - "]
[null,null,null,null,null," - "]
[null,null,null,null,null," - "]
[null,null,null,null,null," - "]
[null,null,null,null,null," - "]
[null,null,null,null,null," - "]
[null,null,null,null,null," - "]
[null,null,null,null,null," - "]
[null,null,null,null,null,{"$f":"CONCATENATE(B183,\" - \",C183)","v":" - "}]
[null,null,null,null,null," - "]
[null,null,null,null,null," - "]
[null,null,null,null,null," - "]
[null,null,null,null,null," - "]
[null,null,null,null,null," - "]
[null,null,null,null,null," - "]
[null,null,null,null,null," - "]
[null,null,null,null,null," - "]
[null,null,null,null,null," - "]
[null,null,null,null,null," - "]
[null,null,null,null,null," - "]
[null,null,null,null,null," - "]
[null,null,null,null,null," - "]
[null,null,null,null,null," - "]
[null,null,null,null,null," - "]
[null,null,null,null,null," - "]
[null,null,null,null,null," - "]
[null,null,null,null,null," - "]
[null,null,null,null,null," - "]
[null,null,null,null,null," - "]
[null,null,null,null,null," - "]
[null,null,null,null,null," - "]
[null,null,null,null,null," - "]
[null,null,null,null,null," - "]
[null,null,null,null,null," - "]
[null,null,null,null,null," - "]
[null,null,null,null,null," - "]
[null,null,null,null,null," - "]
[null,null,null,null,null," - "]
[null,null,null,null,null," - "]
[null,null,null,null,null," - "]
[null,null,null,null,null," - "]
[null,null,null,null,null," - "]
[null,null,null,null,null," - "]
[null,null,null,null,null," - "]
[null,null,null,null,null," - "]
[null,null,null,null,null," - "]
[null,null,null,null,null," - "]
[null,null,null,null,null," - "]
[null,null,null,null,null," - "]
[null,null,null,null,null," - "]
[null,null,null,null,null," - "]
[null,null,null,null,null," - "]
[null,null,null,null,null," - "]
[null,null,null,null,null," - "]
[null,null,null,null,null," - "]
[null,null,null,null,null," - "]
[null,null,null,null,null," - "]
[null,null,null,null,null," - "]
[null,null,null,null,null," - "]
[null,null,null,null,null," - "]
[null,null,null,null,null," - "]
[null,null,null,null,null," - "]
[null,null,null,null,null," - "]
[null,null,null,null,null," - "]
[null,null,null,null,null," - "]
[null,null,null,null,null," - "]
[null,null,null,null,null," - "]
[null,null,null,null,null," - "]
[null,null,null,null,null," - "]
[null,null,null,null,null," - "]
[null,null,null,null,null," - "]
[null,null,null,null,null," - "]
[null,null,null,null,null,{"$f":"CONCATENATE(B247,\" - \",C247)","v":" - "}]
[null,null,null,null,null," - "]
[null,null,null,null,null," - "]
[null,null,null,null,null," - "]
[null,null,null,null,null," - "]
[null,null,null,null,null," - "]
[null,null,null,null,null," - "]
[null,null,null,null,null," - "]
[null,null,null,null,null," - "]
[null,null,null,null,null," - "]
[null,null,null,null,null," - "]
[null,null,null,null,null," - "]
[null,null,null,null,null," - "]
[null,null,null,null,null," - "]
[null,null,null,null,null," - "]
[null,null,null,null,null," - "]
[null,null,null,null,null," - "]
[null,null,null,null,null," - "]
[null,null,null,null,null," - "]
[null,null,null,null,null," - "]
[null,null,null,null,null," - "]
[null,null,null,null,null," - "]
[null,null,null,null,null," - "]
[null,null,null,null,null," - "]
[null,null,null,null,null," - "]
[null,null,null,null,null," - "]
[null,null,null,null,null," - "]
[null,null,null,null,null," - "]
[null,null,null,null,null," - "]
[null,null,null,null,null," - "]
[null,null,null,null,null," - "]
[null,null,null,null,null," - "]
[null,null,null,null,null," - "]
[null,null,null,null,null," - "]
[null,null,null,null,null," - "]
[null,null,null,null,null," - "]
[null,null,null,null,null," - "]
[null,null,null,null,null," - "]
[null,null,null,null,null," - "]
[null,null,null,null,null," - "]
[null,null,null,null,null," - "]
[null,null,null,null,null," - "]
[null,null,null,null,null," - "]
[null,null,null,null,null," - "]
[null,null,null,null,null," - "]
[null,null,null,null,null," - "]
[null,null,null,null,null," - "]
[null,null,null,null,null," - "]
[null,null,null,null,null," - "]
[null,null,null,null,null," - "]
[null,null,null,null,null," - "]
[null,null,null,null,null," - "]
[null,null,null,null,null," - "]
[null,null,null,null,null," - "]
[null,null,null,null,null," - "]
[null,null,null,null,null," - "]
[null,null,null,null,null," - "]
[null,null,null,null,null," - "]
[null,null,null,null,null," - "]
[null,null,null,null,null," - "]
[null,null,null,null,null," - "]
[null,null,null,null,null," - "]
[null,null,null,null,null," - "]
[null,null,null,null,null," - "]
[null,null,null,null,null,{"$f":"CONCATENATE(B311,\" - \",C311)","v":" - "}]
[null,null,null,null,null," - "]
[null,null,null,null,null," - "]
[null,null,null,null,null," - "]
[null,null,null,null,null," - "]
[null,null,null,null,null," - "]
[null,null,null,null,null," - "]
[null,null,null,null,null," - "]
[null,null,null,null,null," - "]
[null,null,null,null,null," - "]
[null,null,null,null,null," - "]
[null,null,null,null,null," - "]
[null,null,null,null,null," - "]
[null,null,null,null,null," - "]
[null,null,null,null,null," - "]
[null,null,null,null,null," - "]
[null,null,null,null,null," - "]
[null,null,null,null,null," - "]
[null,null,null,null,null," - "]
[null,null,null,null,null," - "]
[null,null,null,null,null," - "]
[null,null,null,null,null," - "]
[null,null,null,null,null," - "]
[null,null,null,null,null," - "]
[null,null,null,null,null," - "]
[null,null,null,null,null," - "]
[null,null,null,null,null," - "]
[null,null,null,null,null," - "]
[null,null,null,null,null," - "]
[null,null,null,null,null," - "]
[null,null,null,null,null," - "]
[null,null,null,null,null," - "]
[null,null,null,null,null," - "]
[null,null,null,null,null," - "]
[null,null,null,null,null," - "]
[null,null,null,null,null," - "]
[null,null,null,null,null," - "]
[null,null,null,null,null," - "]
[null,null,null,null,null," - "]
[null,null,null,null,null," - "]
[null,null,null,null,null," - "]
[null,null,null,null,null," - "]
[null,null,null,null,null," - "]
[null,null,null,null,null," - "]
[null,null,null,null,null," - "]
[null,null,null,null,null," - "]
[null,null,null,null,null," - "]
[null,null,null,null,null," - "]
[null,null,null,null,null," - "]
[null,null,null,null,null," - "]
[null,null,null,null,null," - "]
[null,null,null,null,null," - "]
[null,null,null,null,null," - "]
[null,null,null,null,null," - "]
[null,null,null,null,null," - "]
[null,null,null,null,null," - "]
[null,null,null,null,null," - "]
[null,null,null,null,null," - "]
[null,null,null,null,null," - "]
[null,null,null,null,null," - "]
[null,null,null,null,null," - "]
[null,null,null,null,null," - "]
[null,null,null,null,null," - "]
[null,null,null,null,null," - "]
[null,null,null,null,null,{"$f":"CONCATENATE(B375,\" - \",C375)","v":" - "}]
[null,null,null,null,null," - "]
[null,null,null,null,null," - "]
[null,null,null,null,null," - "]
[null,null,null,null,null," - "]
[null,null,null,null,null," - "]
[null,null,null,null,null," - "]
[null,null,null,null,null," - "]
[null,null,null,null,null," - "]
[null,null,null,null,null," - "]
[null,null,null,null,null," - "]
[null,null,null,null,null," - "]
[null,null,null,null,null," - "]
[null,null,null,null,null," - "]
[null,null,null,null,null," - "]
[null,null,null,null,null," - "]
[null,null,null,null,null," - "]
[null,null,null,null,null," - "]
[null,null,null,null,null," - "]
[null,null,null,null,null," - "]
[null,null,null,null,null," - "]
[null,null,null,null,null," - "]
[null,null,null,null,null," - "]
[null,null,null,null,null," - "]
[null,null,null,null,null," - "]
[null,null,null,null,null," - "]
[null,null,null,null,null," - "]
[null,null,null,null,null," - "]
[null,null,null,null,null," - "]
[null,null,null,null,null," - "]
[null,null,null,null,null," - "]
[null,null,null,null,null," - "]
[null,null,null,null,null," - "]
[null,null,null,null,null," - "]
[null,null,null,null,null," - "]
[null,null,null,null,null," - "]
[null,null,null,null,null," - "]
[null,null,null,null,null," - "]
[null,null,null,null,null," - "]
[null,null,null,null,null," - "]
[null,null,null,null,null," - "]
[null,null,null,null,null," - "]
[null,null,null,null,null," - "]
[null,null,null,null,null," - "]
[null,null,null,null,null," - "]
[null,null,null,null,null," - "]
[null,null,null,null,null," - "]
[null,null,null,null,null," - "]
[null,null,null,null,null," - "]
[null,null,null,null,null," - "]
[null,null,null,null,null," - "]
[null,null,null,null,null," - "]
[null,null,null,null,null," - "]
[null,null,null,null,null," - "]
[null,null,null,null,null," - "]
[null,null,null,null,null," - "]
[null,null,null,null,null," - "]
[null,null,null,null,null," - "]
[null,null,null,null,null," - "]
[null,null,null,null,null," - "]
[null,null,null,null,null," - "]
[null,null,null,null,null," - "]
[null,null,null,null,null," - "]
[null,null,null,null,null," - "]
[null,null,null,null,null,{"$f":"CONCATENATE(B439,\" - \",C439)","v":" - "}]
[null,null,null,null,null," - "]
[null,null,null,null,null," - "]
[null,null,null,null,null," - "]
[null,null,null,null,null," - "]
[null,null,null,null,null," - "]
[null,null,null,null,null," - "]
[null,null,null,null,null," - "]
[null,null,null,null,null," - "]
[null,null,null,null,null," - "]
[null,null,null,null,null," - "]
[null,null,null,null,null," - "]
[null,null,null,null,null," - "]
[null,null,null,null,null," - "]
[null,null,null,null,null," - "]
[null,null,null,null,null," - "]
[null,null,null,null,null," - "]
[null,null,null,null,null," - "]
[null,null,null,null,null," - "]
[null,null,null,null,null," - "]
[null,null,null,null,null," - "]
[null,null,null,null,null," - "]
[null,null,null,null,null," - "]
[null,null,null,null,null," - "]
[null,null,null,null,null," - "]
[null,null,null,null,null," - "]
[null,null,null,null,null," - "]
[null,null,null,null,null," - "]
[null,null,null,null,null," - "]
[null,null,null,null,null," - "]
[null,null,null,null,null," - "]
[null,null,null,null,null," - "]
[null,null,null,null,null," - "]
[null,null,null,null,null," - "]
[null,null,null,null,null," - "]
[null,null,null,null,null," - "]
[null,null,null,null,null," - "]
[null,null,null,null,null," - "]
[null,null,null,null,null," - "]
[null,null,null,null,null," - "]
[null,null,null,null,null," - "]
[null,null,null,null,null," - "]
[null,null,null,null,null," - "]
[null,null,null,null,null," - "]
[null,null,null,null,null," - "]
[null,null,null,null,null," - "]
[null,null,null,null,null," - "]
[null,null,null,null,null," - "]
[null,null,null,null,null," - "]
[null,null,null,null,null," - "]
[null,null,null,null,null," - "]
[null,null,null,null,null," - "]
[null,null,null,null,null," - "]
[null,null,null,null,null," - "]
[null,null,null,null,null," - "]
[null,null,null,null,null," - "]
[null,null,null,null,null," - "]
[null,null,null,null,null," - "]
[null,null,null,null,null," - "]
[null,null,null,null,null," - "]
[null,null,null,null,null," - "]
[null,null,null,null,null," - "]
[null,null,null,null,null," - "]
[null,null,null,null,null," - "]
[null,null,null,null,null,{"$f":"CONCATENATE(B503,\" - \",C503)","v":" - "}]
[null,null,null,null,null," - "]
[null,null,null,null,null," - "]
[null,null,null,null,null," - "]
[null,null,null,null,null," - "]
[null,null,null,null,null," - "]
[null,null,null,null,null," - "]
[null,null,null,null,null," - "]
[null,null,null,null,null," - "]
[null,null,null,null,null," - "]
[null,null,null,null,null," - "]
[null,null,null,null,null," - "]
[null,null,null,null,null," - "]
[null,null,null,null,null," - "]
[null,null,null,null,null," - "]
[null,null,null,null,null," - "]
[null,null,null,null,null," - "]
[null,null,null,null,null," - "]
[null,null,null,null,null," - "]
[null,null,null,null,null," - "]
[null,null,null,null,null," - "]
[null,null,null,null,null," - "]
[null,null,null,null,null," - "]
[null,null,null,null,null," - "]
[null,null,null,null,null," - "]
[null,null,null,null,null," - "]
[null,null,null,null,null," - "]
[null,null,null,null,null," - "]
[null,null,null,null,null," - "]
[null,null,null,null,null," - "]
[null,null,null,null,null," - "]
[null,null,null,null,null," - "]
[null,null,null,null,null," - "]
[null,null,null,null,null," - "]
[null,null,null,null,null," - "]
[null,null,null,null,null," - "]
[null,null,null,null,null," - "]
[null,null,null,null,null," - "]
[null,null,null,null,null," - "]
[null,null,null,null,null," - "]
[null,null,null,null,null," - "]
[null,null,null,null,null," - "]
[null,null,null,null,null," - "]
[null,null,null,null,null," - "]
[null,null,null,null,null," - "]
[null,null,null,null,null," - "]
[null,null,null,null,null," - "]
[null,null,null,null,null," - "]
[null,null,null,null,null," - "]
[null,null,null,null,null," - "]
[null,null,null,null,null," - "]
[null,null,null,null,null," - "]
[null,null,null,null,null," - "]
[null,null,null,null,null," - "]
[null,null,null,null,null," - "]
[null,null,null,null,null," - "]
[null,null,null,null,null," - "]
[null,null,null,null,null," - "]
[null,null,null,null,null," - "]
[null,null,null,null,null," - "]
[null,null,null,null,null," - "]
[null,null,null,null,null," - "]
[null,null,null,null,null," - "]
[null,null,null,null,null," - "]
[null,null,null,null,null,{"$f":"CONCATENATE(B567,\" - \",C567)","v":" - "}]
[null,null,null,null,null," - "]
[null,null,null,null,null," - "]
[null,null,null,null,null," - "]
[null,null,null,null,null," - "]
[null,null,null,null,null," - "]
[null,null,null,null,null," - "]
[null,null,null,null,null," - "]
[null,null,null,null,null," - "]
[null,null,null,null,null," - "]
[null,null,null,null,null," - "]
[null,null,null,null,null," - "]
[null,null,null,null,null," - "]
[null,null,null,null,null," - "]
[null,null,null,null,null," - "]
[null,null,null,null,null," - "]
[null,null,null,null,null," - "]
[null,null,null,null,null," - "]
[null,null,null,null,null," - "]
[null,null,null,null,null," - "]
[null,null,null,null,null," - "]
[null,null,null,null,null," - "]
[null,null,null,null,null," - "]
[null,null,null,null,null," - "]
[null,null,null,null,null," - "]
[null,null,null,null,null," - "]
[null,null,null,null,null," - "]
[null,null,null,null,null," - "]
[null,null,null,null,null," - "]
[null,null,null,null,null," - "]
[null,null,null,null,null," - "]
[null,null,null,null,null," - "]
[null,null,null,null,null," - "]
[null,null,null,null,null," - "]
[null,null,null,null,null," - "]
[null,null,null,null,null," - "]
[null,null,null,null,null," - "]
[null,null,null,null,null," - "]
[null,null,null,null,null," - "]
[null,null,null,null,null," - "]
[null,null,null,null,null," - "]
[null,null,null,null,null," - "]
[null,null,null,null,null," - "]
[null,null,null,null,null," - "]
[null,null,null,null,null," - "]
[null,null,null,null,null," - "]
[null,null,null,null,null," - "]
[null,null,null,null,null," - "]
[null,null,null,null,null," - "]
[null,null,null,null,null," - "]
[null,null,null,null,null," - "]
[null,null,null,null,null," - "]
[null,null,null,null,null," - "]
[null,null,null,null,null," - "]
[null,null,null,null,null," - "]
[null,null,null,null,null," - "]
[null,null,null,null,null," - "]
[null,null,null,null,null," - "]
[null,null,null,null,null," - "]
[null,null,null,null,null," - "]
[null,null,null,null,null," - "]
[null,null,null,null,null," - "]
[null,null,null,null,null," - "]
[null,null,null,null,null," - "]
[null,null,null,null,null,{"$f":"CONCATENATE(B631,\" - \",C631)","v":" - "}]
[null,null,null,null,null," - "]
[null,null,null,null,null," - "]
[null,null,null,null,null," - "]
[null,null,null,null,null," - "]
[null,null,null,null,null," - "]
[null,null,null,null,null," - "]
[null,null,null,null,null," - "]
[null,null,null,null,null," - "]
[null,null,null,null,null," - "]
[null,null,null,null,null," - "]
[null,null,null,null,null," - "]
[null,null,null,null,null," - "]
[null,null,null,null,null," - "]
[null,null,null,null,null," - "]
[null,null,null,null,null," - "]
[null,null,null,null,null," - "]
[null,null,null,null,null," - "]
[null,null,null,null,null," - "]
[null,null,null,null,null," - "]
[null,null,null,null,null," - "]
[null,null,null,null,null," - "]
[null,null,null,null,null," - "]
[null,null,null,null,null," - "]
[null,null,null,null,null," - "]
[null,null,null,null,null," - "]
[null,null,null,null,null," - "]
[null,null,null,null,null," - "]
[null,null,null,null,null," - "]
[null,null,null,null,null," - "]
[null,null,null,null,null," - "]
[null,null,null,null,null," - "]
[null,null,null,null,null," - "]
[null,null,null,null,null," - "]
[null,null,null,null,null," - "]
[null,null,null,null,null," - "]
[null,null,null,null,null," - "]
[null,null,null,null,null," - "]
[null,null,null,null,null," - "]
[null,null,null,null,null," - "]
[null,null,null,null,null," - "]
[null,null,null,null,null," - "]
[null,null,null,null,null," - "]
[null,null,null,null,null," - "]
[null,null,null,null,null," - "]
[null,null,null,null,null," - "]
[null,null,null,null,null," - "]
[null,null,null,null,null," - "]
[null,null,null,null,null," - "]
[null,null,null,null,null," - "]
[null,null,null,null,null," - "]
[null,null,null,null,null," - "]
[null,null,null,null,null," - "]
[null,null,null,null,null," - "]
[null,null,null,null,null," - "]
[null,null,null,null,null," - "]
[null,null,null,null,null," - "]
[null,null,null,null,null," - "]
[null,null,null,null,null," - "]
[null,null,null,null,null," - "]
[null,null,null,null,null," - "]
[null,null,null,null,null," - "]
[null,null,null,null,null," - "]
[null,null,null,null,null," - "]
[null,null,null,null,null,{"$f":"CONCATENATE(B695,\" - \",C695)","v":" - "}]
[null,null,null,null,null," - "]
[null,null,null,null,null," - "]
[null,null,null,null,null," - "]
[null,null,null,null,null," - "]
[null,null,null,null,null," - "]
[null,null,null,null,null," - "]
[null,null,null,null,null," - "]
[null,null,null,null,null," - "]
[null,null,null,null,null," - "]
[null,null,null,null,null," - "]
[null,null,null,null,null," - "]
[null,null,null,null,null," - "]
[null,null,null,null,null," - "]
[null,null,null,null,null," - "]
[null,null,null,null,null," - "]
[null,null,null,null,null," - "]
[null,null,null,null,null," - "]
[null,null,null,null,null," - "]
[null,null,null,null,null," - "]
[null,null,null,null,null," - "]
[null,null,null,null,null," - "]
[null,null,null,null,null," - "]
[null,null,null,null,null," - "]
[null,null,null,null,null," - "]
[null,null,null,null,null," - "]
[null,null,null,null,null," - "]
[null,null,null,null,null," - "]
[null,null,null,null,null," - "]
[null,null,null,null,null," - "]
[null,null,null,null,null," - "]
[null,null,null,null,null," - "]
[null,null,null,null,null," - "]
[null,null,null,null,null," - "]
[null,null,null,null,null," - "]
[null,null,null,null,null," - "]
[null,null,null,null,null," - "]
[null,null,null,null,null," - "]
[null,null,null,null,null," - "]
[null,null,null,null,null," - "]
[null,null,null,null,null," - "]
[null,null,null,null,null," - "]
[null,null,null,null,null," - "]
[null,null,null,null,null," - "]
[null,null,null,null,null," - "]
[null,null,null,null,null," - "]
[null,null,null,null,null," - "]
[null,null,null,null,null," - "]
[null,null,null,null,null," - "]
[null,null,null,null,null," - "]
[null,null,null,null,null," - "]
[null,null,null,null,null," - "]
[null,null,null,null,null," - "]
[null,null,null,null,null," - "]
[null,null,null,null,null," - "]
[null,null,null,null,null," - "]
[null,null,null,null,null," - "]
[null,null,null,null,null," - "]
[null,null,null,null,null," - "]
[null,null,null,null,null," - "]
[null,null,null,null,null," - "]
[null,null,null,null,null," - "]
[null,null,null,null,null," - "]
[null,null,null,null,null," - "]
[null,null,null,null,null,{"$f":"CONCATENATE(B759,\" - \",C759)","v":" - "}]
[null,null,null,null,null," - "]
[null,null,null,null,null," - "]
[null,null,null,null,null," - "]
[null,null,null,null,null," - "]
[null,null,null,null,null," - "]
[null,null,null,null,null," - "]
[null,null,null,null,null," - "]
[null,null,null,null,null," - "]
[null,null,null,null,null," - "]
[null,null,null,null,null," - "]
[null,null,null,null,null," - "]
[null,null,null,null,null," - "]
[null,null,null,null,null," - "]
[null,null,null,null,null," - "]
[null,null,null,null,null," - "]
[null,null,null,null,null," - "]
[null,null,null,null,null," - "]
[null,null,null,null,null," - "]
[null,null,null,null,null," - "]
[null,null,null,null,null," - "]
[null,null,null,null,null," - "]
[null,null,null,null,null," - "]
[null,null,null,null,null," - "]
[null,null,null,null,null," - "]
[null,null,null,null,null," - "]
[null,null,null,null,null," - "]
[null,null,null,null,null," - "]
[null,null,null,null,null," - "]
[null,null,null,null,null," - "]
[null,null,null,null,null," - "]
[null,null,null,null,null," - "]
[null,null,null,null,null," - "]
[null,null,null,null,null," - "]
[null,null,null,null,null," - "]
[null,null,null,null,null," - "]
[null,null,null,null,null," - "]
[null,null,null,null,null," - "]
[null,null,null,null,null," - "]
[null,null,null,null,null," - "]
[null,null,null,null,null," - "]
[null,null,null,null,null," - "]
[null,null,null,null,null," - "]
[null,null,null,null,null," - "]
[null,null,null,null,null," - "]
[null,null,null,null,null," - "]
[null,null,null,null,null," - "]
[null,null,null,null,null," - "]
[null,null,null,null,null," - "]
[null,null,null,null,null," - "]
[null,null,null,null,null," - "]
[null,null,null,null,null," - "]
[null,null,null,null,null," - "]
[null,null,null,null,null," - "]
[null,null,null,null,null," - "]
[null,null,null,null,null," - "]
[null,null,null,null,null," - "]
[null,null,null,null,null," - "]
[null,null,null,null,null," - "]
[null,null,null,null,null," - "]
[null,null,null,null,null," - "]
[null,null,null,null,null," - "]
[null,null,null,null,null," - "]
[null,null,null,null,null," - "]
[null,null,null,null,null,{"$f":"CONCATENATE(B823,\" - \",C823)","v":" - "}]
[null,null,null,null,null," - "]
[null,null,null,null,null," - "]
[null,null,null,null,null," - "]
[null,null,null,null,null," - "]
[null,null,null,null,null," - "]
[null,null,null,null,null," - "]
[null,null,null,null,null," - "]
[null,null,null,null,null," - "]
[null,null,null,null,null," - "]
[null,null,null,null,null," - "]
[null,null,null,null,null," - "]
[null,null,null,null,null," - "]
[null,null,null,null,null," - "]
[null,null,null,null,null," - "]
[null,null,null,null,null," - "]
[null,null,null,null,null," - "]
[null,null,null,null,null," - "]
[null,null,null,null,null," - "]
[null,null,null,null,null," - "]
[null,null,null,null,null," - "]
[null,null,null,null,null," - "]
[null,null,null,null,null," - "]
[null,null,null,null,null," - "]
[null,null,null,null,null," - "]
[null,null,null,null,null," - "]
[null,null,null,null,null," - "]
[null,null,null,null,null," - "]
[null,null,null,null,null," - "]
[null,null,null,null,null," - "]
[null,null,null,null,null," - "]
[null,null,null,null,null," - "]
[null,null,null,null,null," - "]
[null,null,null,null,null," - "]
[null,null,null,null,null," - "]
[null,null,null,null,null," - "]
[null,null,null,null,null," - "]
[null,null,null,null,null," - "]
[null,null,null,null,null," - "]
[null,null,null,null,null," - "]
[null,null,null,null,null," - "]
[null,null,null,null,null," - "]
[null,null,null,null,null," - "]
[null,null,null,null,null," - "]
[null,null,null,null,null," - "]
[null,null,null,null,null," - "]
[null,null,null,null,null," - "]
[null,null,null,null,null," - "]
[null,null,null,null,null," - "]
[null,null,null,null,null," - "]
[null,null,null,null,null," - "]
[null,null,null,null,null," - "]
[null,null,null,null,null," - "]
[null,null,null,null,null," - "]
[null,null,null,null,null," - "]
[null,null,null,null,null," - "]
[null,null,null,null,null," - "]
[null,null,null,null,null," - "]
[null,null,null,null,null," - "]
[null,null,null,null,null," - "]
[null,null,null,null,null," - "]
[null,null,null,null,null," - "]
[null,null,null,null,null," - "]
[null,null,null,null,null," - "]
[null,null,null,null,null,{"$f":"CONCATENATE(B887,\" - \",C887)","v":" - "}]
[null,null,null,null,null," - "]
[null,null,null,null,null," - "]
[null,null,null,null,null," - "]
[null,null,null,null,null," - "]
[null,null,null,null,null," - "]
[null,null,null,null,null," - "]
[null,null,null,null,null," - "]
[null,null,null,null,null," - "]
[null,null,null,null,null," - "]
[null,null,null,null,null," - "]
[null,null,null,null,null," - "]
[null,null,null,null,null," - "]
[null,null,null,null,null," - "]
[null,null,null,null,null," - "]
[null,null,null,null,null," - "]
[null,null,null,null,null," - "]
[null,null,null,null,null," - "]
[null,null,null,null,null," - "]
[null,null,null,null,null," - "]
[null,null,null,null,null," - "]
[null,null,null,null,null," - "]
[null,null,null,null,null," - "]
[null,null,null,null,null," - "]
[null,null,null,null,null," - "]
[null,null,null,null,null," - "]
[null,null,null,null,null," - "]
[null,null,null,null,null," - "]
[null,null,null,null,null," - "]
[null,null,null,null,null," - "]
[null,null,null,null,null," - "]
[null,null,null,null,null," - "]
[null,null,null,null,null," - "]
[null,null,null,null,null," - "]
[null,null,null,null,null," - "]
[null,null,null,null,null," - "]
[null,null,null,null,null," - "]
[null,null,null,null,null," - "]
[null,null,null,null,null," - "]
[null,null,null,null,null," - "]
[null,null,null,null,null," - "]
[null,null,null,null,null," - "]
[null,null,null,null,null," - "]
[null,null,null,null,null," - "]
[null,null,null,null,null," - "]
[null,null,null,null,null," - "]
[null,null,null,null,null," - "]
[null,null,null,null,null," - "]
[null,null,null,null,null," - "]
[null,null,null,null,null," - "]
[null,null,null,null,null," - "]
[null,null,null,null,null," - "]
[null,null,null,null,null," - "]
[null,null,null,null,null," - "]
[null,null,null,null,null," - "]
[null,null,null,null,null," - "]
[null,null,null,null,null," - "]
[null,null,null,null,null," - "]
[null,null,null,null,null," - "]
[null,null,null,null,null," - "]
[null,null,null,null,null," - "]
[null,null,null,null,null," - "]
[null,null,null,null,null," - "]
[null,null,null,null,null," - "]
[null,null,null,null,null,{"$f":"CONCATENATE(B951,\" - \",C951)","v":" - "}]
[null,null,null,null,null," - "]
[null,null,null,null,null," - "]
[null,null,null,null,null," - "]
[null,null,null,null,null," - "]
[null,null,null,null,null," - "]
[null,null,null,null,null," - "]
[null,null,null,null,null," - "]
[null,null,null,null,null," - "]
[null,null,null,null,null," - "]
[null,null,null,null,null," - "]
[null,null,null,null,null," - "]
[null,null,null,null,null," - "]
[null,null,null,null,null," - "]
[null,null,null,null,null," - "]
[null,null,null,null,null," - "]
[null,null,null,null,null," - "]
[null,null,null,null,null," - "]
[null,null,null,null,null," - "]
[null,null,null,null,null," - "]
[null,null,null,null,null," - "]
[null,null,null,null,null," - "]
[null,null,null,null,null," - "]
[null,null,null,null,null," - "]
[null,null,null,null,null," - "]
[null,null,null,null,null," - "]
[null,null,null,null,null," - "]
[null,null,null,null,null," - "]
[null,null,null,null,null," - "]
[null,null,null,null,null," - "]
[null,null,null,null,null," - "]
[null,null,null,null,null," - "]
[null,null,null,null,null," - "]
[null,null,null,null,null," - "]
[null,null,null,null,null," - "]
[null,null,null,null,null," - "]
[null,null,null,null,null," - "]
[null,null,null,null,null," - "]
[null,null,null,null,null," - "]
[null,null,null,null,null," - "]
[null,null,null,null,null," - "]
[null,null,null,null,null," - "]
[null,null,null,null,null," - "]
[null,null,null,null,null," - "]
[null,null,null,null,null," - "]
[null,null,null,null,null," - "]
[null,null,null,null,null," - "]
[null,null,null,null,null," - "]
[null,null,null,null,null," - "]
[null,null,null,null,null," - "]
[null,null,null,null,null," - "]
[null,null,null,null,null," - "]
[null,null,null,null,null," - "]
[null,null,null,null,null," - "]
[null,null,null,null,null," - "]
[null,null,null,null,null," - "]
[null,null,null,null,null," - "]
[null,null,null,null,null," - "]
[null,null,null,null,null," - "]
[null,null,null,null,null," - "]
[null,null,null,null,null," - "]
[null,null,null,null,null," - "]
[null,null,null,null,null," - "]
[null,null,null,null,null," - "]
[null,null,null,null,null,{"$f":"CONCATENATE(B1015,\" - \",C1015)","v":" - "}]
[null,null,null,null,null," - "]
[null,null,null,null,null," - "]
[null,null,null,null,null," - "]
[null,null,null,null,null," - "]
[null,null,null,null,null," - "]
[null,null,null,null,null," - "]
[null,null,null,null,null," - "]
[null,null,null,null,null," - "]
[null,null,null,null,null," - "]
[null,null,null,null,null," - "]
[null,null,null,null,null," - "]
[null,null,null,null,null," - "]
[null,null,null,null,null," - "]
[null,null,null,null,null," - "]
[null,null,null,null,null," - "]
[null,null,null,null,null," - "]
[null,null,null,null,null," - "]
[null,null,null,null,null," - "]
[null,null,null,null,null," - "]
[null,null,null,null,null," - "]
[null,null,null,null,null," - "]
[null,null,null,null,null," - "]
[null,null,null,null,null," - "]
[null,null,null,null,null," - "]
[null,null,null,null,null," - "]
[null,null,null,null,null," - "]
[null,null,null,null,null," - "]
[null,null,null,null,null," - "]
[null,null,null,null,null," - "]
[null,null,null,null,null," - "]
[null,null,null,null,null," - "]
[null,null,null,null,null," - "]
[null,null,null,null,null," - "]
[null,null,null,null,null," - "]
[null,null,null,null,null," - "]
[null,null,null,null,null," - "]
[null,null,null,null,null," - "]
[null,null,null,null,null," - "]
[null,null,null,null,null," - "]
[null,null,null,null,null," - "]
[null,null,null,null,null," - "]
[null,null,null,null,null," - "]
[null,null,null,null,null," - "]
[null,null,null,null,null," - "]
[null,null,null,null,null," - "]
[null,null,null,null,null," - "]
[null,null,null,null,null," - "]
[null,null,null,null,null," - "]
[null,null,null,null,null," - "]
[null,null,null,null,null," - "]
[null,null,null,null,null," - "]
[null,null,null,null,null," - "]
[null,null,null,null,null," - "]
[null,null,null,null,null," - "]
[null,null,null,null,null," - "]
[null,null,null,null,null," - "]
[null,null,null,null,null," - "]
[null,null,null,null,null," - "]
[null,null,null,null,null," - "]
[null,null,null,null,null," - "]
[null,null,null,null,null," - "]
[null,null,null,null,null," - "]
[null,null,null,null,null," - "]
[null,null,null,null,null,{"$f":"CONCATENATE(B1079,\" - \",C1079)","v":" - "}]
[null,null,null,null,null," - "]
[null,null,null,null,null," - "]
[null,null,null,null,null," - "]
[null,null,null,null,null," - "]
[null,null,null,null,null," - "]
[null,null,null,null,null," - "]
[null,null,null,null,null," - "]
[null,null,null,null,null," - "]
[null,null,null,null,null," - "]
[null,null,null,null,null," - "]
[null,null,null,null,null," - "]
[null,null,null,null,null," - "]
[null,null,null,null,null," - "]
[null,null,null,null,null," - "]
[null,null,null,null,null," - "]
[null,null,null,null,null," - "]
[null,null,null,null,null," - "]
[null,null,null,null,null," - "]
[null,null,null,null,null," - "]
[null,null,null,null,null," - "]
[null,null,null,null,null," - "]
[null,null,null,null,null," - "]
[null,null,null,null,null," - "]
[null,null,null,null,null," - "]
[null,null,null,null,null," - "]
[null,null,null,null,null," - "]
[null,null,null,null,null," - "]
[null,null,null,null,null," - "]
[null,null,null,null,null," - "]
[null,null,null,null,null," - "]
[null,null,null,null,null," - "]
[null,null,null,null,null," - "]
[null,null,null,null,null," - "]
[null,null,null,null,null," - "]
[null,null,null,null,null," - "]
[null,null,null,null,null," - "]
[null,null,null,null,null," - "]
[null,null,null,null,null," - "]
[null,null,null,null,null," - "]
[null,null,null,null,null," - "]
[null,null,null,null,null," - "]
[null,null,null,null,null," - "]
[null,null,null,null,null," - "]
[null,null,null,null,null," - "]
[null,null,null,null,null," - "]
[null,null,null,null,null," - "]
[null,null,null,null,null," - "]
[null,null,null,null,null," - "]
[null,null,null,null,null," - "]
[null,null,null,null,null," - "]
[null,null,null,null,null," - "]
[null,null,null,null,null," - "]
[null,null,null,null,null," - "]
[null,null,null,null,null," - "]
[null,null,null,null,null," - "]
[null,null,null,null,null," - "]
[null,null,null,null,null," - "]
[null,null,null,null,null," - "]
[null,null,null,null,null," - "]
[null,null,null,null,null," - "]
[null,null,null,null,null," - "]
[null,null,null,null,null," - "]
[null,null,null,null,null," - "]
[null,null,null,null,null,{"$f":"CONCATENATE(B1143,\" - \",C1143)","v":" - "}]
[null,null,null,null,null," - "]
[null,null,null,null,null," - "]
[null,null,null,null,null," - "]
[null,null,null,null,null," - "]
[null,null,null,null,null," - "]
[null,null,null,null,null," - "]
[null,null,null,null,null," - "]
[null,null,null,null,null," - "]
[null,null,null,null,null," - "]
[null,null,null,null,null," - "]
[null,null,null,null,null," - "]
[null,null,null,null,null," - "]
[null,null,null,null,null," - "]
[null,null,null,null,null," - "]
[null,null,null,null,null," - "]
[null,null,null,null,null," - "]
[null,null,null,null,null," - "]
[null,null,null,null,null," - "]
[null,null,null,null,null," - "]
[null,null,null,null,null," - "]
[null,null,null,null,null," - "]
[null,null,null,null,null," - "]
[null,null,null,null,null," - "]
[null,null,null,null,null," - "]
[null,null,null,null,null," - "]
[null,null,null,null,null," - "]
[null,null,null,null,null," - "]
[null,null,null,null,null," - "]
[null,null,null,null,null," - "]
[null,null,null,null,null," - "]
[null,null,null,null,null," - "]
[null,null,null,null,null," - "]
[null,null,null,null,null," - "]
[null,null,null,null,null," - "]
[null,null,null,null,null," - "]
[null,null,null,null,null," - "]
[null,null,null,null,null," - "]
[null,null,null,null,null," - "]
[null,null,null,null,null," - "]
[null,null,null,null,null," - "]
[null,null,null,null,null," - "]
[null,null,null,null,null," - "]
[null,null,null,null,null," - "]
[null,null,null,null,null," - "]
[null,null,null,null,null," - "]
[null,null,null,null,null," - "]
[null,null,null,null,null," - "]
[null,null,null,null,null," - "]
[null,null,null,null,null," - "]
[null,null,null,null,null," - "]
[null,null,null,null,null," - "]
[null,null,null,null,null," - "]
[null,null,null,null,null," - "]
[null,null,null,null,null," - "]
[null,null,null,null,null," - "]
[null,null,null,null,null," - "]
[null,null,null,null,null," - "]
[null,null,null,null,null," - "]
[null,null,null,null,null," - "]
[null,null,null,null,null," - "]
[null,null,null,null,null," - "]
[null,null,null,null,null," - "]
[null,null,null,null,null," - "]
[null,null,null,null,null,{"$f":"CONCATENATE(B1207,\" - \",C1207)","v":" - "}]
[null,null,null,null,null," - "]
[null,null,null,null,null," - "]
[null,null,null,null,null," - "]
[null,null,null,null,null," - "]
[null,null,null,null,null," - "]
[null,null,null,null,null," - "]
[null,null,null,null,null," - "]
[null,null,null,null,null," - "]
[null,null,null,null,null," - "]
[null,null,null,null,null," - "]
[null,null,null,null,null," - "]
[null,null,null,null,null," - "]
[null,null,null,null,null," - "]
[null,null,null,null,null," - "]
[null,null,null,null,null," - "]
[null,null,null,null,null," - "]
[null,null,null,null,null," - "]
[null,null,null,null,null," - "]
[null,null,null,null,null," - "]
[null,null,null,null,null," - "]
[null,null,null,null,null," - "]
[null,null,null,null,null," - "]
[null,null,null,null,null," - "]
[null,null,null,null,null," - "]
[null,null,null,null,null," - "]
[null,null,null,null,null," - "]
[null,null,null,null,null," - "]
[null,null,null,null,null," - "]
[null,null,null,null,null," - "]
[null,null,null,null,null," - "]
[null,null,null,null,null," - "]
[null,null,null,null,null," - "]
[null,null,null,null,null," - "]
[null,null,null,null,null," - "]
[null,null,null,null,null," - "]
[null,null,null,null,null," - "]
[null,null,null,null,null," - "]
[null,null,null,null,null," - "]
[null,null,null,null,null," - "]
[null,null,null,null,null," - "]
[null,null,null,null,null," - "]
[null,null,null,null,null," - "]
[null,null,null,null,null," - "]
[null,null,null,null,null," - "]
[null,null,null,null,null," - "]
[null,null,null,null,null," - "]
[null,null,null,null,null," - "]
[null,null,null,null,null," - "]
[null,null,null,null,null," - "]
[null,null,null,null,null," - "]
[null,null,null,null,null," - "]
[null,null,null,null,null," - "]
[null,null,null,null,null," - "]
[null,null,null,null,null," - "]
[null,null,null,null,null," - "]
[null,null,null,null,null," - "]
[null,null,null,null,null," - "]
[null,null,null,null,null," - "]
[null,null,null,null,null," - "]
[null,null,null,null,null," - "]
[null,null,null,null,null," - "]
[null,null,null,null,null," - "]
[null,null,null,null,null," - "]
[null,null,null,null,null,{"$f":"CONCATENATE(B1271,\" - \",C1271)","v":" - "}]
[null,null,null,null,null," - "]
[null,null,null,null,null," - "]
[null,null,null,null,null," - "]
[null,null,null,null,null," - "]
[null,null,null,null,null," - "]
[null,null,null,null,null," - "]
[null,null,null,null,null," - "]
[null,null,null,null,null," - "]
[null,null,null,null,null," - "]
[null,null,null,null,null," - "]
[null,null,null,null,null," - "]
[null,null,null,null,null," - "]
[null,null,null,null,null," - "]
[null,null,null,null,null," - "]
[null,null,null,null,null," - "]
[null,null,null,null,null," - "]
[null,null,null,null,null," - "]
[null,null,null,null,null," - "]
[null,null,null,null,null," - "]
[null,null,null,null,null," - "]
[null,null,null,null,null," - "]
[null,null,null,null,null," - "]
[null,null,null,null,null," - "]
[null,null,null,null,null," - "]
[null,null,null,null,null," - "]
[null,null,null,null,null," - "]
[null,null,null,null,null," - "]
[null,null,null,null,null," - "]
[null,null,null,null,null," - "]
[null,null,null,null,null," - "]
[null,null,null,null,null," - "]
[null,null,null,null,null," - "]
[null,null,null,null,null," - "]
[null,null,null,null,null," - "]
[null,null,null,null,null," - "]
[null,null,null,null,null," - "]
[null,null,null,null,null," - "]
[null,null,null,null,null," - "]
[null,null,null,null,null," - "]
[null,null,null,null,null," - "]
[null,null,null,null,null," - "]
[null,null,null,null,null," - "]
[null,null,null,null,null," - "]
[null,null,null,null,null," - "]
[null,null,null,null,null," - "]
[null,null,null,null,null," - "]
[null,null,null,null,null," - "]
[null,null,null,null,null," - "]
[null,null,null,null,null," - "]
[null,null,null,null,null," - "]
[null,null,null,null,null," - "]
[null,null,null,null,null," - "]
[null,null,null,null,null," - "]
[null,null,null,null,null," - "]
[null,null,null,null,null," - "]
[null,null,null,null,null," - "]
[null,null,null,null,null," - "]
[null,null,null,null,null," - "]
[null,null,null,null,null," - "]
[null,null,null,null,null," - "]
[null,null,null,null,null," - "]
[null,null,null,null,null," - "]
[null,null,null,null,null," - "]
[null,null,null,null,null,{"$f":"CONCATENATE(B1335,\" - \",C1335)","v":" - "}]
[null,null,null,null,null," - "]
[null,null,null,null,null," - "]
[null,null,null,null,null," - "]
[null,null,null,null,null," - "]
[null,null,null,null,null," - "]
[null,null,null,null,null," - "]
[null,null,null,null,null," - "]
[null,null,null,null,null," - "]
[null,null,null,null,null," - "]
[null,null,null,null,null," - "]
[null,null,null,null,null," - "]
[null,null,null,null,null," - "]
[null,null,null,null,null," - "]
[null,null,null,null,null," - "]
[null,null,null,null,null," - "]
[null,null,null,null,null," - "]
[null,null,null,null,null," - "]
[null,null,null,null,null," - "]
[null,null,null,null,null," - "]
[null,null,null,null,null," - "]
[null,null,null,null,null," - "]
[null,null,null,null,null," - "]
[null,null,null,null,null," - "]
[null,null,null,null,null," - "]
[null,null,null,null,null," - "]
[null,null,null,null,null," - "]
[null,null,null,null,null," - "]
[null,null,null,null,null," - "]
[null,null,null,null,null," - "]
[null,null,null,null,null," - "]
[null,null,null,null,null," - "]
[null,null,null,null,null," - "]
[null,null,null,null,null," - "]
[null,null,null,null,null," - "]
[null,null,null,null,null," - "]
[null,null,null,null,null," - "]
[null,null,null,null,null," - "]
[null,null,null,null,null," - "]
[null,null,null,null,null," - "]
[null,null,null,null,null," - "]
[null,null,null,null,null," - "]
[null,null,null,null,null," - "]
[null,null,null,null,null," - "]
[null,null,null,null,null," - "]
[null,null,null,null,null," - "]
[null,null,null,null,null," - "]
[null,null,null,null,null," - "]
[null,null,null,null,null," - "]
[null,null,null,null,null," - "]
[null,null,null,null,null," - "]
[null,null,null,null,null," - "]
[null,null,null,null,null," - "]
[null,null,null,null,null," - "]
[null,null,null,null,null," - "]
[null,null,null,null,null," - "]
[null,null,null,null,null," - "]
[null,null,null,null,null," - "]
[null,null,null,null,null," - "]
[null,null,null,null,null," - "]
[null,null,null,null,null," - "]
[null,null,null,null,null," - "]
[null,null,null,null,null," - "]
[null,null,null,null,null," - "]
[null,null,null,null,null,{"$f":"CONCATENATE(B1399,\" - \",C1399)","v":" - "}]
[null,null,null,null,null," - "]
[null,null,null,null,null," - "]
[null,null,null,null,null," - "]
[null,null,null,null,null," - "]
[null,null,null,null,null," - "]
[null,null,null,null,null," - "]
[null,null,null,null,null," - "]
[null,null,null,null,null," - "]
[null,null,null,null,null," - "]
[null,null,null,null,null," - "]
[null,null,null,null,null," - "]
[null,null,null,null,null," - "]
[null,null,null,null,null," - "]
[null,null,null,null,null," - "]
[null,null,null,null,null," - "]
[null,null,null,null,null," - "]
[null,null,null,null,null," - "]
[null,null,null,null,null," - "]
[null,null,null,null,null," - "]
[null,null,null,null,null," - "]
[null,null,null,null,null," - "]
[null,null,null,null,null," - "]
[null,null,null,null,null," - "]
[null,null,null,null,null," - "]
[null,null,null,null,null," - "]
[null,null,null,null,null," - "]
[null,null,null,null,null," - "]
[null,null,null,null,null," - "]
[null,null,null,null,null," - "]
[null,null,null,null,null," - "]
[null,null,null,null,null," - "]
[null,null,null,null,null," - "]
[null,null,null,null,null," - "]
[null,null,null,null,null," - "]
[null,null,null,null,null," - "]
[null,null,null,null,null," - "]
[null,null,null,null,null," - "]
[null,null,null,null,null," - "]
[null,null,null,null,null," - "]
[null,null,null,null,null," - "]
[null,null,null,null,null," - "]
[null,null,null,null,null," - "]
[null,null,null,null,null," - "]
[null,null,null,null,null," - "]
[null,null,null,null,null," - "]
[null,null,null,null,null," - "]
[null,null,null,null,null," - "]
[null,null,null,null,null," - "]
[null,null,null,null,null," - "]
[null,null,null,null,null," - "]
[null,null,null,null,null," - "]
[null,null,null,null,null," - "]
[null,null,null,null,null," - "]
[null,null,null,null,null," - "]
[null,null,null,null,null," - "]
[null,null,null,null,null," - "]
[null,null,null,null,null," - "]
[null,null,null,null,null," - "]
[null,null,null,null,null," - "]
[null,null,null,null,null," - "]
[null,null,null,null,null," - "]
[null,null,null,null,null," - "]
[null,null,null,null,null," - "]
[null,null,null,null,null,{"$f":"CONCATENATE(B1463,\" - \",C1463)","v":" - "}]
[null,null,null,null,null," - "]
[null,null,null,null,null," - "]
[null,null,null,null,null," - "]
[null,null,null,null,null," - "]
[null,null,null,null,null," - "]
[null,null,null,null,null," - "]
[null,null,null,null,null," - "]
[null,null,null,null,null," - "]
[null,null,null,null,null," - "]
[null,null,null,null,null," - "]
[null,null,null,null,null," - "]
[null,null,null,null,null," - "]
[null,null,null,null,null," - "]
[null,null,null,null,null," - "]
[null,null,null,null,null," - "]
[null,null,null,null,null," - "]
[null,null,null,null,null," - "]
[null,null,null,null,null," - "]
[null,null,null,null,null," - "]
[null,null,null,null,null," - "]
[null,null,null,null,null," - "]
[null,null,null,null,null," - "]
[null,null,null,null,null," - "]
[null,null,null,null,null," - "]
[null,null,null,null,null," - "]
[null,null,null,null,null," - "]
[null,null,null,null,null," - "]
[null,null,null,null,null," - "]
[null,null,null,null,null," - "]
[null,null,null,null,null," - "]
[null,null,null,null,null," - "]
[null,null,null,null,null," - "]
[null,null,null,null,null," - "]
[null,null,null,null,null," - "]
[null,null,null,null,null," - "]
[null,null,null,null,null," - "]
[null,null,null,null,null," - "]
[null,null,null,null,null," - "]
[null,null,null,null,null," - "]
[null,null,null,null,null," - "]
[null,null,null,null,null," - "]
[null,null,null,null,null," - "]
[null,null,null,null,null," - "]
[null,null,null,null,null," - "]
[null,null,null,null,null," - "]
[null,null,null,null,null," - "]
[null,null,null,null,null," - "]
[null,null,null,null,null," - "]
[null,null,null,null,null," - "]
[null,null,null,null,null," - "]
[null,null,null,null,null," - "]
[null,null,null,null,null," - "]
[null,null,null,null,null," - "]
[null,null,null,null,null," - "]
[null,null,null,null,null," - "]
[null,null,null,null,null," - "]
[null,null,null,null,null," - "]
[null,null,null,null,null," - "]
[null,null,null,null,null," - "]
[null,null,null,null,null," - "]
[null,null,null,null,null," - "]
[null,null,null,null,null," - "]
[null,null,null,null,null," - "]
[null,null,null,null,null,{"$f":"CONCATENATE(B1527,\" - \",C1527)","v":" - "}]
[null,null,null,null,null," - "]
[null,null,null,null,null," - "]
[null,null,null,null,null," - "]
[null,null,null,null,null," - "]
[null,null,null,null,null," - "]
[null,null,null,null,null," - "]
[null,null,null,null,null," - "]
[null,null,null,null,null," - "]
[null,null,null,null,null," - "]
[null,null,null,null,null," - "]
[null,null,null,null,null," - "]
[null,null,null,null,null," - "]
[null,null,null,null,null," - "]
[null,null,null,null,null," - "]
[null,null,null,null,null," - "]
[null,null,null,null,null," - "]
[null,null,null,null,null," - "]
[null,null,null,null,null," - "]
[null,null,null,null,null," - "]
[null,null,null,null,null," - "]
[null,null,null,null,null," - "]
[null,null,null,null,null," - "]
[null,null,null,null,null," - "]
[null,null,null,null,null," - "]
[null,null,null,null,null," - "]
[null,null,null,null,null," - "]
[null,null,null,null,null," - "]
[null,null,null,null,null," - "]
[null,null,null,null,null," - "]
[null,null,null,null,null," - "]
[null,null,null,null,null," - "]
[null,null,null,null,null," - "]
[null,null,null,null,null," - "]
[null,null,null,null,null," - "]
[null,null,null,null,null," - "]
[null,null,null,null,null," - "]
[null,null,null,null,null," - "]
[null,null,null,null,null," - "]
[null,null,null,null,null," - "]
[null,null,null,null,null," - "]
[null,null,null,null,null," - "]
[null,null,null,null,null," - "]
[null,null,null,null,null," - "]
[null,null,null,null,null," - "]
[null,null,null,null,null," - "]
[null,null,null,null,null," - "]
[null,null,null,null,null," - "]
[null,null,null,null,null," - "]
[null,null,null,null,null," - "]
[null,null,null,null,null," - "]
[null,null,null,null,null," - "]
[null,null,null,null,null," - "]
[null,null,null,null,null," - "]
[null,null,null,null,null," - "]
[null,null,null,null,null," - "]
[null,null,null,null,null," - "]
[null,null,null,null,null," - "]
[null,null,null,null,null," - "]
[null,null,null,null,null," - "]
[null,null,null,null,null," - "]
[null,null,null,null,null," - "]
[null,null,null,null,null," - "]
[null,null,null,null,null," - "]
[null,null,null,null,null,{"$f":"CONCATENATE(B1591,\" - \",C1591)","v":" - "}]
[null,null,null,null,null," - "]
[null,null,null,null,null," - "]
[null,null,null,null,null," - "]
[null,null,null,null,null," - "]
[null,null,null,null,null," - "]
[null,null,null,null,null," - "]
[null,null,null,null,null," - "]
[null,null,null,null,null," - "]
[null,null,null,null,null," - "]
[null,null,null,null,null," - "]
[null,null,null,null,null," - "]
[null,null,null,null,null," - "]
[null,null,null,null,null," - "]
[null,null,null,null,null," - "]
[null,null,null,null,null," - "]
[null,null,null,null,null," - "]
[null,null,null,null,null," - "]
[null,null,null,null,null," - "]
[null,null,null,null,null," - "]
[null,null,null,null,null," - "]
[null,null,null,null,null," - "]
[null,null,null,null,null," - "]
[null,null,null,null,null," - "]
[null,null,null,null,null," - "]
[null,null,null,null,null," - "]
[null,null,null,null,null," - "]
[null,null,null,null,null," - "]
[null,null,null,null,null," - "]
[null,null,null,null,null," - "]
[null,null,null,null,null," - "]
[null,null,null,null,null," - "]
[null,null,null,null,null," - "]
[null,null,null,null,null," - "]
[null,null,null,null,null," - "]
[null,null,null,null,null," - "]
[null,null,null,null,null," - "]
[null,null,null,null,null," - "]
[null,null,null,null,null," - "]
[null,null,null,null,null," - "]
[null,null,null,null,null," - "]
[null,null,null,null,null," - "]
[null,null,null,null,null," - "]
[null,null,null,null,null," - "]
[null,null,null,null,null," - "]
[null,null,null,null,null," - "]
[null,null,null,null,null," - "]
[null,null,null,null,null," - "]
[null,null,null,null,null," - "]
[null,null,null,null,null," - "]
[null,null,null,null,null," - "]
[null,null,null,null,null," - "]
[null,null,null,null,null," - "]
[null,null,null,null,null," - "]
[null,null,null,null,null," - "]
[null,null,null,null,null," - "]
[null,null,null,null,null," - "]
[null,null,null,null,null," - "]
[null,null,null,null,null," - "]
[null,null,null,null,null," - "]
[null,null,null,null,null," - "]
[null,null,null,null,null," - "]
[null,null,null,null,null," - "]
[null,null,null,null,null," - "]
[null,null,null,null,null,{"$f":"CONCATENATE(B1655,\" - \",C1655)","v":" - "}]
[null,null,null,null,null," - "]
[null,null,null,null,null," - "]
[null,null,null,null,null," - "]
[null,null,null,null,null," - "]
[null,null,null,null,null," - "]
[null,null,null,null,null," - "]
[null,null,null,null,null," - "]
[null,null,null,null,null," - "]
[null,null,null,null,null," - "]
[null,null,null,null,null," - "]
[null,null,null,null,null," - "]
[null,null,null,null,null," - "]
[null,null,null,null,null," - "]
[null,null,null,null,null," - "]
[null,null,null,null,null," - "]
[null,null,null,null,null," - "]
[null,null,null,null,null," - "]
[null,null,null,null,null," - "]
[null,null,null,null,null," - "]
[null,null,null,null,null," - "]
[null,null,null,null,null," - "]
[null,null,null,null,null," - "]
[null,null,null,null,null," - "]
[null,null,null,null,null," - "]
[null,null,null,null,null," - "]
[null,null,null,null,null," - "]
[null,null,null,null,null," - "]
[null,null,null,null,null," - "]
[null,null,null,null,null," - "]
[null,null,null,null,null," - "]
[null,null,null,null,null," - "]
[null,null,null,null,null," - "]
[null,null,null,null,null," - "]
[null,null,null,null,null," - "]
[null,null,null,null,null," - "]
[null,null,null,null,null," - "]
[null,null,null,null,null," - "]
[null,null,null,null,null," - "]
[null,null,null,null,null," - "]
[null,null,null,null,null," - "]
[null,null,null,null,null," - "]
[null,null,null,null,null," - "]
[null,null,null,null,null," - "]
[null,null,null,null,null," - "]
[null,null,null,null,null," - "]
[null,null,null,null,null," - "]
[null,null,null,null,null," - "]
[null,null,null,null,null," - "]
[null,null,null,null,null," - "]
[null,null,null,null,null," - "]
[null,null,null,null,null," - "]
[null,null,null,null,null," - "]
[null,null,null,null,null," - "]
[null,null,null,null,null," - "]
[null,null,null,null,null," - "]
[null,null,null,null,null," - "]
[null,null,null,null,null," - "]
[null,null,null,null,null," - "]
[null,null,null,null,null," - "]
[null,null,null,null,null," - "]
[null,null,null,null,null," - "]
[null,null,null,null,null," - "]
[null,null,null,null,null," - "]
[null,null,null,null,null,{"$f":"CONCATENATE(B1719,\" - \",C1719)","v":" - "}]
[null,null,null,null,null," - "]
[null,null,null,null,null," - "]
[null,null,null,null,null," - "]
[null,null,null,null,null," - "]
[null,null,null,null,null," - "]
[null,null,null,null,null," - "]
[null,null,null,null,null," - "]
[null,null,null,null,null," - "]
[null,null,null,null,null," - "]
[null,null,null,null,null," - "]
[null,null,null,null,null," - "]
[null,null,null,null,null," - "]
[null,null,null,null,null," - "]
[null,null,null,null,null," - "]
[null,null,null,null,null," - "]
[null,null,null,null,null," - "]
[null,null,null,null,null," - "]
[null,null,null,null,null," - "]
[null,null,null,null,null," - "]
[null,null,null,null,null," - "]
[null,null,null,null,null," - "]
[null,null,null,null,null," - "]
[null,null,null,null,null," - "]
[null,null,null,null,null," - "]
[null,null,null,null,null," - "]
[null,null,null,null,null," - "]
[null,null,null,null,null," - "]
[null,null,null,null,null," - "]
[null,null,null,null,null," - "]
[null,null,null,null,null," - "]
[null,null,null,null,null," - "]
[null,null,null,null,null," - "]
[null,null,null,null,null," - "]
[null,null,null,null,null," - "]
[null,null,null,null,null," - "]
[null,null,null,null,null," - "]
[null,null,null,null,null," - "]
[null,null,null,null,null," - "]
[null,null,null,null,null," - "]
[null,null,null,null,null," - "]
[null,null,null,null,null," - "]
[null,null,null,null,null," - "]
[null,null,null,null,null," - "]
[null,null,null,null,null," - "]
[null,null,null,null,null," - "]
[null,null,null,null,null," - "]
[null,null,null,null,null," - "]
[null,null,null,null,null," - "]
[null,null,null,null,null," - "]
[null,null,null,null,null," - "]
[null,null,null,null,null," - "]
[null,null,null,null,null," - "]
[null,null,null,null,null," - "]
[null,null,null,null,null," - "]
[null,null,null,null,null," - "]
[null,null,null,null,null," - "]
[null,null,null,null,null," - "]
[null,null,null,null,null," - "]
[null,null,null,null,null," - "]
[null,null,null,null,null," - "]
[null,null,null,null,null," - "]
[null,null,null,null,null," - "]
[null,null,null,null,null," - "]
[null,null,null,null,null,{"$f":"CONCATENATE(B1783,\" - \",C1783)","v":" - "}]
[null,null,null,null,null," - "]
[null,null,null,null,null," - "]
[null,null,null,null,null," - "]
[null,null,null,null,null," - "]
[null,null,null,null,null," - "]
[null,null,null,null,null," - "]
[null,null,null,null,null," - "]
[null,null,null,null,null," - "]
[null,null,null,null,null," - "]
[null,null,null,null,null," - "]
[null,null,null,null,null," - "]
[null,null,null,null,null," - "]
[null,null,null,null,null," - "]
[null,null,null,null,null," - "]
[null,null,null,null,null," - "]
[null,null,null,null,null," - "]
[null,null,null,null,null," - "]
[null,null,null,null,null," - "]
[null,null,null,null,null," - "]
[null,null,null,null,null," - "]
[null,null,null,null,null," - "]
[null,null,null,null,null," - "]
[null,null,null,null,null," - "]
[null,null,null,null,null," - "]
[null,null,null,null,null," - "]
[null,null,null,null,null," - "]
[null,null,null,null,null," - "]
[null,null,null,null,null," - "]
[null,null,null,null,null," - "]
[null,null,null,null,null," - "]
[null,null,null,null,null," - "]
[null,null,null,null,null," - "]
[null,null,null,null,null," - "]
[null,null,null,null,null," - "]
[null,null,null,null,null," - "]
[null,null,null,null,null," - "]
[null,null,null,null,null," - "]
[null,null,null,null,null," - "]
[null,null,null,null,null," - "]
[null,null,null,null,null," - "]
[null,null,null,null,null," - "]
[null,null,null,null,null," - "]
[null,null,null,null,null," - "]
[null,null,null,null,null," - "]
[null,null,null,null,null," - "]
[null,null,null,null,null," - "]
[null,null,null,null,null," - "]
[null,null,null,null,null," - "]
[null,null,null,null,null," - "]
[null,null,null,null,null," - "]
[null,null,null,null,null," - "]
[null,null,null,null,null," - "]
[null,null,null,null,null," - "]
[null,null,null,null,null," - "]
[null,null,null,null,null," - "]
[null,null,null,null,null," - "]
[null,null,null,null,null," - "]
[null,null,null,null,null," - "]
[null,null,null,null,null," - "]
[null,null,null,null,null," - "]
[null,null,null,null,null," - "]
[null,null,null,null,null," - "]
[null,null,null,null,null," - "]
[null,null,null,null,null,{"$f":"CONCATENATE(B1847,\" - \",C1847)","v":" - "}]
[null,null,null,null,null," - "]
[null,null,null,null,null," - "]
[null,null,null,null,null," - "]
[null,null,null,null,null," - "]
[null,null,null,null,null," - "]
[null,null,null,null,null," - "]
[null,null,null,null,null," - "]
[null,null,null,null,null," - "]
[null,null,null,null,null," - "]
[null,null,null,null,null," - "]
[null,null,null,null,null," - "]
[null,null,null,null,null," - "]
[null,null,null,null,null," - "]
[null,null,null,null,null," - "]
[null,null,null,null,null," - "]
[null,null,null,null,null," - "]
[null,null,null,null,null," - "]
[null,null,null,null,null," - "]
[null,null,null,null,null," - "]
[null,null,null,null,null," - "]
[null,null,null,null,null," - "]
[null,null,null,null,null," - "]
[null,null,null,null,null," - "]
[null,null,null,null,null," - "]
[null,null,null,null,null," - "]
[null,null,null,null,null," - "]
[null,null,null,null,null," - "]
[null,null,null,null,null," - "]
[null,null,null,null,null," - "]
[null,null,null,null,null," - "]
[null,null,null,null,null," - "]
[null,null,null,null,null," - "]
[null,null,null,null,null," - "]
[null,null,null,null,null," - "]
[null,null,null,null,null," - "]
[null,null,null,null,null," - "]
[null,null,null,null,null," - "]
[null,null,null,null,null," - "]
[null,null,null,null,null," - "]
[null,null,null,null,null," - "]
[null,null,null,null,null," - "]
[null,null,null,null,null," - "]
[null,null,null,null,null," - "]
[null,null,null,null,null," - "]
[null,null,null,null,null," - "]
[null,null,null,null,null," - "]
[null,null,null,null,null," - "]
[null,null,null,null,null," - "]
[null,null,null,null,null," - "]
[null,null,null,null,null," - "]
[null,null,null,null,null," - "]
[null,null,null,null,null," - "]
[null,null,null,null,null," - "]
[null,null,null,null,null," - "]
[null,null,null,null,null," - "]
[null,null,null,null,null," - "]
[null,null,null,null,null," - "]
[null,null,null,null,null," - "]
[null,null,null,null,null," - "]
[null,null,null,null,null," - "]
[null,null,null,null,null," - "]
[null,null,null,null,null," - "]
[null,null,null,null,null," - "]
[null,null,null,null,null,{"$f":"CONCATENATE(B1911,\" - \",C1911)","v":" - "}]
[null,null,null,null,null," - "]
[null,null,null,null,null," - "]
[null,null,null,null,null," - "]
[null,null,null,null,null," - "]
[null,null,null,null,null," - "]
[null,null,null,null,null," - "]
[null,null,null,null,null," - "]
[null,null,null,null,null," - "]
[null,null,null,null,null," - "]
[null,null,null,null,null," - "]
[null,null,null,null,null," - "]
[null,null,null,null,null," - "]
[null,null,null,null,null," - "]
[null,null,null,null,null," - "]
[null,null,null,null,null," - "]
[null,null,null,null,null," - "]
[null,null,null,null,null," - "]
[null,null,null,null,null," - "]
[null,null,null,null,null," - "]
[null,null,null,null,null," - "]
[null,null,null,null,null," - "]
[null,null,null,null,null," - "]
[null,null,null,null,null," - "]
[null,null,null,null,null," - "]
[null,null,null,null,null," - "]
[null,null,null,null,null," - "]
[null,null,null,null,null," - "]
[null,null,null,null,null," - "]
[null,null,null,null,null," - "]
[null,null,null,null,null," - "]
[null,null,null,null,null," - "]
[null,null,null,null,null," - "]
[null,null,null,null,null," - "]
[null,null,null,null,null," - "]
[null,null,null,null,null," - "]
[null,null,null,null,null," - "]
[null,null,null,null,null," - "]
[null,null,null,null,null," - "]
[null,null,null,null,null," - "]
[null,null,null,null,null," - "]
[null,null,null,null,null," - "]
[null,null,null,null,null," - "]
[null,null,null,null,null," - "]
[null,null,null,null,null," - "]
[null,null,null,null,null," - "]
[null,null,null,null,null," - "]
[null,null,null,null,null," - "]
[null,null,null,null,null," - "]
[null,null,null,null,null," - "]
[null,null,null,null,null," - "]
[null,null,null,null,null," - "]
[null,null,null,null,null," - "]
[null,null,null,null,null," - "]
[null,null,null,null,null," - "]
[null,null,null,null,null," - "]
[null,null,null,null,null," - "]
[null,null,null,null,null," - "]
[null,null,null,null,null," - "]
[null,null,null,null,null," - "]
[null,null,null,null,null," - "]
[null,null,null,null,null," - "]
[null,null,null,null,null," - "]
[null,null,null,null,null," - "]
[null,null,null,null,null,{"$f":"CONCATENATE(B1975,\" - \",C1975)","v":" - "}]
[null,null,null,null,null," - "]
[null,null,null,null,null," - "]
[null,null,null,null,null," - "]
[null,null,null,null,null," - "]
[null,null,null,null,null," - "]
[null,null,null,null,null," - "]
[null,null,null,null,null," - "]
[null,null,null,null,null," - "]
[null,null,null,null,null," - "]
[null,null,null,null,null," - "]
[null,null,null,null,null," - "]
[null,null,null,null,null," - "]
[null,null,null,null,null," - "]
[null,null,null,null,null," - "]
[null,null,null,null,null," - "]
[null,null,null,null,null," - "]
[null,null,null,null,null," - "]
[null,null,null,null,null," - "]
[null,null,null,null,null," - "]
[null,null,null,null,null," - "]
[null,null,null,null,null," - "]
[null,null,null,null,null," - "]
[null,null,null,null,null," - "]
[null,null,null,null,null," - "]
[null,null,null,null,null," - "]
[null,null,null,null,null," - "]
[null,null,null,null,null," - "]
[null,null,null,null,null," - "]
[null,null,null,null,null," - "]
[null,null,null,null,null," - "]
[null,null,null,null,null," - "]
[null,null,null,null,null," - "]
[null,null,null,null,null," - "]
[null,null,null,null,null," - "]
[null,null,null,null,null," - "]
[null,null,null,null,null," - "]
[null,null,null,null,null," - "]
[null,null,null,null,null," - "]
[null,null,null,null,null," - "]
[null,null,null,null,null," - "]
[null,null,null,null,null," - "]
[null,null,null,null,null," - "]
[null,null,null,null,null," - "]
[null,null,null,null,null," - "]
[null,null,null,null,null," - "]
[null,null,null,null,null," - "]
[null,null,null,null,null," - "]
[null,null,null,null,null," - "]
[null,null,null,null,null," - "]
[null,null,null,null,null," - "]
[null,null,null,null,null," - "]
[null,null,null,null,null," - "]
[null,null,null,null,null," - "]
[null,null,null,null,null," - "]
[null,null,null,null,null," - "]
[null,null,null,null,null," - "]
[null,null,null,null,null," - "]
[null,null,null,null,null," - "]
[null,null,null,null,null," - "]
[null,null,null,null,null," - "]
[null,null,null,null,null," - "]
[null,null,null,null,null," - "]
[null,null,null,null,null," - "]
[null,null,null,null,null,{"$f":"CONCATENATE(B2039,\" - \",C2039)","v":" - "}]
[null,null,null,null,null," - "]
[null,null,null,null,null," - "]
[null,null,null,null,null," - "]
[null,null,null,null,null," - "]
[null,null,null,null,null," - "]
[null,null,null,null,null," - "]
[null,null,null,null,null," - "]
[null,null,null,null,null," - "]
[null,null,null,null,null," - "]
[null,null,null,null,null," - "]
[null,null,null,null,null," - "]
[null,null,null,null,null," - "]
[null,null,null,null,null," - "]
[null,null,null,null,null," - "]
[null,null,null,null,null," - "]
[null,null,null,null,null," - "]
[null,null,null,null,null," - "]
[null,null,null,null,null," - "]
[null,null,null,null,null," - "]
[null,null,null,null,null," - "]
[null,null,null,null,null," - "]
[null,null,null,null,null," - "]
[null,null,null,null,null," - "]
[null,null,null,null,null," - "]
[null,null,null,null,null," - "]
[null,null,null,null,null," - "]
[null,null,null,null,null," - "]
[null,null,null,null,null," - "]
[null,null,null,null,null," - "]
[null,null,null,null,null," - "]
[null,null,null,null,null," - "]
[null,null,null,null,null," - "]
[null,null,null,null,null," - "]
[null,null,null,null,null," - "]
[null,null,null,null,null," - "]
[null,null,null,null,null," - "]
[null,null,null,null,null," - "]
[null,null,null,null,null," - "]
[null,null,null,null,null," - "]
[null,null,null,null,null," - "]
[null,null,null,null,null," - "]
[null,null,null,null,null," - "]
[null,null,null,null,null," - "]
[null,null,null,null,null," - "]
[null,null,null,null,null," - "]
[null,null,null,null,null," - "]
[null,null,null,null,null," - "]
[null,null,null,null,null," - "]
[null,null,null,null,null," - "]
[null,null,null,null,null," - "]
[null,null,null,null,null," - "]
[null,null,null,null,null," - "]
[null,null,null,null,null," - "]
[null,null,null,null,null," - "]
[null,null,null,null,null," - "]
[null,null,null,null,null," - "]
[null,null,null,null,null," - "]
[null,null,null,null,null," - "]
[null,null,null,null,null," - "]
[null,null,null,null,null," - "]
[null,null,null,null,null," - "]
[null,null,null,null,null," - "]
[null,null,null,null,null," - "]
[null,null,null,null,null,{"$f":"CONCATENATE(B2103,\" - \",C2103)","v":" - "}]
[null,null,null,null,null," - "]
[null,null,null,null,null," - "]
[null,null,null,null,null," - "]
[null,null,null,null,null," - "]
[null,null,null,null,null," - "]
[null,null,null,null,null," - "]
[null,null,null,null,null," - "]
[null,null,null,null,null," - "]
[null,null,null,null,null," - "]
[null,null,null,null,null," - "]
[null,null,null,null,null," - "]
[null,null,null,null,null," - "]
[null,null,null,null,null," - "]
[null,null,null,null,null," - "]
[null,null,null,null,null," - "]
[null,null,null,null,null," - "]
[null,null,null,null,null," - "]
[null,null,null,null,null," - "]
[null,null,null,null,null," - "]
[null,null,null,null,null," - "]
[null,null,null,null,null," - "]
[null,null,null,null,null," - "]
[null,null,null,null,null," - "]
[null,null,null,null,null," - "]
[null,null,null,null,null," - "]
[null,null,null,null,null," - "]
[null,null,null,null,null," - "]
[null,null,null,null,null," - "]
[null,null,null,null,null," - "]
[null,null,null,null,null," - "]
[null,null,null,null,null," - "]
[null,null,null,null,null," - "]
[null,null,null,null,null," - "]
[null,null,null,null,null," - "]
[null,null,null,null,null," - "]
[null,null,null,null,null," - "]
[null,null,null,null,null," - "]
[null,null,null,null,null," - "]
[null,null,null,null,null," - "]
[null,null,null,null,null," - "]
[null,null,null,null,null," - "]
[null,null,null,null,null," - "]
[null,null,null,null,null," - "]
[null,null,null,null,null," - "]
[null,null,null,null,null," - "]
[null,null,null,null,null," - "]
[null,null,null,null,null," - "]
[null,null,null,null,null," - "]
[null,null,null,null,null," - "]
[null,null,null,null,null," - "]
[null,null,null,null,null," - "]
[null,null,null,null,null," - "]
[null,null,null,null,null," - "]
[null,null,null,null,null," - "]
[null,null,null,null,null," - "]
[null,null,null,null,null," - "]
[null,null,null,null,null," - "]
[null,null,null,null,null," - "]
[null,null,null,null,null," - "]
[null,null,null,null,null," - "]
[null,null,null,null,null," - "]
[null,null,null,null,null," - "]
[null,null,null,null,null," - "]
[null,null,null,null,null,{"$f":"CONCATENATE(B2167,\" - \",C2167)","v":" - "}]
[null,null,null,null,null," - "]
[null,null,null,null,null," - "]
[null,null,null,null,null," - "]
[null,null,null,null,null," - "]
[null,null,null,null,null," - "]
[null,null,null,null,null," - "]
[null,null,null,null,null," - "]
[null,null,null,null,null," - "]
[null,null,null,null,null," - "]
[null,null,null,null,null," - "]
[null,null,null,null,null," - "]
[null,null,null,null,null," - "]
[null,null,null,null,null," - "]
[null,null,null,null,null," - "]
[null,null,null,null,null," - "]
[null,null,null,null,null," - "]
[null,null,null,null,null," - "]
[null,null,null,null,null," - "]
[null,null,null,null,null," - "]
[null,null,null,null,null," - "]
[null,null,null,null,null," - "]
[null,null,null,null,null," - "]
[null,null,null,null,null," - "]
[null,null,null,null,null," - "]
[null,null,null,null,null," - "]
[null,null,null,null,null," - "]
[null,null,null,null,null," - "]
[null,null,null,null,null," - "]
[null,null,null,null,null," - "]
[null,null,null,null,null," - "]
[null,null,null,null,null," - "]
[null,null,null,null,null," - "]
[null,null,null,null,null," - "]
[null,null,null,null,null," - "]
[null,null,null,null,null," - "]
[null,null,null,null,null," - "]
[null,null,null,null,null," - "]
[null,null,null,null,null," - "]
[null,null,null,null,null," - "]
[null,null,null,null,null," - "]
[null,null,null,null,null," - "]
[null,null,null,null,null," - "]
[null,null,null,null,null," - "]
[null,null,null,null,null," - "]
[null,null,null,null,null," - "]
[null,null,null,null,null," - "]
[null,null,null,null,null," - "]
[null,null,null,null,null," - "]
[null,null,null,null,null," - "]
[null,null,null,null,null," - "]
[null,null,null,null,null," - "]
[null,null,null,null,null," - "]
[null,null,null,null,null," - "]
[null,null,null,null,null," - "]
[null,null,null,null,null," - "]
[null,null,null,null,null," - "]
[null,null,null,null,null," - "]
[null,null,null,null,null," - "]
[null,null,null,null,null," - "]
[null,null,null,null,null," - "]
[null,null,null,null,null," - "]
[null,null,null,null,null," - "]
[null,null,null,null,null," - "]
[null,null,null,null,null,{"$f":"CONCATENATE(B2231,\" - \",C2231)","v":" - "}]
[null,null,null,null,null," - "]
[null,null,null,null,null," - "]
[null,null,null,null,null," - "]
[null,null,null,null,null," - "]
[null,null,null,null,null," - "]
[null,null,null,null,null," - "]
[null,null,null,null,null," - "]
[null,null,null,null,null," - "]
[null,null,null,null,null," - "]
[null,null,null,null,null," - "]
[null,null,null,null,null," - "]
[null,null,null,null,null," - "]
[null,null,null,null,null," - "]
[null,null,null,null,null," - "]
[null,null,null,null,null," - "]
[null,null,null,null,null," - "]
[null,null,null,null,null," - "]
[null,null,null,null,null," - "]
[null,null,null,null,null," - "]
[null,null,null,null,null," - "]
[null,null,null,null,null," - "]
[null,null,null,null,null," - "]
[null,null,null,null,null," - "]
[null,null,null,null,null," - "]
[null,null,null,null,null," - "]
[null,null,null,null,null," - "]
[null,null,null,null,null," - "]
[null,null,null,null,null," - "]
[null,null,null,null,null," - "]
[null,null,null,null,null," - "]
[null,null,null,null,null," - "]
[null,null,null,null,null," - "]
[null,null,null,null,null," - "]
[null,null,null,null,null," - "]
[null,null,null,null,null," - "]
[null,null,null,null,null," - "]
[null,null,null,null,null," - "]
[null,null,null,null,null," - "]
[null,null,null,null,null," - "]
[null,null,null,null,null," - "]
[null,null,null,null,null," - "]
[null,null,null,null,null," - "]
[null,null,null,null,null," - "]
[null,null,null,null,null," - "]
[null,null,null,null,null," - "]
[null,null,null,null,null," - "]
[null,null,null,null,null," - "]
[null,null,null,null,null," - "]
[null,null,null,null,null," - "]
[null,null,null,null,null," - "]
[null,null,null,null,null," - "]
[null,null,null,null,null," - "]
[null,null,null,null,null," - "]
[null,null,null,null,null," - "]
[null,null,null,null,null," - "]
[null,null,null,null,null," - "]
[null,null,null,null,null," - "]
[null,null,null,null,null," - "]
[null,null,null,null,null," - "]
[null,null,null,null,null," - "]
[null,null,null,null,null," - "]
[null,null,null,null,null," - "]
[null,null,null,null,null," - "]
[null,null,null,null,null,{"$f":"CONCATENATE(B2295,\" - \",C2295)","v":" - "}]
[null,null,null,null,null," - "]
[null,null,null,null,null," - "]
[null,null,null,null,null," - "]
[null,null,null,null,null," - "]
[null,null,null,null,null," - "]
[null,null,null,null,null," - "]
[null,null,null,null,null," - "]
[null,null,null,null,null," - "]
[null,null,null,null,null," - "]
[null,null,null,null,null," - "]
[null,null,null,null,null," - "]
[null,null,null,null,null," - "]
[null,null,null,null,null," - "]
[null,null,null,null,null," - "]
[null,null,null,null,null," - "]
[null,null,null,null,null," - "]
[null,null,null,null,null," - "]
[null,null,null,null,null," - "]
[null,null,null,null,null," - "]
[null,null,null,null,null," - "]
[null,null,null,null,null," - "]
[null,null,null,null,null," - "]
[null,null,null,null,null," - "]
[null,null,null,null,null," - "]
[null,null,null,null,null," - "]
[null,null,null,null,null," - "]
[null,null,null,null,null," - "]
[null,null,null,null,null," - "]
[null,null,null,null,null," - "]
[null,null,null,null,null," - "]
[null,null,null,null,null," - "]
[null,null,null,null,null," - "]
[null,null,null,null,null," - "]
[null,null,null,null,null," - "]
[null,null,null,null,null," - "]
[null,null,null,null,null," - "]
[null,null,null,null,null," - "]
[null,null,null,null,null," - "]
[null,null,null,null,null," - "]
[null,null,null,null,null," - "]
[null,null,null,null,null," - "]
[null,null,null,null,null," - "]
[null,null,null,null,null," - "]
[null,null,null,null,null," - "]
[null,null,null,null,null," - "]
[null,null,null,null,null," - "]
[null,null,null,null,null," - "]
[null,null,null,null,null," - "]
[null,null,null,null,null," - "]
[null,null,null,null,null," - "]
[null,null,null,null,null," - "]
[null,null,null,null,null," - "]
[null,null,null,null,null," - "]
[null,null,null,null,null," - "]
[null,null,null,null,null," - "]
[null,null,null,null,null," - "]
[null,null,null,null,null," - "]
[null,null,null,null,null," - "]
[null,null,null,null,null," - "]
[null,null,null,null,null," - "]
[null,null,null,null,null," - "]
[null,null,null,null,null," - "]
[null,null,null,null,null," - "]
[null,null,null,null,null,{"$f":"CONCATENATE(B2359,\" - \",C2359)","v":" - "}]
[null,null,null,null,null," - "]
[null,null,null,null,null," - "]
[null,null,null,null,null," - "]
[null,null,null,null,null," - "]
[null,null,null,null,null," - "]
[null,null,null,null,null," - "]
[null,null,null,null,null," - "]
[null,null,null,null,null," - "]
[null,null,null,null,null," - "]
[null,null,null,null,null," - "]
[null,null,null,null,null," - "]
[null,null,null,null,null," - "]
[null,null,null,null,null," - "]
[null,null,null,null,null," - "]
[null,null,null,null,null," - "]
[null,null,null,null,null," - "]
[null,null,null,null,null," - "]
[null,null,null,null,null," - "]
[null,null,null,null,null," - "]
[null,null,null,null,null," - "]
[null,null,null,null,null," - "]
[null,null,null,null,null," - "]
[null,null,null,null,null," - "]
[null,null,null,null,null," - "]
[null,null,null,null,null," - "]
[null,null,null,null,null," - "]
[null,null,null,null,null," - "]
[null,null,null,null,null," - "]
[null,null,null,null,null," - "]
[null,null,null,null,null," - "]
[null,null,null,null,null," - "]
[null,null,null,null,null," - "]
[null,null,null,null,null," - "]
[null,null,null,null,null," - "]
[null,null,null,null,null," - "]
[null,null,null,null,null," - "]
[null,null,null,null,null," - "]
[null,null,null,null,null," - "]
[null,null,null,null,null," - "]
[null,null,null,null,null," - "]
[null,null,null,null,null," - "]
[null,null,null,null,null," - "]
[null,null,null,null,null," - "]
[null,null,null,null,null," - "]
[null,null,null,null,null," - "]
[null,null,null,null,null," - "]
[null,null,null,null,null," - "]
[null,null,null,null,null," - "]
[null,null,null,null,null," - "]
[null,null,null,null,null," - "]
[null,null,null,null,null," - "]
[null,null,null,null,null," - "]
[null,null,null,null,null," - "]
[null,null,null,null,null," - "]
[null,null,null,null,null," - "]
[null,null,null,null,null," - "]
[null,null,null,null,null," - "]
[null,null,null,null,null," - "]
[null,null,null,null,null," - "]
[null,null,null,null,null," - "]
[null,null,null,null,null," - "]
[null,null,null,null,null," - "]
[null,null,null,null,null," - "]
[null,null,null,null,null,{"$f":"CONCATENATE(B2423,\" - \",C2423)","v":" - "}]
[null,null,null,null,null," - "]
[null,null,null,null,null," - "]
[null,null,null,null,null," - "]
[null,null,null,null,null," - "]
[null,null,null,null,null," - "]
[null,null,null,null,null," - "]
[null,null,null,null,null," - "]
[null,null,null,null,null," - "]
[null,null,null,null,null," - "]
[null,null,null,null,null," - "]
[null,null,null,null,null," - "]
[null,null,null,null,null," - "]
[null,null,null,null,null," - "]
[null,null,null,null,null," - "]
[null,null,null,null,null," - "]
[null,null,null,null,null," - "]
[null,null,null,null,null," - "]
[null,null,null,null,null," - "]
[null,null,null,null,null," - "]
[null,null,null,null,null," - "]
[null,null,null,null,null," - "]
[null,null,null,null,null," - "]
[null,null,null,null,null," - "]
[null,null,null,null,null," - "]
[null,null,null,null,null," - "]
[null,null,null,null,null," - "]
[null,null,null,null,null," - "]
[null,null,null,null,null," - "]
[null,null,null,null,null," - "]
[null,null,null,null,null," - "]
[null,null,null,null,null," - "]
[null,null,null,null,null," - "]
[null,null,null,null,null," - "]
[null,null,null,null,null," - "]
[null,null,null,null,null," - "]
[null,null,null,null,null," - "]
[null,null,null,null,null," - "]
[null,null,null,null,null," - "]
[null,null,null,null,null," - "]
[null,null,null,null,null," - "]
[null,null,null,null,null," - "]
[null,null,null,null,null," - "]
[null,null,null,null,null," - "]
[null,null,null,null,null," - "]
[null,null,null,null,null," - "]
[null,null,null,null,null," - "]
[null,null,null,null,null," - "]
[null,null,null,null,null," - "]
[null,null,null,null,null," - "]
[null,null,null,null,null," - "]
[null,null,null,null,null," - "]
[null,null,null,null,null," - "]
[null,null,null,null,null," - "]
[null,null,null,null,null," - "]
[null,null,null,null,null," - "]
[null,null,null,null,null," - "]
[null,null,null,null,null," - "]
[null,null,null,null,null," - "]
[null,null,null,null,null," - "]
[null,null,null,null,null," - "]
[null,null,null,null,null," - "]
[null,null,null,null,null," - "]
[null,null,null,null,null," - "]
[null,null,null,null,null,{"$f":"CONCATENATE(B2487,\" - \",C2487)","v":" - "}]
[null,null,null,null,null," - "]
[null,null,null,null,null," - "]
[null,null,null,null,null," - "]
[null,null,null,null,null," - "]
[null,null,null,null,null," - "]
[null,null,null,null,null," - "]
[null,null,null,null,null," - "]
[null,null,null,null,null," - "]
[null,null,null,null,null," - "]
[null,null,null,null,null," - "]
[null,null,null,null,null," - "]
[null,null,null,null,null," - "]
[null,null,null,null,null," - "]
[null,null,null,null,null," - "]
[null,null,null,null,null," - "]
[null,null,null,null,null," - "]
[null,null,null,null,null," - "]
[null,null,null,null,null," - "]
[null,null,null,null,null," - "]
[null,null,null,null,null," - "]
[null,null,null,null,null," - "]
[null,null,null,null,null," - "]
[null,null,null,null,null," - "]
[null,null,null,null,null," - "]
[null,null,null,null,null," - "]
[null,null,null,null,null," - "]
[null,null,null,null,null," - "]
[null,null,null,null,null," - "]
[null,null,null,null,null," - "]
[null,null,null,null,null," - "]
[null,null,null,null,null," - "]
[null,null,null,null,null," - "]
[null,null,null,null,null," - "]
[null,null,null,null,null," - "]
[null,null,null,null,null," - "]
[null,null,null,null,null," - "]
[null,null,null,null,null," - "]
[null,null,null,null,null," - "]
[null,null,null,null,null," - "]
[null,null,null,null,null," - "]
[null,null,null,null,null," - "]
[null,null,null,null,null," - "]
[null,null,null,null,null," - "]
[null,null,null,null,null," - "]
[null,null,null,null,null," - "]
[null,null,null,null,null," - "]
[null,null,null,null,null," - "]
[null,null,null,null,null," - "]
[null,null,null,null,null," - "]
[null,null,null,null,null," - "]
[null,null,null,null,null," - "]
[null,null,null,null,null," - "]
[null,null,null,null,null," - "]
[null,null,null,null,null," - "]
[null,null,null,null,null," - "]
[null,null,null,null,null," - "]
[null,null,null,null,null," - "]
[null,null,null,null,null," - "]
[null,null,null,null,null," - "]
[null,null,null,null,null," - "]
[null,null,null,null,null," - "]
[null,null,null,null,null," - "]
[null,null,null,null,null," - "]
[null,null,null,null,null,{"$f":"CONCATENATE(B2551,\" - \",C2551)","v":" - "}]
[null,null,null,null,null," - "]
[null,null,null,null,null," - "]
[null,null,null,null,null," - "]
[null,null,null,null,null," - "]
[null,null,null,null,null," - "]
[null,null,null,null,null," - "]
[null,null,null,null,null," - "]
[null,null,null,null,null," - "]
[null,null,null,null,null," - "]
[null,null,null,null,null," - "]
[null,null,null,null,null," - "]
[null,null,null,null,null," - "]
[null,null,null,null,null," - "]
[null,null,null,null,null," - "]
[null,null,null,null,null," - "]
[null,null,null,null,null," - "]
[null,null,null,null,null," - "]
[null,null,null,null,null," - "]
[null,null,null,null,null," - "]
[null,null,null,null,null," - "]
[null,null,null,null,null," - "]
[null,null,null,null,null," - "]
[null,null,null,null,null," - "]
[null,null,null,null,null," - "]
[null,null,null,null,null," - "]
[null,null,null,null,null," - "]
[null,null,null,null,null," - "]
[null,null,null,null,null," - "]
[null,null,null,null,null," - "]
[null,null,null,null,null," - "]
[null,null,null,null,null," - "]
[null,null,null,null,null," - "]
[null,null,null,null,null," - "]
[null,null,null,null,null," - "]
[null,null,null,null,null," - "]
[null,null,null,null,null," - "]
[null,null,null,null,null," - "]
[null,null,null,null,null," - "]
[null,null,null,null,null," - "]
[null,null,null,null,null," - "]
[null,null,null,null,null," - "]
[null,null,null,null,null," - "]
[null,null,null,null,null," - "]
[null,null,null,null,null," - "]
[null,null,null,null,null," - "]
[null,null,null,null,null," - "]
[null,null,null,null,null," - "]
[null,null,null,null,null," - "]
[null,null,null,null,null," - "]
[null,null,null,null,null," - "]
[null,null,null,null,null," - "]
[null,null,null,null,null," - "]
[null,null,null,null,null," - "]
[null,null,null,null,null," - "]
[null,null,null,null,null," - "]
[null,null,null,null,null," - "]
[null,null,null,null,null," - "]
[null,null,null,null,null," - "]
[null,null,null,null,null," - "]
[null,null,null,null,null," - "]
[null,null,null,null,null," - "]
[null,null,null,null,null," - "]
[null,null,null,null,null," - "]
[null,null,null,null,null,{"$f":"CONCATENATE(B2615,\" - \",C2615)","v":" - "}]
[null,null,null,null,null," - "]
[null,null,null,null,null," - "]
[null,null,null,null,null," - "]
[null,null,null,null,null," - "]
[null,null,null,null,null," - "]
[null,null,null,null,null," - "]
[null,null,null,null,null," - "]
[null,null,null,null,null," - "]
[null,null,null,null,null," - "]
[null,null,null,null,null," - "]
[null,null,null,null,null," - "]
[null,null,null,null,null," - "]
[null,null,null,null,null," - "]
[null,null,null,null,null," - "]
[null,null,null,null,null," - "]
[null,null,null,null,null," - "]
[null,null,null,null,null," - "]
[null,null,null,null,null," - "]
[null,null,null,null,null," - "]
[null,null,null,null,null," - "]
[null,null,null,null,null," - "]
[null,null,null,null,null," - "]
[null,null,null,null,null," - "]
[null,null,null,null,null," - "]
[null,null,null,null,null," - "]
[null,null,null,null,null," - "]
[null,null,null,null,null," - "]
[null,null,null,null,null," - "]
[null,null,null,null,null," - "]
[null,null,null,null,null," - "]
[null,null,null,null,null," - "]
[null,null,null,null,null," - "]
[null,null,null,null,null," - "]
[null,null,null,null,null," - "]
[null,null,null,null,null," - "]
[null,null,null,null,null," - "]
[null,null,null,null,null," - "]
[null,null,null,null,null," - "]
[null,null,null,null,null," - "]
[null,null,null,null,null," - "]
[null,null,null,null,null," - "]
[null,null,null,null,null," - "]
[null,null,null,null,null," - "]
[null,null,null,null,null," - "]
[null,null,null,null,null," - "]
[null,null,null,null,null," - "]
[null,null,null,null,null," - "]
[null,null,null,null,null," - "]
[null,null,null,null,null," - "]
[null,null,null,null,null," - "]
[null,null,null,null,null," - "]
[null,null,null,null,null," - "]
[null,null,null,null,null," - "]
[null,null,null,null,null," - "]
[null,null,null,null,null," - "]
[null,null,null,null,null," - "]
[null,null,null,null,null," - "]
[null,null,null,null,null," - "]
[null,null,null,null,null," - "]
[null,null,null,null,null," - "]
[null,null,null,null,null," - "]
[null,null,null,null,null," - "]
[null,null,null,null,null," - "]
[null,null,null,null,null,{"$f":"CONCATENATE(B2679,\" - \",C2679)","v":" - "}]
[null,null,null,null,null," - "]
[null,null,null,null,null," - "]
[null,null,null,null,null," - "]
[null,null,null,null,null," - "]
[null,null,null,null,null," - "]
[null,null,null,null,null," - "]
[null,null,null,null,null," - "]
[null,null,null,null,null," - "]
[null,null,null,null,null," - "]
[null,null,null,null,null," - "]
[null,null,null,null,null," - "]
[null,null,null,null,null," - "]
[null,null,null,null,null," - "]
[null,null,null,null,null," - "]
[null,null,null,null,null," - "]
[null,null,null,null,null," - "]
[null,null,null,null,null," - "]
[null,null,null,null,null," - "]
[null,null,null,null,null," - "]
[null,null,null,null,null," - "]
[null,null,null,null,null," - "]
[null,null,null,null,null," - "]
[null,null,null,null,null," - "]
[null,null,null,null,null," - "]
[null,null,null,null,null," - "]
[null,null,null,null,null," - "]
[null,null,null,null,null," - "]
[null,null,null,null,null," - "]
[null,null,null,null,null," - "]
[null,null,null,null,null," - "]
[null,null,null,null,null," - "]
[null,null,null,null,null," - "]
[null,null,null,null,null," - "]
[null,null,null,null,null," - "]
[null,null,null,null,null," - "]
[null,null,null,null,null," - "]
[null,null,null,null,null," - "]
[null,null,null,null,null," - "]
[null,null,null,null,null," - "]
[null,null,null,null,null," - "]
[null,null,null,null,null," - "]
[null,null,null,null,null," - "]
[null,null,null,null,null," - "]
[null,null,null,null,null," - "]
[null,null,null,null,null," - "]
[null,null,null,null,null," - "]
[null,null,null,null,null," - "]
[null,null,null,null,null," - "]
[null,null,null,null,null," - "]
[null,null,null,null,null," - "]
[null,null,null,null,null," - "]
[null,null,null,null,null," - "]
[null,null,null,null,null," - "]
[null,null,null,null,null," - "]
[null,null,null,null,null," - "]
[null,null,null,null,null," - "]
[null,null,null,null,null," - "]
[null,null,null,null,null," - "]
[null,null,null,null,null," - "]
[null,null,null,null,null," - "]
[null,null,null,null,null," - "]
[null,null,null,null,null," - "]
[null,null,null,null,null," - "]
[null,null,null,null,null,{"$f":"CONCATENATE(B2743,\" - \",C2743)","v":" - "}]
[null,null,null,null,null," - "]
[null,null,null,null,null," - "]
[null,null,null,null,null," - "]
[null,null,null,null,null," - "]
[null,null,null,null,null," - "]
[null,null,null,null,null," - "]
[null,null,null,null,null," - "]
[null,null,null,null,null," - "]
[null,null,null,null,null," - "]
[null,null,null,null,null," - "]
[null,null,null,null,null," - "]
[null,null,null,null,null," - "]
[null,null,null,null,null," - "]
[null,null,null,null,null," - "]
[null,null,null,null,null," - "]
[null,null,null,null,null," - "]
[null,null,null,null,null," - "]
[null,null,null,null,null," - "]
[null,null,null,null,null," - "]
[null,null,null,null,null," - "]
[null,null,null,null,null," - "]
[null,null,null,null,null," - "]
[null,null,null,null,null," - "]
[null,null,null,null,null," - "]
[null,null,null,null,null," - "]
[null,null,null,null,null," - "]
[null,null,null,null,null," - "]
[null,null,null,null,null," - "]
[null,null,null,null,null," - "]
[null,null,null,null,null," - "]
[null,null,null,null,null," - "]
[null,null,null,null,null," - "]
[null,null,null,null,null," - "]
[null,null,null,null,null," - "]
[null,null,null,null,null," - "]
[null,null,null,null,null," - "]
[null,null,null,null,null," - "]
[null,null,null,null,null," - "]
[null,null,null,null,null," - "]
[null,null,null,null,null," - "]
[null,null,null,null,null," - "]
[null,null,null,null,null," - "]
[null,null,null,null,null," - "]
[null,null,null,null,null," - "]
[null,null,null,null,null," - "]
[null,null,null,null,null," - "]
[null,null,null,null,null," - "]
[null,null,null,null,null," - "]
[null,null,null,null,null," - "]
[null,null,null,null,null," - "]
[null,null,null,null,null," - "]
[null,null,null,null,null," - "]
[null,null,null,null,null," - "]
[null,null,null,null,null," - "]
[null,null,null,null,null," - "]
[null,null,null,null,null," - "]
[null,null,null,null,null," - "]
[null,null,null,null,null," - "]
[null,null,null,null,null," - "]
[null,null,null,null,null," - "]
[null,null,null,null,null," - "]
[null,null,null,null,null," - "]
[null,null,null,null,null," - "]
[null,null,null,null,null,{"$f":"CONCATENATE(B2807,\" - \",C2807)","v":" - "}]
[null,null,null,null,null," - "]
[null,null,null,null,null," - "]
[null,null,null,null,null," - "]
[null,null,null,null,null," - "]
[null,null,null,null,null," - "]
[null,null,null,null,null," - "]
[null,null,null,null,null," - "]
[null,null,null,null,null," - "]
[null,null,null,null,null," - "]
[null,null,null,null,null," - "]
[null,null,null,null,null," - "]
[null,null,null,null,null," - "]
[null,null,null,null,null," - "]
[null,null,null,null,null," - "]
[null,null,null,null,null," - "]
[null,null,null,null,null," - "]
[null,null,null,null,null," - "]
[null,null,null,null,null," - "]
[null,null,null,null,null," - "]
[null,null,null,null,null," - "]
[null,null,null,null,null," - "]
[null,null,null,null,null," - "]
[null,null,null,null,null," - "]
[null,null,null,null,null," - "]
[null,null,null,null,null," - "]
[null,null,null,null,null," - "]
[null,null,null,null,null," - "]
[null,null,null,null,null," - "]
[null,null,null,null,null," - "]
[null,null,null,null,null," - "]
[null,null,null,null,null," - "]
[null,null,null,null,null," - "]
[null,null,null,null,null," - "]
[null,null,null,null,null," - "]
[null,null,null,null,null," - "]
[null,null,null,null,null," - "]
[null,null,null,null,null," - "]
[null,null,null,null,null," - "]
[null,null,null,null,null," - "]
[null,null,null,null,null," - "]
[null,null,null,null,null," - "]
[null,null,null,null,null," - "]
[null,null,null,null,null," - "]
[null,null,null,null,null," - "]
[null,null,null,null,null," - "]
[null,null,null,null,null," - "]
[null,null,null,null,null," - "]
[null,null,null,null,null," - "]
[null,null,null,null,null," - "]
[null,null,null,null,null," - "]
[null,null,null,null,null," - "]
[null,null,null,null,null," - "]
[null,null,null,null,null," - "]
[null,null,null,null,null," - "]
[null,null,null,null,null," - "]
[null,null,null,null,null," - "]
[null,null,null,null,null," - "]
[null,null,null,null,null," - "]
[null,null,null,null,null," - "]
[null,null,null,null,null," - "]
[null,null,null,null,null," - "]
[null,null,null,null,null," - "]
[null,null,null,null,null," - "]
[null,null,null,null,null,{"$f":"CONCATENATE(B2871,\" - \",C2871)","v":" - "}]
[null,null,null,null,null," - "]
[null,null,null,null,null," - "]
[null,null,null,null,null," - "]
[null,null,null,null,null," - "]
[null,null,null,null,null," - "]
[null,null,null,null,null," - "]
[null,null,null,null,null," - "]
[null,null,null,null,null," - "]
[null,null,null,null,null," - "]
[null,null,null,null,null," - "]
[null,null,null,null,null," - "]
[null,null,null,null,null," - "]
[null,null,null,null,null," - "]
[null,null,null,null,null," - "]
[null,null,null,null,null," - "]
[null,null,null,null,null," - "]
[null,null,null,null,null," - "]
[null,null,null,null,null," - "]
[null,null,null,null,null," - "]
[null,null,null,null,null," - "]
[null,null,null,null,null," - "]
[null,null,null,null,null," - "]
[null,null,null,null,null," - "]
[null,null,null,null,null," - "]
[null,null,null,null,null," - "]
[null,null,null,null,null," - "]
[null,null,null,null,null," - "]
[null,null,null,null,null," - "]
[null,null,null,null,null," - "]
[null,null,null,null,null," - "]
[null,null,null,null,null," - "]
[null,null,null,null,null," - "]
[null,null,null,null,null," - "]
[null,null,null,null,null," - "]
[null,null,null,null,null," - "]
[null,null,null,null,null," - "]
[null,null,null,null,null," - "]
[null,null,null,null,null," - "]
[null,null,null,null,null," - "]
[null,null,null,null,null," - "]
[null,null,null,null,null," - "]
[null,null,null,null,null," - "]
[null,null,null,null,null," - "]
[null,null,null,null,null," - "]
[null,null,null,null,null," - "]
[null,null,null,null,null," - "]
[null,null,null,null,null," - "]
[null,null,null,null,null," - "]
[null,null,null,null,null," - "]
[null,null,null,null,null," - "]
[null,null,null,null,null," - "]
[null,null,null,null,null," - "]
[null,null,null,null,null," - "]
[null,null,null,null,null," - "]
[null,null,null,null,null," - "]
[null,null,null,null,null," - "]
[null,null,null,null,null," - "]
[null,null,null,null,null," - "]
[null,null,null,null,null," - "]
[null,null,null,null,null," - "]
[null,null,null,null,null," - "]
[null,null,null,null,null," - "]
[null,null,null,null,null," - "]
[null,null,null,null,null,{"$f":"CONCATENATE(B2935,\" - \",C2935)","v":" - "}]
[null,null,null,null,null," - "]
[null,null,null,null,null," - "]
[null,null,null,null,null," - "]
[null,null,null,null,null," - "]
[null,null,null,null,null," - "]
[null,null,null,null,null," - "]
[null,null,null,null,null," - "]
[null,null,null,null,null," - "]
[null,null,null,null,null," - "]
[null,null,null,null,null," - "]
[null,null,null,null,null," - "]
[null,null,null,null,null," - "]
[null,null,null,null,null," - "]
[null,null,null,null,null," - "]
[null,null,null,null,null," - "]
[null,null,null,null,null," - "]
[null,null,null,null,null," - "]
[null,null,null,null,null," - "]
[null,null,null,null,null," - "]
[null,null,null,null,null," - "]
[null,null,null,null,null," - "]
[null,null,null,null,null," - "]
[null,null,null,null,null," - "]
[null,null,null,null,null," - "]
[null,null,null,null,null," - "]
[null,null,null,null,null," - "]
[null,null,null,null,null," - "]
[null,null,null,null,null," - "]
[null,null,null,null,null," - "]
[null,null,null,null,null," - "]
[null,null,null,null,null," - "]
[null,null,null,null,null," - "]
[null,null,null,null,null," - "]
[null,null,null,null,null," - "]
[null,null,null,null,null," - "]
[null,null,null,null,null," - "]
[null,null,null,null,null," - "]
[null,null,null,null,null," - "]
[null,null,null,null,null," - "]
[null,null,null,null,null," - "]
[null,null,null,null,null," - "]
[null,null,null,null,null," - "]
[null,null,null,null,null," - "]
[null,null,null,null,null," - "]
[null,null,null,null,null," - "]
[null,null,null,null,null," - "]
[null,null,null,null,null," - "]
[null,null,null,null,null," - "]
[null,null,null,null,null," - "]
[null,null,null,null,null," - "]
[null,null,null,null,null," - "]
[null,null,null,null,null," - "]
[null,null,null,null,null," - "]
[null,null,null,null,null," - "]
[null,null,null,null,null," - "]
[null,null,null,null,null," - "]
[null,null,null,null,null," - "]
[null,null,null,null,null," - "]
[null,null,null,null,null," - "]
[null,null,null,null,null," - "]
[null,null,null,null,null," - "]
[null,null,null,null,null," - "]
[null,null,null,null,null," - "]
[null,null,null,null,null,{"$f":"CONCATENATE(B2999,\" - \",C2999)","v":" - "}]
[null,null,null,null,null," - "]
[null,null,null,null,null," - "]
[null,null,null,null,null," - "]
[null,null,null,null,null," - "]
[null,null,null,null,null," - "]
[null,null,null,null,null," - "]
[null,null,null,null,null," - "]
[null,null,null,null,null," - "]
[null,null,null,null,null," - "]
[null,null,null,null,null," - "]
[null,null,null,null,null," - "]
[null,null,null,null,null," - "]
[null,null,null,null,null," - "]
[null,null,null,null,null," - "]
[null,null,null,null,null," - "]
[null,null,null,null,null," - "]
[null,null,null,null,null," - "]
[null,null,null,null,null," - "]
[null,null,null,null,null," - "]
[null,null,null,null,null," - "]
[null,null,null,null,null," - "]
[null,null,null,null,null," - "]
[null,null,null,null,null," - "]
[null,null,null,null,null," - "]
[null,null,null,null,null," - "]
[null,null,null,null,null," - "]
[null,null,null,null,null," - "]
[null,null,null,null,null," - "]
[null,null,null,null,null," - "]
[null,null,null,null,null," - "]
[null,null,null,null,null," - "]
[null,null,null,null,null," - "]
[null,null,null,null,null," - "]
[null,null,null,null,null," - "]
[null,null,null,null,null," - "]
[null,null,null,null,null," - "]
[null,null,null,null,null," - "]
[null,null,null,null,null," - "]
[null,null,null,null,null," - "]
[null,null,null,null,null," - "]
[null,null,null,null,null," - "]
[null,null,null,null,null," - "]
[null,null,null,null,null," - "]
[null,null,null,null,null," - "]
[null,null,null,null,null," - "]
[null,null,null,null,null," - "]
[null,null,null,null,null," - "]
[null,null,null,null,null," - "]
[null,null,null,null,null," - "]
[null,null,null,null,null," - "]
[null,null,null,null,null," - "]
[null,null,null,null,null," - "]
[null,null,null,null,null," - "]
[null,null,null,null,null," - "]
[null,null,null,null,null," - "]
[null,null,null,null,null," - "]
[null,null,null,null,null," - "]
[null,null,null,null,null," - "]
[null,null,null,null,null," - "]
[null,null,null,null,null," - "]
[null,null,null,null,null," - "]
[null,null,null,null,null," - "]
[null,null,null,null,null," - "]
[null,null,null,null,null,{"$f":"CONCATENATE(B3063,\" - \",C3063)","v":" - "}]
[null,null,null,null,null," - "]
[null,null,null,null,null," - "]
[null,null,null,null,null," - "]
[null,null,null,null,null," - "]
[null,null,null,null,null," - "]
[null,null,null,null,null," - "]
[null,null,null,null,null," - "]
[null,null,null,null,null," - "]
[null,null,null,null,null," - "]
[null,null,null,null,null," - "]
[null,null,null,null,null," - "]
[null,null,null,null,null," - "]
[null,null,null,null,null," - "]
[null,null,null,null,null," - "]
[null,null,null,null,null," - "]
[null,null,null,null,null," - "]
[null,null,null,null,null," - "]
[null,null,null,null,null," - "]
[null,null,null,null,null," - "]
[null,null,null,null,null," - "]
[null,null,null,null,null," - "]
[null,null,null,null,null," - "]
[null,null,null,null,null," - "]
[null,null,null,null,null," - "]
[null,null,null,null,null," - "]
[null,null,null,null,null," - "]
[null,null,null,null,null," - "]
[null,null,null,null,null," - "]
[null,null,null,null,null," - "]
[null,null,null,null,null," - "]
[null,null,null,null,null," - "]
[null,null,null,null,null," - "]
[null,null,null,null,null," - "]
[null,null,null,null,null," - "]
[null,null,null,null,null," - "]
[null,null,null,null,null," - "]
[null,null,null,null,null," - "]
[null,null,null,null,null," - "]
[null,null,null,null,null," - "]
[null,null,null,null,null," - "]
[null,null,null,null,null," - "]
[null,null,null,null,null," - "]
[null,null,null,null,null," - "]
[null,null,null,null,null," - "]
[null,null,null,null,null," - "]
[null,null,null,null,null," - "]
[null,null,null,null,null," - "]
[null,null,null,null,null," - "]
[null,null,null,null,null," - "]
[null,null,null,null,null," - "]
[null,null,null,null,null," - "]
[null,null,null,null,null," - "]
[null,null,null,null,null," - "]
[null,null,null,null,null," - "]
[null,null,null,null,null," - "]
[null,null,null,null,null," - "]
[null,null,null,null,null," - "]
[null,null,null,null,null," - "]
[null,null,null,null,null," - "]
[null,null,null,null,null," - "]
[null,null,null,null,null," - "]
[null,null,null,null,null," - "]
[null,null,null,null,null," - "]
[null,null,null,null,null,{"$f":"CONCATENATE(B3127,\" - \",C3127)","v":" - "}]
[null,null,null,null,null," - "]
[null,null,null,null,null," - "]
[null,null,null,null,null," - "]
[null,null,null,null,null," - "]
[null,null,null,null,null," - "]
[null,null,null,null,null," - "]
[null,null,null,null,null," - "]
[null,null,null,null,null," - "]
[null,null,null,null,null," - "]
[null,null,null,null,null," - "]
[null,null,null,null,null," - "]
[null,null,null,null,null," - "]
[null,null,null,null,null," - "]
[null,null,null,null,null," - "]
[null,null,null,null,null," - "]
[null,null,null,null,null," - "]
[null,null,null,null,null," - "]
[null,null,null,null,null," - "]
[null,null,null,null,null," - "]
[null,null,null,null,null," - "]
[null,null,null,null,null," - "]
[null,null,null,null,null," - "]
[null,null,null,null,null," - "]
[null,null,null,null,null," - "]
[null,null,null,null,null," - "]
[null,null,null,null,null," - "]
[null,null,null,null,null," - "]
[null,null,null,null,null," - "]
[null,null,null,null,null," - "]
[null,null,null,null,null," - "]
[null,null,null,null,null," - "]
[null,null,null,null,null," - "]
[null,null,null,null,null," - "]
[null,null,null,null,null," - "]
[null,null,null,null,null," - "]
[null,null,null,null,null," - "]
[null,null,null,null,null," - "]
[null,null,null,null,null," - "]
[null,null,null,null,null," - "]
[null,null,null,null,null," - "]
[null,null,null,null,null," - "]
[null,null,null,null,null," - "]
[null,null,null,null,null," - "]
[null,null,null,null,null," - "]
[null,null,null,null,null," - "]
[null,null,null,null,null," - "]
[null,null,null,null,null," - "]
[null,null,null,null,null," - "]
[null,null,null,null,null," - "]
[null,null,null,null,null," - "]
[null,null,null,null,null," - "]
[null,null,null,null,null," - "]
[null,null,null,null,null," - "]
[null,null,null,null,null," - "]
[null,null,null,null,null," - "]
[null,null,null,null,null," - "]
[null,null,null,null,null," - "]
[null,null,null,null,null," - "]
[null,null,null,null,null," - "]
[null,null,null,null,null," - "]
[null,null,null,null,null," - "]
[null,null,null,null,null," - "]
[null,null,null,null,null," - "]
[null,null,null,null,null,{"$f":"CONCATENATE(B3191,\" - \",C3191)","v":" - "}]
[null,null,null,null,null," - "]
[null,null,null,null,null," - "]
[null,null,null,null,null," - "]
[null,null,null,null,null," - "]
[null,null,null,null,null," - "]
[null,null,null,null,null," - "]
[null,null,null,null,null," - "]
[null,null,null,null,null," - "]
[null,null,null,null,null," - "]
[null,null,null,null,null," - "]
[null,null,null,null,null," - "]
[null,null,null,null,null," - "]
[null,null,null,null,null," - "]
[null,null,null,null,null," - "]
[null,null,null,null,null," - "]
[null,null,null,null,null," - "]
[null,null,null,null,null," - "]
[null,null,null,null,null," - "]
[null,null,null,null,null," - "]
[null,null,null,null,null," - "]
[null,null,null,null,null," - "]
[null,null,null,null,null," - "]
[null,null,null,null,null," - "]
[null,null,null,null,null," - "]
[null,null,null,null,null," - "]
[null,null,null,null,null," - "]
[null,null,null,null,null," - "]
[null,null,null,null,null," - "]
[null,null,null,null,null," - "]
[null,null,null,null,null," - "]
[null,null,null,null,null," - "]
[null,null,null,null,null," - "]
[null,null,null,null,null," - "]
[null,null,null,null,null," - "]
[null,null,null,null,null," - "]
[null,null,null,null,null," - "]
[null,null,null,null,null," - "]
[null,null,null,null,null," - "]
[null,null,null,null,null," - "]
[null,null,null,null,null," - "]
[null,null,null,null,null," - "]
[null,null,null,null,null," - "]
[null,null,null,null,null," - "]
[null,null,null,null,null," - "]
[null,null,null,null,null," - "]
[null,null,null,null,null," - "]
[null,null,null,null,null," - "]
[null,null,null,null,null," - "]
[null,null,null,null,null," - "]
[null,null,null,null,null," - "]
[null,null,null,null,null," - "]
[null,null,null,null,null," - "]
[null,null,null,null,null," - "]
[null,null,null,null,null," - "]
[null,null,null,null,null," - "]
[null,null,null,null,null," - "]
[null,null,null,null,null," - "]
[null,null,null,null,null," - "]
[null,null,null,null,null," - "]
[null,null,null,null,null," - "]
[null,null,null,null,null," - "]
[null,null,null,null,null," - "]
[null,null,null,null,null," - "]
[null,null,null,null,null,{"$f":"CONCATENATE(B3255,\" - \",C3255)","v":" - "}]
[null,null,null,null,null," - "]
[null,null,null,null,null," - "]
[null,null,null,null,null," - "]
[null,null,null,null,null," - "]
[null,null,null,null,null," - "]
[null,null,null,null,null," - "]
[null,null,null,null,null," - "]
[null,null,null,null,null," - "]
[null,null,null,null,null," - "]
[null,null,null,null,null," - "]
[null,null,null,null,null," - "]
[null,null,null,null,null," - "]
[null,null,null,null,null," - "]
[null,null,null,null,null," - "]
[null,null,null,null,null," - "]
[null,null,null,null,null," - "]
[null,null,null,null,null," - "]
[null,null,null,null,null," - "]
[null,null,null,null,null," - "]
[null,null,null,null,null," - "]
[null,null,null,null,null," - "]
[null,null,null,null,null," - "]
[null,null,null,null,null," - "]
[null,null,null,null,null," - "]
[null,null,null,null,null," - "]
[null,null,null,null,null," - "]
[null,null,null,null,null," - "]
[null,null,null,null,null," - "]
[null,null,null,null,null," - "]
[null,null,null,null,null," - "]
[null,null,null,null,null," - "]
[null,null,null,null,null," - "]
[null,null,null,null,null," - "]
[null,null,null,null,null," - "]
[null,null,null,null,null," - "]
[null,null,null,null,null," - "]
[null,null,null,null,null," - "]
[null,null,null,null,null," - "]
[null,null,null,null,null," - "]
[null,null,null,null,null," - "]
[null,null,null,null,null," - "]
[null,null,null,null,null," - "]
[null,null,null,null,null," - "]
[null,null,null,null,null," - "]
[null,null,null,null,null," - "]
[null,null,null,null,null," - "]
[null,null,null,null,null," - "]
[null,null,null,null,null," - "]
[null,null,null,null,null," - "]
[null,null,null,null,null," - "]
[null,null,null,null,null," - "]
[null,null,null,null,null," - "]
[null,null,null,null,null," - "]
[null,null,null,null,null," - "]
[null,null,null,null,null," - "]
[null,null,null,null,null," - "]
[null,null,null,null,null," - "]
[null,null,null,null,null," - "]
[null,null,null,null,null," - "]
[null,null,null,null,null," - "]
[null,null,null,null,null," - "]
[null,null,null,null,null," - "]
[null,null,null,null,null," - "]
[null,null,null,null,null,{"$f":"CONCATENATE(B3319,\" - \",C3319)","v":" - "}]
[null,null,null,null,null," - "]
[null,null,null,null,null," - "]
[null,null,null,null,null," - "]
[null,null,null,null,null," - "]
[null,null,null,null,null," - "]
[null,null,null,null,null," - "]
[null,null,null,null,null," - "]
[null,null,null,null,null," - "]
[null,null,null,null,null," - "]
[null,null,null,null,null," - "]
[null,null,null,null,null," - "]
[null,null,null,null,null," - "]
[null,null,null,null,null," - "]
[null,null,null,null,null," - "]
[null,null,null,null,null," - "]
[null,null,null,null,null," - "]
[null,null,null,null,null," - "]
[null,null,null,null,null," - "]
[null,null,null,null,null," - "]
[null,null,null,null,null," - "]
[null,null,null,null,null," - "]
[null,null,null,null,null," - "]
[null,null,null,null,null," - "]
[null,null,null,null,null," - "]
[null,null,null,null,null," - "]
[null,null,null,null,null," - "]
[null,null,null,null,null," - "]
[null,null,null,null,null," - "]
[null,null,null,null,null," - "]
[null,null,null,null,null," - "]
[null,null,null,null,null," - "]
[null,null,null,null,null," - "]
[null,null,null,null,null," - "]
[null,null,null,null,null," - "]
[null,null,null,null,null," - "]
[null,null,null,null,null," - "]
[null,null,null,null,null," - "]
[null,null,null,null,null," - "]
[null,null,null,null,null," - "]
[null,null,null,null,null," - "]
[null,null,null,null,null," - "]
[null,null,null,null,null," - "]
[null,null,null,null,null," - "]
[null,null,null,null,null," - "]
[null,null,null,null,null," - "]
[null,null,null,null,null," - "]
[null,null,null,null,null," - "]
[null,null,null,null,null," - "]
[null,null,null,null,null," - "]
[null,null,null,null,null," - "]
[null,null,null,null,null," - "]
[null,null,null,null,null," - "]
[null,null,null,null,null," - "]
[null,null,null,null,null," - "]
[null,null,null,null,null," - "]
[null,null,null,null,null," - "]
[null,null,null,null,null," - "]
[null,null,null,null,null," - "]
[null,null,null,null,null," - "]
[null,null,null,null,null," - "]
[null,null,null,null,null," - "]
[null,null,null,null,null," - "]
[null,null,null,null,null," - "]
[null,null,null,null,null,{"$f":"CONCATENATE(B3383,\" - \",C3383)","v":" - "}]
[null,null,null,null,null," - "]
[null,null,null,null,null," - "]
[null,null,null,null,null," - "]
[null,null,null,null,null," - "]
[null,null,null,null,null," - "]
[null,null,null,null,null," - "]
[null,null,null,null,null," - "]
[null,null,null,null,null," - "]
[null,null,null,null,null," - "]
[null,null,null,null,null," - "]
[null,null,null,null,null," - "]
[null,null,null,null,null," - "]
[null,null,null,null,null," - "]
[null,null,null,null,null," - "]
[null,null,null,null,null," - "]
[null,null,null,null,null," - "]
[null,null,null,null,null," - "]
[null,null,null,null,null," - "]
[null,null,null,null,null," - "]
[null,null,null,null,null," - "]
[null,null,null,null,null," - "]
[null,null,null,null,null," - "]
[null,null,null,null,null," - "]
[null,null,null,null,null," - "]
[null,null,null,null,null," - "]
[null,null,null,null,null," - "]
[null,null,null,null,null," - "]
[null,null,null,null,null," - "]
[null,null,null,null,null," - "]
[null,null,null,null,null," - "]
[null,null,null,null,null," - "]
[null,null,null,null,null," - "]
[null,null,null,null,null," - "]
[null,null,null,null,null," - "]
[null,null,null,null,null," - "]
[null,null,null,null,null," - "]
[null,null,null,null,null," - "]
[null,null,null,null,null," - "]
[null,null,null,null,null," - "]
[null,null,null,null,null," - "]
[null,null,null,null,null," - "]
[null,null,null,null,null," - "]
[null,null,null,null,null," - "]
[null,null,null,null,null," - "]
[null,null,null,null,null," - "]
[null,null,null,null,null," - "]
[null,null,null,null,null," - "]
[null,null,null,null,null," - "]
[null,null,null,null,null," - "]
[null,null,null,null,null," - "]
[null,null,null,null,null," - "]
[null,null,null,null,null," - "]
[null,null,null,null,null," - "]
[null,null,null,null,null," - "]
[null,null,null,null,null," - "]
[null,null,null,null,null," - "]
[null,null,null,null,null," - "]
[null,null,null,null,null," - "]
[null,null,null,null,null," - "]
[null,null,null,null,null," - "]
[null,null,null,null,null," - "]
[null,null,null,null,null," - "]
[null,null,null,null,null," - "]
[null,null,null,null,null,{"$f":"CONCATENATE(B3447,\" - \",C3447)","v":" - "}]
[null,null,null,null,null," - "]
[null,null,null,null,null," - "]
[null,null,null,null,null," - "]
[null,null,null,null,null," - "]
[null,null,null,null,null," - "]
[null,null,null,null,null," - "]
[null,null,null,null,null," - "]
[null,null,null,null,null," - "]
[null,null,null,null,null," - "]
[null,null,null,null,null," - "]
[null,null,null,null,null," - "]
[null,null,null,null,null," - "]
[null,null,null,null,null," - "]
[null,null,null,null,null," - "]
[null,null,null,null,null," - "]
[null,null,null,null,null," - "]
[null,null,null,null,null," - "]
[null,null,null,null,null," - "]
[null,null,null,null,null," - "]
[null,null,null,null,null," - "]
[null,null,null,null,null," - "]
[null,null,null,null,null," - "]
[null,null,null,null,null," - "]
[null,null,null,null,null," - "]
[null,null,null,null,null," - "]
[null,null,null,null,null," - "]
[null,null,null,null,null," - "]
[null,null,null,null,null," - "]
[null,null,null,null,null," - "]
[null,null,null,null,null," - "]
[null,null,null,null,null," - "]
[null,null,null,null,null," - "]
[null,null,null,null,null," - "]
[null,null,null,null,null," - "]
[null,null,null,null,null," - "]
[null,null,null,null,null," - "]
[null,null,null,null,null," - "]
[null,null,null,null,null," - "]
[null,null,null,null,null," - "]
[null,null,null,null,null," - "]
[null,null,null,null,null," - "]
[null,null,null,null,null," - "]
[null,null,null,null,null," - "]
[null,null,null,null,null," - "]
[null,null,null,null,null," - "]
[null,null,null,null,null," - "]
[null,null,null,null,null," - "]
[null,null,null,null,null," - "]
[null,null,null,null,null," - "]
[null,null,null,null,null," - "]
[null,null,null,null,null," - "]
[null,null,null,null,null," - "]
[null,null,null,null,null," - "]
[null,null,null,null,null," - "]
[null,null,null,null,null," - "]
[null,null,null,null,null," - "]
[null,null,null,null,null," - "]
[null,null,null,null,null," - "]
[null,null,null,null,null," - "]
[null,null,null,null,null," - "]
[null,null,null,null,null," - "]
[null,null,null,null,null," - "]
[null,null,null,null,null," - "]
[null,null,null,null,null,{"$f":"CONCATENATE(B3511,\" - \",C3511)","v":" - "}]
[null,null,null,null,null," - "]
[null,null,null,null,null," - "]
[null,null,null,null,null," - "]
[null,null,null,null,null," - "]
[null,null,null,null,null," - "]
[null,null,null,null,null," - "]
[null,null,null,null,null," - "]
[null,null,null,null,null," - "]
[null,null,null,null,null," - "]
[null,null,null,null,null," - "]
[null,null,null,null,null," - "]
[null,null,null,null,null," - "]
[null,null,null,null,null," - "]
[null,null,null,null,null," - "]
[null,null,null,null,null," - "]
[null,null,null,null,null," - "]
[null,null,null,null,null," - "]
[null,null,null,null,null," - "]
[null,null,null,null,null," - "]
[null,null,null,null,null," - "]
[null,null,null,null,null," - "]
[null,null,null,null,null," - "]
[null,null,null,null,null," - "]
[null,null,null,null,null," - "]
[null,null,null,null,null," - "]
[null,null,null,null,null," - "]
[null,null,null,null,null," - "]
[null,null,null,null,null," - "]
[null,null,null,null,null," - "]
[null,null,null,null,null," - "]
[null,null,null,null,null," - "]
[null,null,null,null,null," - "]
[null,null,null,null,null," - "]
[null,null,null,null,null," - "]
[null,null,null,null,null," - "]
[null,null,null,null,null," - "]
[null,null,null,null,null," - "]
[null,null,null,null,null," - "]
[null,null,null,null,null," - "]
[null,null,null,null,null," - "]
[null,null,null,null,null," - "]
[null,null,null,null,null," - "]
[null,null,null,null,null," - "]
[null,null,null,null,null," - "]
[null,null,null,null,null," - "]
[null,null,null,null,null," - "]
[null,null,null,null,null," - "]
[null,null,null,null,null," - "]
[null,null,null,null,null," - "]
[null,null,null,null,null," - "]
[null,null,null,null,null," - "]
[null,null,null,null,null," - "]
[null,null,null,null,null," - "]
[null,null,null,null,null," - "]
[null,null,null,null,null," - "]
[null,null,null,null,null," - "]
[null,null,null,null,null," - "]
[null,null,null,null,null," - "]
[null,null,null,null,null," - "]
[null,null,null,null,null," - "]
[null,null,null,null,null," - "]
[null,null,null,null,null," - "]
[null,null,null,null,null," - "]
[null,null,null,null,null,{"$f":"CONCATENATE(B3575,\" - \",C3575)","v":" - "}]
[null,null,null,null,null," - "]
[null,null,null,null,null," - "]
[null,null,null,null,null," - "]
[null,null,null,null,null," - "]
[null,null,null,null,null," - "]
[null,null,null,null,null," - "]
[null,null,null,null,null," - "]
[null,null,null,null,null," - "]
[null,null,null,null,null," - "]
[null,null,null,null,null," - "]
[null,null,null,null,null," - "]
[null,null,null,null,null," - "]
[null,null,null,null,null," - "]
[null,null,null,null,null," - "]
[null,null,null,null,null," - "]
[null,null,null,null,null," - "]
[null,null,null,null,null," - "]
[null,null,null,null,null," - "]
[null,null,null,null,null," - "]
[null,null,null,null,null," - "]
[null,null,null,null,null," - "]
[null,null,null,null,null," - "]
[null,null,null,null,null," - "]
[null,null,null,null,null," - "]
[null,null,null,null,null," - "]
[null,null,null,null,null," - "]
[null,null,null,null,null," - "]
[null,null,null,null,null," - "]
[null,null,null,null,null," - "]
[null,null,null,null,null," - "]
[null,null,null,null,null," - "]
[null,null,null,null,null," - "]
[null,null,null,null,null," - "]
[null,null,null,null,null," - "]
[null,null,null,null,null," - "]
[null,null,null,null,null," - "]
[null,null,null,null,null," - "]
[null,null,null,null,null," - "]
[null,null,null,null,null," - "]
[null,null,null,null,null," - "]
[null,null,null,null,null," - "]
[null,null,null,null,null," - "]
[null,null,null,null,null," - "]
[null,null,null,null,null," - "]
[null,null,null,null,null," - "]
[null,null,null,null,null," - "]
[null,null,null,null,null," - "]
[null,null,null,null,null," - "]
[null,null,null,null,null," - "]
[null,null,null,null,null," - "]
[null,null,null,null,null," - "]
[null,null,null,null,null," - "]
[null,null,null,null,null," - "]
[null,null,null,null,null," - "]
[null,null,null,null,null," - "]
[null,null,null,null,null," - "]
[null,null,null,null,null," - "]
[null,null,null,null,null," - "]
[null,null,null,null,null," - "]
[null,null,null,null,null," - "]
[null,null,null,null,null," - "]
[null,null,null,null,null," - "]
[null,null,null,null,null," - "]
[null,null,null,null,null,{"$f":"CONCATENATE(B3639,\" - \",C3639)","v":" - "}]
[null,null,null,null,null," - "]
[null,null,null,null,null," - "]
[null,null,null,null,null," - "]
[null,null,null,null,null," - "]
[null,null,null,null,null," - "]
[null,null,null,null,null," - "]
[null,null,null,null,null," - "]
[null,null,null,null,null," - "]
[null,null,null,null,null," - "]
[null,null,null,null,null," - "]
[null,null,null,null,null," - "]
[null,null,null,null,null," - "]
[null,null,null,null,null," - "]
[null,null,null,null,null," - "]
[null,null,null,null,null," - "]
[null,null,null,null,null," - "]
[null,null,null,null,null," - "]
[null,null,null,null,null," - "]
[null,null,null,null,null," - "]
[null,null,null,null,null," - "]
[null,null,null,null,null," - "]
[null,null,null,null,null," - "]
[null,null,null,null,null," - "]
[null,null,null,null,null," - "]
[null,null,null,null,null," - "]
[null,null,null,null,null," - "]
[null,null,null,null,null," - "]
[null,null,null,null,null," - "]
[null,null,null,null,null," - "]
[null,null,null,null,null," - "]
[null,null,null,null,null," - "]
[null,null,null,null,null," - "]
[null,null,null,null,null," - "]
[null,null,null,null,null," - "]
[null,null,null,null,null," - "]
[null,null,null,null,null," - "]
[null,null,null,null,null," - "]
[null,null,null,null,null," - "]
[null,null,null,null,null," - "]
[null,null,null,null,null," - "]
[null,null,null,null,null," - "]
[null,null,null,null,null," - "]
[null,null,null,null,null," - "]
[null,null,null,null,null," - "]
[null,null,null,null,null," - "]
[null,null,null,null,null," - "]
[null,null,null,null,null," - "]
[null,null,null,null,null," - "]
[null,null,null,null,null," - "]
[null,null,null,null,null," - "]
[null,null,null,null,null," - "]
[null,null,null,null,null," - "]
[null,null,null,null,null," - "]
[null,null,null,null,null," - "]
[null,null,null,null,null," - "]
[null,null,null,null,null," - "]
[null,null,null,null,null," - "]
[null,null,null,null,null," - "]
[null,null,null,null,null," - "]
[null,null,null,null,null," - "]
[null,null,null,null,null," - "]
[null,null,null,null,null," - "]
[null,null,null,null,null," - "]
[null,null,null,null,null,{"$f":"CONCATENATE(B3703,\" - \",C3703)","v":" - "}]
[null,null,null,null,null," - "]
[null,null,null,null,null," - "]
[null,null,null,null,null," - "]
[null,null,null,null,null," - "]
[null,null,null,null,null," - "]
[null,null,null,null,null," - "]
[null,null,null,null,null," - "]
[null,null,null,null,null," - "]
[null,null,null,null,null," - "]
[null,null,null,null,null," - "]
[null,null,null,null,null," - "]
[null,null,null,null,null," - "]
[null,null,null,null,null," - "]
[null,null,null,null,null," - "]
[null,null,null,null,null," - "]
[null,null,null,null,null," - "]
[null,null,null,null,null," - "]
[null,null,null,null,null," - "]
[null,null,null,null,null," - "]
[null,null,null,null,null," - "]
[null,null,null,null,null," - "]
[null,null,null,null,null," - "]
[null,null,null,null,null," - "]
[null,null,null,null,null," - "]
[null,null,null,null,null," - "]
[null,null,null,null,null," - "]
[null,null,null,null,null," - "]
[null,null,null,null,null," - "]
[null,null,null,null,null," - "]
[null,null,null,null,null," - "]
[null,null,null,null,null," - "]
[null,null,null,null,null," - "]
[null,null,null,null,null," - "]
[null,null,null,null,null," - "]
[null,null,null,null,null," - "]
[null,null,null,null,null," - "]
[null,null,null,null,null," - "]
[null,null,null,null,null," - "]
[null,null,null,null,null," - "]
[null,null,null,null,null," - "]
[null,null,null,null,null," - "]
[null,null,null,null,null," - "]
[null,null,null,null,null," - "]
[null,null,null,null,null," - "]
[null,null,null,null,null," - "]
[null,null,null,null,null," - "]
[null,null,null,null,null," - "]
[null,null,null,null,null," - "]
[null,null,null,null,null," - "]
[null,null,null,null,null," - "]
[null,null,null,null,null," - "]
[null,null,null,null,null," - "]
[null,null,null,null,null," - "]
[null,null,null,null,null," - "]
[null,null,null,null,null," - "]
[null,null,null,null,null," - "]
[null,null,null,null,null," - "]
[null,null,null,null,null," - "]
[null,null,null,null,null," - "]
[null,null,null,null,null," - "]
[null,null,null,null,null," - "]
[null,null,null,null,null," - "]
[null,null,null,null,null," - "]
[null,null,null,null,null,{"$f":"CONCATENATE(B3767,\" - \",C3767)","v":" - "}]
[null,null,null,null,null," - "]
[null,null,null,null,null," - "]
[null,null,null,null,null," - "]
[null,null,null,null,null," - "]
[null,null,null,null,null," - "]
[null,null,null,null,null," - "]
[null,null,null,null,null," - "]
[null,null,null,null,null," - "]
[null,null,null,null,null," - "]
[null,null,null,null,null," - "]
[null,null,null,null,null," - "]
[null,null,null,null,null," - "]
[null,null,null,null,null," - "]
[null,null,null,null,null," - "]
[null,null,null,null,null," - "]
[null,null,null,null,null," - "]
[null,null,null,null,null," - "]
[null,null,null,null,null," - "]
[null,null,null,null,null," - "]
[null,null,null,null,null," - "]
[null,null,null,null,null," - "]
[null,null,null,null,null," - "]
[null,null,null,null,null," - "]
[null,null,null,null,null," - "]
[null,null,null,null,null," - "]
[null,null,null,null,null," - "]
[null,null,null,null,null," - "]
[null,null,null,null,null," - "]
[null,null,null,null,null," - "]
[null,null,null,null,null," - "]
[null,null,null,null,null," - "]
[null,null,null,null,null," - "]
[null,null,null,null,null," - "]
[null,null,null,null,null," - "]
[null,null,null,null,null," - "]
[null,null,null,null,null," - "]
[null,null,null,null,null," - "]
[null,null,null,null,null," - "]
[null,null,null,null,null," - "]
[null,null,null,null,null," - "]
[null,null,null,null,null," - "]
[null,null,null,null,null," - "]
[null,null,null,null,null," - "]
[null,null,null,null,null," - "]
[null,null,null,null,null," - "]
[null,null,null,null,null," - "]
[null,null,null,null,null," - "]
[null,null,null,null,null," - "]
[null,null,null,null,null," - "]
[null,null,null,null,null," - "]
[null,null,null,null,null," - "]
[null,null,null,null,null," - "]
[null,null,null,null,null," - "]
[null,null,null,null,null," - "]
[null,null,null,null,null," - "]
[null,null,null,null,null," - "]
[null,null,null,null,null," - "]
[null,null,null,null,null," - "]
[null,null,null,null,null," - "]
[null,null,null,null,null," - "]
[null,null,null,null,null," - "]
[null,null,null,null,null," - "]
[null,null,null,null,null," - "]
[null,null,null,null,null,{"$f":"CONCATENATE(B3831,\" - \",C3831)","v":" - "}]
[null,null,null,null,null," - "]
[null,null,null,null,null," - "]
[null,null,null,null,null," - "]
[null,null,null,null,null," - "]
[null,null,null,null,null," - "]
[null,null,null,null,null," - "]
[null,null,null,null,null," - "]
[null,null,null,null,null," - "]
[null,null,null,null,null," - "]
[null,null,null,null,null," - "]
[null,null,null,null,null," - "]
[null,null,null,null,null," - "]
[null,null,null,null,null," - "]
[null,null,null,null,null," - "]
[null,null,null,null,null," - "]
[null,null,null,null,null," - "]
[null,null,null,null,null," - "]
[null,null,null,null,null," - "]
[null,null,null,null,null," - "]
[null,null,null,null,null," - "]
[null,null,null,null,null," - "]
[null,null,null,null,null," - "]
[null,null,null,null,null," - "]
[null,null,null,null,null," - "]
[null,null,null,null,null," - "]
[null,null,null,null,null," - "]
[null,null,null,null,null," - "]
[null,null,null,null,null," - "]
[null,null,null,null,null," - "]
[null,null,null,null,null," - "]
[null,null,null,null,null," - "]
[null,null,null,null,null," - "]
[null,null,null,null,null," - "]
[null,null,null,null,null," - "]
[null,null,null,null,null," - "]
[null,null,null,null,null," - "]
[null,null,null,null,null," - "]
[null,null,null,null,null," - "]
[null,null,null,null,null," - "]
[null,null,null,null,null," - "]
[null,null,null,null,null," - "]
[null,null,null,null,null," - "]
[null,null,null,null,null," - "]
[null,null,null,null,null," - "]
[null,null,null,null,null," - "]
[null,null,null,null,null," - "]
[null,null,null,null,null," - "]
[null,null,null,null,null," - "]
[null,null,null,null,null," - "]
[null,null,null,null,null," - "]
[null,null,null,null,null," - "]
[null,null,null,null,null," - "]
[null,null,null,null,null," - "]
[null,null,null,null,null," - "]
[null,null,null,null,null," - "]
[null,null,null,null,null," - "]
[null,null,null,null,null," - "]
[null,null,null,null,null," - "]
[null,null,null,null,null," - "]
[null,null,null,null,null," - "]
[null,null,null,null,null," - "]
[null,null,null,null,null," - "]
[null,null,null,null,null," - "]
[null,null,null,null,null,{"$f":"CONCATENATE(B3895,\" - \",C3895)","v":" - "}]
[null,null,null,null,null," - "]
[null,null,null,null,null," - "]
[null,null,null,null,null," - "]
[null,null,null,null,null," - "]
[null,null,null,null,null," - "]
[null,null,null,null,null," - "]
[null,null,null,null,null," - "]
[null,null,null,null,null," - "]
[null,null,null,null,null," - "]
[null,null,null,null,null," - "]
[null,null,null,null,null," - "]
[null,null,null,null,null," - "]
[null,null,null,null,null," - "]
[null,null,null,null,null," - "]
[null,null,null,null,null," - "]
[null,null,null,null,null," - "]
[null,null,null,null,null," - "]
[null,null,null,null,null," - "]
[null,null,null,null,null," - "]
[null,null,null,null,null," - "]
[null,null,null,null,null," - "]
[null,null,null,null,null," - "]
[null,null,null,null,null," - "]
[null,null,null,null,null," - "]
[null,null,null,null,null," - "]
[null,null,null,null,null," - "]
[null,null,null,null,null," - "]
[null,null,null,null,null," - "]
[null,null,null,null,null," - "]
[null,null,null,null,null," - "]
[null,null,null,null,null," - "]
[null,null,null,null,null," - "]
[null,null,null,null,null," - "]
[null,null,null,null,null," - "]
[null,null,null,null,null," - "]
[null,null,null,null,null," - "]
[null,null,null,null,null," - "]
[null,null,null,null,null," - "]
[null,null,null,null,null," - "]
[null,null,null,null,null," - "]
[null,null,null,null,null," - "]
[null,null,null,null,null," - "]
[null,null,null,null,null," - "]
[null,null,null,null,null," - "]
[null,null,null,null,null," - "]
[null,null,null,null,null," - "]
[null,null,null,null,null," - "]
[null,null,null,null,null," - "]
[null,null,null,null,null," - "]
[null,null,null,null,null," - "]
[null,null,null,null,null," - "]
[null,null,null,null,null," - "]
[null,null,null,null,null," - "]
[null,null,null,null,null," - "]
[null,null,null,null,null," - "]
[null,null,null,null,null," - "]
[null,null,null,null,null," - "]
[null,null,null,null,null," - "]
[null,null,null,null,null," - "]
[null,null,null,null,null," - "]
[null,null,null,null,null," - "]
[null,null,null,null,null," - "]
[null,null,null,null,null," - "]
[null,null,null,null,null,{"$f":"CONCATENATE(B3959,\" - \",C3959)","v":" - "}]
[null,null,null,null,null," - "]
[null,null,null,null,null," - "]
[null,null,null,null,null," - "]
[null,null,null,null,null," - "]
[null,null,null,null,null," - "]
[null,null,null,null,null," - "]
[null,null,null,null,null," - "]
[null,null,null,null,null," - "]
[null,null,null,null,null," - "]
[null,null,null,null,null," - "]
[null,null,null,null,null," - "]
[null,null,null,null,null," - "]
[null,null,null,null,null," - "]
[null,null,null,null,null," - "]
[null,null,null,null,null," - "]
[null,null,null,null,null," - "]
[null,null,null,null,null," - "]
[null,null,null,null,null," - "]
[null,null,null,null,null," - "]
[null,null,null,null,null," - "]
[null,null,null,null,null," - "]
[null,null,null,null,null," - "]
[null,null,null,null,null," - "]
[null,null,null,null,null," - "]
[null,null,null,null,null," - "]
[null,null,null,null,null," - "]
[null,null,null,null,null," - "]
[null,null,null,null,null," - "]
[null,null,null,null,null," - "]
[null,null,null,null,null," - "]
[null,null,null,null,null," - "]
[null,null,null,null,null," - "]
[null,null,null,null,null," - "]
[null,null,null,null,null," - "]
[null,null,null,null,null," - "]
[null,null,null,null,null," - "]
[null,null,null,null,null," - "]
[null,null,null,null,null," - "]
[null,null,null,null,null," - "]
[null,null,null,null,null," - "]
[null,null,null,null,null," - "]
[null,null,null,null,null," - "]
[null,null,null,null,null," - "]
[null,null,null,null,null," - "]
[null,null,null,null,null," - "]
[null,null,null,null,null," - "]
[null,null,null,null,null," - "]
[null,null,null,null,null," - "]
[null,null,null,null,null," - "]
[null,null,null,null,null," - "]
[null,null,null,null,null," - "]
[null,null,null,null,null," - "]
[null,null,null,null,null," - "]
[null,null,null,null,null," - "]
[null,null,null,null,null," - "]
[null,null,null,null,null," - "]
[null,null,null,null,null," - "]
[null,null,null,null,null," - "]
[null,null,null,null,null," - "]
[null,null,null,null,null," - "]
[null,null,null,null,null," - "]
[null,null,null,null,null," - "]
[null,null,null,null,null," - "]
[null,null,null,null,null,{"$f":"CONCATENATE(B4023,\" - \",C4023)","v":" - "}]
[null,null,null,null,null," - "]
[null,null,null,null,null," - "]
[null,null,null,null,null," - "]
[null,null,null,null,null," - "]
[null,null,null,null,null," - "]
[null,null,null,null,null," - "]
[null,null,null,null,null," - "]
[null,null,null,null,null," - "]
[null,null,null,null,null," - "]
[null,null,null,null,null," - "]
[null,null,null,null,null," - "]
[null,null,null,null,null," - "]
[null,null,null,null,null," - "]
[null,null,null,null,null," - "]
[null,null,null,null,null," - "]
[null,null,null,null,null," - "]
[null,null,null,null,null," - "]
[null,null,null,null,null," - "]
[null,null,null,null,null," - "]
[null,null,null,null,null," - "]
[null,null,null,null,null," - "]
[null,null,null,null,null," - "]
[null,null,null,null,null," - "]
[null,null,null,null,null," - "]
[null,null,null,null,null," - "]
[null,null,null,null,null," - "]
[null,null,null,null,null," - "]
[null,null,null,null,null," - "]
[null,null,null,null,null," - "]
[null,null,null,null,null," - "]
[null,null,null,null,null," - "]
[null,null,null,null,null," - "]
[null,null,null,null,null," - "]
[null,null,null,null,null," - "]
[null,null,null,null,null," - "]
[null,null,null,null,null," - "]
[null,null,null,null,null," - "]
[null,null,null,null,null," - "]
[null,null,null,null,null," - "]
[null,null,null,null,null," - "]
[null,null,null,null,null," - "]
[null,null,null,null,null," - "]
[null,null,null,null,null," - "]
[null,null,null,null,null," - "]
[null,null,null,null,null," - "]
[null,null,null,null,null," - "]
[null,null,null,null,null," - "]
[null,null,null,null,null," - "]
[null,null,null,null,null," - "]
[null,null,null,null,null," - "]
[null,null,null,null,null," - "]
[null,null,null,null,null," - "]
[null,null,null,null,null," - "]
[null,null,null,null,null," - "]
[null,null,null,null,null," - "]
[null,null,null,null,null," - "]
[null,null,null,null,null," - "]
[null,null,null,null,null," - "]
[null,null,null,null,null," - "]
[null,null,null,null,null," - "]
[null,null,null,null,null," - "]
[null,null,null,null,null," - "]
[null,null,null,null,null," - "]
[null,null,null,null,null,{"$f":"CONCATENATE(B4087,\" - \",C4087)","v":" - "}]
[null,null,null,null,null," - "]
[null,null,null,null,null," - "]
[null,null,null,null,null," - "]
[null,null,null,null,null," - "]
[null,null,null,null,null," - "]
[null,null,null,null,null," - "]
[null,null,null,null,null," - "]
[null,null,null,null,null," - "]
[null,null,null,null,null," - "]
[null,null,null,null,null," - "]
[null,null,null,null,null," - "]
[null,null,null,null,null," - "]
[null,null,null,null,null," - "]
[null,null,null,null,null," - "]
[null,null,null,null,null," - "]
[null,null,null,null,null," - "]
[null,null,null,null,null," - "]
[null,null,null,null,null," - "]
[null,null,null,null,null," - "]
[null,null,null,null,null," - "]
[null,null,null,null,null," - "]
[null,null,null,null,null," - "]
[null,null,null,null,null," - "]
[null,null,null,null,null," - "]
[null,null,null,null,null," - "]
[null,null,null,null,null," - "]
[null,null,null,null,null," - "]
[null,null,null,null,null," - "]
[null,null,null,null,null," - "]
[null,null,null,null,null," - "]
[null,null,null,null,null," - "]
[null,null,null,null,null," - "]
[null,null,null,null,null," - "]
[null,null,null,null,null," - "]
[null,null,null,null,null," - "]
[null,null,null,null,null," - "]
[null,null,null,null,null," - "]
[null,null,null,null,null," - "]
[null,null,null,null,null," - "]
[null,null,null,null,null," - "]
[null,null,null,null,null," - "]
[null,null,null,null,null," - "]
[null,null,null,null,null," - "]
[null,null,null,null,null," - "]
[null,null,null,null,null," - "]
[null,null,null,null,null," - "]
[null,null,null,null,null," - "]
[null,null,null,null,null," - "]
[null,null,null,null,null," - "]
[null,null,null,null,null," - "]
[null,null,null,null,null," - "]
[null,null,null,null,null," - "]
[null,null,null,null,null," - "]
[null,null,null,null,null," - "]
[null,null,null,null,null," - "]
[null,null,null,null,null," - "]
[null,null,null,null,null," - "]
[null,null,null,null,null," - "]
[null,null,null,null,null," - "]
[null,null,null,null,null," - "]
[null,null,null,null,null," - "]
[null,null,null,null,null," - "]
[null,null,null,null,null," - "]
[null,null,null,null,null,{"$f":"CONCATENATE(B4151,\" - \",C4151)","v":" - "}]
[null,null,null,null,null," - "]
[null,null,null,null,null," - "]
[null,null,null,null,null," - "]
[null,null,null,null,null," - "]
[null,null,null,null,null," - "]
[null,null,null,null,null," - "]
[null,null,null,null,null," - "]
[null,null,null,null,null," - "]
[null,null,null,null,null," - "]
[null,null,null,null,null," - "]
[null,null,null,null,null," - "]
[null,null,null,null,null," - "]
[null,null,null,null,null," - "]
[null,null,null,null,null," - "]
[null,null,null,null,null," - "]
[null,null,null,null,null," - "]
[null,null,null,null,null," - "]
[null,null,null,null,null," - "]
[null,null,null,null,null," - "]
[null,null,null,null,null," - "]
[null,null,null,null,null," - "]
[null,null,null,null,null," - "]
[null,null,null,null,null," - "]
[null,null,null,null,null," - "]
[null,null,null,null,null," - "]
[null,null,null,null,null," - "]
[null,null,null,null,null," - "]
[null,null,null,null,null," - "]
[null,null,null,null,null," - "]
[null,null,null,null,null," - "]
[null,null,null,null,null," - "]
[null,null,null,null,null," - "]
[null,null,null,null,null," - "]
[null,null,null,null,null," - "]
[null,null,null,null,null," - "]
[null,null,null,null,null," - "]
[null,null,null,null,null," - "]
[null,null,null,null,null," - "]
[null,null,null,null,null," - "]
[null,null,null,null,null," - "]
[null,null,null,null,null," - "]
[null,null,null,null,null," - "]
[null,null,null,null,null," - "]
[null,null,null,null,null," - "]
[null,null,null,null,null," - "]
[null,null,null,null,null," - "]
[null,null,null,null,null," - "]
[null,null,null,null,null," - "]
[null,null,null,null,null," - "]
[null,null,null,null,null," - "]
[null,null,null,null,null," - "]
[null,null,null,null,null," - "]
[null,null,null,null,null," - "]
[null,null,null,null,null," - "]
[null,null,null,null,null," - "]
[null,null,null,null,null," - "]
[null,null,null,null,null," - "]
[null,null,null,null,null," - "]
[null,null,null,null,null," - "]
[null,null,null,null,null," - "]
[null,null,null,null,null," - "]
[null,null,null,null,null," - "]
[null,null,null,null,null," - "]
[null,null,null,null,null,{"$f":"CONCATENATE(B4215,\" - \",C4215)","v":" - "}]
[null,null,null,null,null," - "]
[null,null,null,null,null," - "]
[null,null,null,null,null," - "]
[null,null,null,null,null," - "]
[null,null,null,null,null," - "]
[null,null,null,null,null," - "]
[null,null,null,null,null," - "]
[null,null,null,null,null," - "]
[null,null,null,null,null," - "]
[null,null,null,null,null," - "]
[null,null,null,null,null," - "]
[null,null,null,null,null," - "]
[null,null,null,null,null," - "]
[null,null,null,null,null," - "]
[null,null,null,null,null," - "]
[null,null,null,null,null," - "]
[null,null,null,null,null," - "]
[null,null,null,null,null," - "]
[null,null,null,null,null," - "]
[null,null,null,null,null," - "]
[null,null,null,null,null," - "]
[null,null,null,null,null," - "]
[null,null,null,null,null," - "]
[null,null,null,null,null," - "]
[null,null,null,null,null," - "]
[null,null,null,null,null," - "]
[null,null,null,null,null," - "]
[null,null,null,null,null," - "]
[null,null,null,null,null," - "]
[null,null,null,null,null," - "]
[null,null,null,null,null," - "]
[null,null,null,null,null," - "]
[null,null,null,null,null," - "]
[null,null,null,null,null," - "]
[null,null,null,null,null," - "]
[null,null,null,null,null," - "]
[null,null,null,null,null," - "]
[null,null,null,null,null," - "]
[null,null,null,null,null," - "]
[null,null,null,null,null," - "]
[null,null,null,null,null," - "]
[null,null,null,null,null," - "]
[null,null,null,null,null," - "]
[null,null,null,null,null," - "]
[null,null,null,null,null," - "]
[null,null,null,null,null," - "]
[null,null,null,null,null," - "]
[null,null,null,null,null," - "]
[null,null,null,null,null," - "]
[null,null,null,null,null," - "]
[null,null,null,null,null," - "]
[null,null,null,null,null," - "]
[null,null,null,null,null," - "]
[null,null,null,null,null," - "]
[null,null,null,null,null," - "]
[null,null,null,null,null," - "]
[null,null,null,null,null," - "]
[null,null,null,null,null," - "]
[null,null,null,null,null," - "]
[null,null,null,null,null," - "]
[null,null,null,null,null," - "]
[null,null,null,null,null," - "]
[null,null,null,null,null," - "]
[null,null,null,null,null,{"$f":"CONCATENATE(B4279,\" - \",C4279)","v":" - "}]
[null,null,null,null,null," - "]
[null,null,null,null,null," - "]
[null,null,null,null,null," - "]
[null,null,null,null,null," - "]
[null,null,null,null,null," - "]
[null,null,null,null,null," - "]
[null,null,null,null,null," - "]
[null,null,null,null,null," - "]
[null,null,null,null,null," - "]
[null,null,null,null,null," - "]
[null,null,null,null,null," - "]
[null,null,null,null,null," - "]
[null,null,null,null,null," - "]
[null,null,null,null,null," - "]
[null,null,null,null,null," - "]
[null,null,null,null,null," - "]
[null,null,null,null,null," - "]
[null,null,null,null,null," - "]
[null,null,null,null,null," - "]
[null,null,null,null,null," - "]
[null,null,null,null,null," - "]
[null,null,null,null,null," - "]
[null,null,null,null,null," - "]
[null,null,null,null,null," - "]
[null,null,null,null,null," - "]
[null,null,null,null,null," - "]
[null,null,null,null,null," - "]
[null,null,null,null,null," - "]
[null,null,null,null,null," - "]
[null,null,null,null,null," - "]
[null,null,null,null,null," - "]
[null,null,null,null,null," - "]
[null,null,null,null,null," - "]
[null,null,null,null,null," - "]
[null,null,null,null,null," - "]
[null,null,null,null,null," - "]
[null,null,null,null,null," - "]
[null,null,null,null,null," - "]
[null,null,null,null,null," - "]
[null,null,null,null,null," - "]
[null,null,null,null,null," - "]
[null,null,null,null,null," - "]
[null,null,null,null,null," - "]
[null,null,null,null,null," - "]
[null,null,null,null,null," - "]
[null,null,null,null,null," - "]
[null,null,null,null,null," - "]
[null,null,null,null,null," - "]
[null,null,null,null,null," - "]
[null,null,null,null,null," - "]
[null,null,null,null,null," - "]
[null,null,null,null,null," - "]
[null,null,null,null,null," - "]
[null,null,null,null,null," - "]
[null,null,null,null,null," - "]
[null,null,null,null,null," - "]
[null,null,null,null,null," - "]
[null,null,null,null,null," - "]
[null,null,null,null,null," - "]
[null,null,null,null,null," - "]
[null,null,null,null,null," - "]
[null,null,null,null,null," - "]
[null,null,null,null,null," - "]
[null,null,null,null,null,{"$f":"CONCATENATE(B4343,\" - \",C4343)","v":" - "}]
[null,null,null,null,null," - "]
[null,null,null,null,null," - "]
[null,null,null,null,null," - "]
[null,null,null,null,null," - "]
[null,null,null,null,null," - "]
[null,null,null,null,null," - "]
[null,null,null,null,null," - "]
[null,null,null,null,null," - "]
[null,null,null,null,null," - "]
[null,null,null,null,null," - "]
[null,null,null,null,null," - "]
[null,null,null,null,null," - "]
[null,null,null,null,null," - "]
[null,null,null,null,null," - "]
[null,null,null,null,null," - "]
[null,null,null,null,null," - "]
[null,null,null,null,null," - "]
[null,null,null,null,null," - "]
[null,null,null,null,null," - "]
[null,null,null,null,null," - "]
[null,null,null,null,null," - "]
[null,null,null,null,null," - "]
[null,null,null,null,null," - "]
[null,null,null,null,null," - "]
[null,null,null,null,null," - "]
[null,null,null,null,null," - "]
[null,null,null,null,null," - "]
[null,null,null,null,null," - "]
[null,null,null,null,null," - "]
[null,null,null,null,null," - "]
[null,null,null,null,null," - "]
[null,null,null,null,null," - "]
[null,null,null,null,null," - "]
[null,null,null,null,null," - "]
[null,null,null,null,null," - "]
[null,null,null,null,null," - "]
[null,null,null,null,null," - "]
[null,null,null,null,null," - "]
[null,null,null,null,null," - "]
[null,null,null,null,null," - "]
[null,null,null,null,null," - "]
[null,null,null,null,null," - "]
[null,null,null,null,null," - "]
[null,null,null,null,null," - "]
[null,null,null,null,null," - "]
[null,null,null,null,null," - "]
[null,null,null,null,null," - "]
[null,null,null,null,null," - "]
[null,null,null,null,null," - "]
[null,null,null,null,null," - "]
[null,null,null,null,null," - "]
[null,null,null,null,null," - "]
[null,null,null,null,null," - "]
[null,null,null,null,null," - "]
[null,null,null,null,null," - "]
[null,null,null,null,null," - "]
[null,null,null,null,null," - "]
[null,null,null,null,null," - "]
[null,null,null,null,null," - "]
[null,null,null,null,null," - "]
[null,null,null,null,null," - "]
[null,null,null,null,null," - "]
[null,null,null,null,null," - "]
[null,null,null,null,null,{"$f":"CONCATENATE(B4407,\" - \",C4407)","v":" - "}]
[null,null,null,null,null," - "]
[null,null,null,null,null," - "]
[null,null,null,null,null," - "]
[null,null,null,null,null," - "]
[null,null,null,null,null," - "]
[null,null,null,null,null," - "]
[null,null,null,null,null," - "]
[null,null,null,null,null," - "]
[null,null,null,null,null," - "]
[null,null,null,null,null," - "]
[null,null,null,null,null," - "]
[null,null,null,null,null," - "]
[null,null,null,null,null," - "]
[null,null,null,null,null," - "]
[null,null,null,null,null," - "]
[null,null,null,null,null," - "]
[null,null,null,null,null," - "]
[null,null,null,null,null," - "]
[null,null,null,null,null," - "]
[null,null,null,null,null," - "]
[null,null,null,null,null," - "]
[null,null,null,null,null," - "]
[null,null,null,null,null," - "]
[null,null,null,null,null," - "]
[null,null,null,null,null," - "]
[null,null,null,null,null," - "]
[null,null,null,null,null," - "]
[null,null,null,null,null," - "]
[null,null,null,null,null," - "]
[null,null,null,null,null," - "]
[null,null,null,null,null," - "]
[null,null,null,null,null," - "]
[null,null,null,null,null," - "]
[null,null,null,null,null," - "]
[null,null,null,null,null," - "]
[null,null,null,null,null," - "]
[null,null,null,null,null," - "]
[null,null,null,null,null," - "]
[null,null,null,null,null," - "]
[null,null,null,null,null," - "]
[null,null,null,null,null," - "]
[null,null,null,null,null," - "]
[null,null,null,null,null," - "]
[null,null,null,null,null," - "]
[null,null,null,null,null," - "]
[null,null,null,null,null," - "]
[null,null,null,null,null," - "]
[null,null,null,null,null," - "]
[null,null,null,null,null," - "]
[null,null,null,null,null," - "]
[null,null,null,null,null," - "]
[null,null,null,null,null," - "]
[null,null,null,null,null," - "]
[null,null,null,null,null," - "]
[null,null,null,null,null," - "]
[null,null,null,null,null," - "]
[null,null,null,null,null," - "]
[null,null,null,null,null," - "]
[null,null,null,null,null," - "]
[null,null,null,null,null," - "]
[null,null,null,null,null," - "]
[null,null,null,null,null," - "]
[null,null,null,null,null," - "]
[null,null,null,null,null,{"$f":"CONCATENATE(B4471,\" - \",C4471)","v":" - "}]
[null,null,null,null,null," - "]
[null,null,null,null,null," - "]
[null,null,null,null,null," - "]
[null,null,null,null,null," - "]
[null,null,null,null,null," - "]
[null,null,null,null,null," - "]
[null,null,null,null,null," - "]
[null,null,null,null,null," - "]
[null,null,null,null,null," - "]
[null,null,null,null,null," - "]
[null,null,null,null,null," - "]
[null,null,null,null,null," - "]
[null,null,null,null,null," - "]
[null,null,null,null,null," - "]
[null,null,null,null,null," - "]
[null,null,null,null,null," - "]
[null,null,null,null,null," - "]
[null,null,null,null,null," - "]
[null,null,null,null,null," - "]
[null,null,null,null,null," - "]
[null,null,null,null,null," - "]
[null,null,null,null,null," - "]
[null,null,null,null,null," - "]
[null,null,null,null,null," - "]
[null,null,null,null,null," - "]
[null,null,null,null,null," - "]
[null,null,null,null,null," - "]
[null,null,null,null,null," - "]
[null,null,null,null,null," - "]
[null,null,null,null,null," - "]
[null,null,null,null,null," - "]
[null,null,null,null,null," - "]
[null,null,null,null,null," - "]
[null,null,null,null,null," - "]
[null,null,null,null,null," - "]
[null,null,null,null,null," - "]
[null,null,null,null,null," - "]
[null,null,null,null,null," - "]
[null,null,null,null,null," - "]
[null,null,null,null,null," - "]
[null,null,null,null,null," - "]
[null,null,null,null,null," - "]
[null,null,null,null,null," - "]
[null,null,null,null,null," - "]
[null,null,null,null,null," - "]
[null,null,null,null,null," - "]
[null,null,null,null,null," - "]
[null,null,null,null,null," - "]
[null,null,null,null,null," - "]
[null,null,null,null,null," - "]
[null,null,null,null,null," - "]
[null,null,null,null,null," - "]
[null,null,null,null,null," - "]
[null,null,null,null,null," - "]
[null,null,null,null,null," - "]
[null,null,null,null,null," - "]
[null,null,null,null,null," - "]
[null,null,null,null,null," - "]
[null,null,null,null,null," - "]
[null,null,null,null,null," - "]
[null,null,null,null,null," - "]
[null,null,null,null,null," - "]
[null,null,null,null,null," - "]
[null,null,null,null,null,{"$f":"CONCATENATE(B4535,\" - \",C4535)","v":" - "}]
[null,null,null,null,null," - "]
[null,null,null,null,null," - "]
[null,null,null,null,null," - "]
[null,null,null,null,null," - "]
[null,null,null,null,null," - "]
[null,null,null,null,null," - "]
[null,null,null,null,null," - "]
[null,null,null,null,null," - "]
[null,null,null,null,null," - "]
[null,null,null,null,null," - "]
[null,null,null,null,null," - "]
[null,null,null,null,null," - "]
[null,null,null,null,null," - "]
[null,null,null,null,null," - "]
[null,null,null,null,null," - "]
[null,null,null,null,null," - "]
[null,null,null,null,null," - "]
[null,null,null,null,null," - "]
[null,null,null,null,null," - "]
[null,null,null,null,null," - "]
[null,null,null,null,null," - "]
[null,null,null,null,null," - "]
[null,null,null,null,null," - "]
[null,null,null,null,null," - "]
[null,null,null,null,null," - "]
[null,null,null,null,null," - "]
[null,null,null,null,null," - "]
[null,null,null,null,null," - "]
[null,null,null,null,null," - "]
[null,null,null,null,null," - "]
[null,null,null,null,null," - "]
[null,null,null,null,null," - "]
[null,null,null,null,null," - "]
[null,null,null,null,null," - "]
[null,null,null,null,null," - "]
[null,null,null,null,null," - "]
[null,null,null,null,null," - "]
[null,null,null,null,null," - "]
[null,null,null,null,null," - "]
[null,null,null,null,null," - "]
[null,null,null,null,null," - "]
[null,null,null,null,null," - "]
[null,null,null,null,null," - "]
[null,null,null,null,null," - "]
[null,null,null,null,null," - "]
[null,null,null,null,null," - "]
[null,null,null,null,null," - "]
[null,null,null,null,null," - "]
[null,null,null,null,null," - "]
[null,null,null,null,null," - "]
[null,null,null,null,null," - "]
[null,null,null,null,null," - "]
[null,null,null,null,null," - "]
[null,null,null,null,null," - "]
[null,null,null,null,null," - "]
[null,null,null,null,null," - "]
[null,null,null,null,null," - "]
[null,null,null,null,null," - "]
[null,null,null,null,null," - "]
[null,null,null,null,null," - "]
[null,null,null,null,null," - "]
[null,null,null,null,null," - "]
[null,null,null,null,null," - "]
[null,null,null,null,null,{"$f":"CONCATENATE(B4599,\" - \",C4599)","v":" - "}]
[null,null,null,null,null," - "]
[null,null,null,null,null," - "]
[null,null,null,null,null," - "]
[null,null,null,null,null," - "]
[null,null,null,null,null," - "]
[null,null,null,null,null," - "]
[null,null,null,null,null," - "]
[null,null,null,null,null," - "]
[null,null,null,null,null," - "]
[null,null,null,null,null," - "]
[null,null,null,null,null," - "]
[null,null,null,null,null," - "]
[null,null,null,null,null," - "]
[null,null,null,null,null," - "]
[null,null,null,null,null," - "]
[null,null,null,null,null," - "]
[null,null,null,null,null," - "]
[null,null,null,null,null," - "]
[null,null,null,null,null," - "]
[null,null,null,null,null," - "]
[null,null,null,null,null," - "]
[null,null,null,null,null," - "]
[null,null,null,null,null," - "]
[null,null,null,null,null," - "]
[null,null,null,null,null," - "]
[null,null,null,null,null," - "]
[null,null,null,null,null," - "]
[null,null,null,null,null," - "]
[null,null,null,null,null," - "]
[null,null,null,null,null," - "]
[null,null,null,null,null," - "]
[null,null,null,null,null," - "]
[null,null,null,null,null," - "]
[null,null,null,null,null," - "]
[null,null,null,null,null," - "]
[null,null,null,null,null," - "]
[null,null,null,null,null," - "]
[null,null,null,null,null," - "]
[null,null,null,null,null," - "]
[null,null,null,null,null," - "]
[null,null,null,null,null," - "]
[null,null,null,null,null," - "]
[null,null,null,null,null," - "]
[null,null,null,null,null," - "]
[null,null,null,null,null," - "]
[null,null,null,null,null," - "]
[null,null,null,null,null," - "]
[null,null,null,null,null," - "]
[null,null,null,null,null," - "]
[null,null,null,null,null," - "]
[null,null,null,null,null," - "]
[null,null,null,null,null," - "]
[null,null,null,null,null," - "]
[null,null,null,null,null," - "]
[null,null,null,null,null," - "]
[null,null,null,null,null," - "]
[null,null,null,null,null," - "]
[null,null,null,null,null," - "]
[null,null,null,null,null," - "]
[null,null,null,null,null," - "]
[null,null,null,null,null," - "]
[null,null,null,null,null," - "]
[null,null,null,null,null," - "]
[null,null,null,null,null,{"$f":"CONCATENATE(B4663,\" - \",C4663)","v":" - "}]
[null,null,null,null,null," - "]
[null,null,null,null,null," - "]
[null,null,null,null,null," - "]
[null,null,null,null,null," - "]
[null,null,null,null,null," - "]
[null,null,null,null,null," - "]
[null,null,null,null,null," - "]
[null,null,null,null,null," - "]
[null,null,null,null,null," - "]
[null,null,null,null,null," - "]
[null,null,null,null,null," - "]
[null,null,null,null,null," - "]
[null,null,null,null,null," - "]
[null,null,null,null,null," - "]
[null,null,null,null,null," - "]
[null,null,null,null,null," - "]
[null,null,null,null,null," - "]
[null,null,null,null,null," - "]
[null,null,null,null,null," - "]
[null,null,null,null,null," - "]
[null,null,null,null,null," - "]
[null,null,null,null,null," - "]
[null,null,null,null,null," - "]
[null,null,null,null,null," - "]
[null,null,null,null,null," - "]
[null,null,null,null,null," - "]
[null,null,null,null,null," - "]
[null,null,null,null,null," - "]
[null,null,null,null,null," - "]
[null,null,null,null,null," - "]
[null,null,null,null,null," - "]
[null,null,null,null,null," - "]
[null,null,null,null,null," - "]
[null,null,null,null,null," - "]
[null,null,null,null,null," - "]
[null,null,null,null,null," - "]
[null,null,null,null,null," - "]
[null,null,null,null,null," - "]
[null,null,null,null,null," - "]
[null,null,null,null,null," - "]
[null,null,null,null,null," - "]
[null,null,null,null,null," - "]
[null,null,null,null,null," - "]
[null,null,null,null,null," - "]
[null,null,null,null,null," - "]
[null,null,null,null,null," - "]
[null,null,null,null,null," - "]
[null,null,null,null,null," - "]
[null,null,null,null,null," - "]
[null,null,null,null,null," - "]
[null,null,null,null,null," - "]
[null,null,null,null,null," - "]
[null,null,null,null,null," - "]
[null,null,null,null,null," - "]
[null,null,null,null,null," - "]
[null,null,null,null,null," - "]
[null,null,null,null,null," - "]
[null,null,null,null,null," - "]
[null,null,null,null,null," - "]
[null,null,null,null,null," - "]
[null,null,null,null,null," - "]
[null,null,null,null,null," - "]
[null,null,null,null,null," - "]
[null,null,null,null,null,{"$f":"CONCATENATE(B4727,\" - \",C4727)","v":" - "}]
[null,null,null,null,null," - "]
[null,null,null,null,null," - "]
[null,null,null,null,null," - "]
[null,null,null,null,null," - "]
[null,null,null,null,null," - "]
[null,null,null,null,null," - "]
[null,null,null,null,null," - "]
[null,null,null,null,null," - "]
[null,null,null,null,null," - "]
[null,null,null,null,null," - "]
[null,null,null,null,null," - "]
[null,null,null,null,null," - "]
[null,null,null,null,null," - "]
[null,null,null,null,null," - "]
[null,null,null,null,null," - "]
[null,null,null,null,null," - "]
[null,null,null,null,null," - "]
[null,null,null,null,null," - "]
[null,null,null,null,null," - "]
[null,null,null,null,null," - "]
[null,null,null,null,null," - "]
[null,null,null,null,null," - "]
[null,null,null,null,null," - "]
[null,null,null,null,null," - "]
[null,null,null,null,null," - "]
[null,null,null,null,null," - "]
[null,null,null,null,null," - "]
[null,null,null,null,null," - "]
[null,null,null,null,null," - "]
[null,null,null,null,null," - "]
[null,null,null,null,null," - "]
[null,null,null,null,null," - "]
[null,null,null,null,null," - "]
[null,null,null,null,null," - "]
[null,null,null,null,null," - "]
[null,null,null,null,null," - "]
[null,null,null,null,null," - "]
[null,null,null,null,null," - "]
[null,null,null,null,null," - "]
[null,null,null,null,null," - "]
[null,null,null,null,null," - "]
[null,null,null,null,null," - "]
[null,null,null,null,null," - "]
[null,null,null,null,null," - "]
[null,null,null,null,null," - "]
[null,null,null,null,null," - "]
[null,null,null,null,null," - "]
[null,null,null,null,null," - "]
[null,null,null,null,null," - "]
[null,null,null,null,null," - "]
[null,null,null,null,null," - "]
[null,null,null,null,null," - "]
[null,null,null,null,null," - "]
[null,null,null,null,null," - "]
[null,null,null,null,null," - "]
[null,null,null,null,null," - "]
[null,null,null,null,null," - "]
[null,null,null,null,null," - "]
[null,null,null,null,null," - "]
[null,null,null,null,null," - "]
[null,null,null,null,null," - "]
[null,null,null,null,null," - "]
[null,null,null,null,null," - "]
[null,null,null,null,null,{"$f":"CONCATENATE(B4791,\" - \",C4791)","v":" - "}]
[null,null,null,null,null," - "]
[null,null,null,null,null," - "]
[null,null,null,null,null," - "]
[null,null,null,null,null," - "]
[null,null,null,null,null," - "]
[null,null,null,null,null," - "]
[null,null,null,null,null," - "]
[null,null,null,null,null," - "]
[null,null,null,null,null," - "]
[null,null,null,null,null," - "]
[null,null,null,null,null," - "]
[null,null,null,null,null," - "]
[null,null,null,null,null," - "]
[null,null,null,null,null," - "]
[null,null,null,null,null," - "]
[null,null,null,null,null," - "]
[null,null,null,null,null," - "]
[null,null,null,null,null," - "]
[null,null,null,null,null," - "]
[null,null,null,null,null," - "]
[null,null,null,null,null," - "]
[null,null,null,null,null," - "]
[null,null,null,null,null," - "]
[null,null,null,null,null," - "]
[null,null,null,null,null," - "]
[null,null,null,null,null," - "]
[null,null,null,null,null," - "]
[null,null,null,null,null," - "]
[null,null,null,null,null," - "]
[null,null,null,null,null," - "]
[null,null,null,null,null," - "]
[null,null,null,null,null," - "]
[null,null,null,null,null," - "]
[null,null,null,null,null," - "]
[null,null,null,null,null," - "]
[null,null,null,null,null," - "]
[null,null,null,null,null," - "]
[null,null,null,null,null," - "]
[null,null,null,null,null," - "]
[null,null,null,null,null," - "]
[null,null,null,null,null," - "]
[null,null,null,null,null," - "]
[null,null,null,null,null," - "]
[null,null,null,null,null," - "]
[null,null,null,null,null," - "]
[null,null,null,null,null," - "]
[null,null,null,null,null," - "]
[null,null,null,null,null," - "]
[null,null,null,null,null," - "]
[null,null,null,null,null," - "]
[null,null,null,null,null," - "]
[null,null,null,null,null," - "]
[null,null,null,null,null," - "]
[null,null,null,null,null," - "]
[null,null,null,null,null," - "]
[null,null,null,null,null," - "]
[null,null,null,null,null," - "]
[null,null,null,null,null," - "]
[null,null,null,null,null," - "]
[null,null,null,null,null," - "]
[null,null,null,null,null," - "]
[null,null,null,null,null," - "]
[null,null,null,null,null," - "]
[null,null,null,null,null,{"$f":"CONCATENATE(B4855,\" - \",C4855)","v":" - "}]
[null,null,null,null,null," - "]
[null,null,null,null,null," - "]
[null,null,null,null,null," - "]
[null,null,null,null,null," - "]
[null,null,null,null,null," - "]
[null,null,null,null,null," - "]
[null,null,null,null,null," - "]
[null,null,null,null,null," - "]
[null,null,null,null,null," - "]
[null,null,null,null,null," - "]
[null,null,null,null,null," - "]
[null,null,null,null,null," - "]
[null,null,null,null,null," - "]
[null,null,null,null,null," - "]
[null,null,null,null,null," - "]
[null,null,null,null,null," - "]
[null,null,null,null,null," - "]
[null,null,null,null,null," - "]
[null,null,null,null,null," - "]
[null,null,null,null,null," - "]
[null,null,null,null,null," - "]

{"sheet":"Consent","index":2,"n_rows":43,"n_cols":2,"rows_kept":43,"cut":false,"hidden":false,"merged":[]}
[null,"Consent Page"]
[null,"This will be the first page that your users will visit.  You may enter up to 20 paragraphs of text, but you may leave some blank if you wish. (You may put up to 32,767 characters in each paragraph. Although only the first 1024 characters will be displayed in this spreadsheet, all of the characters will appear on the actual website.)  You may use HTML tags to format the text.  At the bottom of the page a button will appear that allows the user to proceed to the page of questions. "]
[]
[null,"(This first paragraph will appear in a title font.)"]
[1,"Put the title of your survey here"]
[]
[2,"You might choose to thank your potential participants for checking out your survey."]
[]
[3,"Invite your participants to read this consent form to make sure they agree with it.  Here are some things that your consent form should probably include: "]
[]
[4,"* Confirm that your participants are old enough to consent to take this survey. "]
[]
[5,"* Let your participants know about any restrictions about those who might take this survey, such as gender restrictions, age restrictions, or other limitations.  If these restrictions are particularly important to your experimental design, it might be worth asking in your survey as well in case they didn't read the consent form carefully.  (For example, if you have an age restriction, you might ask how old they are in your survey so you can eliminate participants who violate your restriction.)"]
[]
[6,"* Let your participants know about how long it will require them to finish your survey. It's a good idea to have someone else read a draft of your survey and time themselves so that you can get a realistic estimate. If you are offering participation credit, this should match the duration that you submitted when you applied for your experiment number. "]
[]
[7,"* How many times will you allow your participants complete this survey?"]
[]
[8,"You should include information about how your participants' data will be stored, analyzed, and interpreted in terms of their anonymity and confidentiality.  Check with your advisor and/or the Bates IRB for guidelines about anonymous and confidential data storage. "]
[]
[9,"Your participants need to know that the default setting for data storage for your survey is to store the information in a text file online.  This file isn't designed to be easily found and read by others, but tech-savvy people can certainly get access to all of your data.  If you are collecting very personal or identifying information, you can alter how the data are stored.  If you aren't sure about how to store your specific type of data or how to inform your participants properly, you should check with your advisor and/or the IRB. "]
[]
[10,"Inform your participants that their browser needs to have javascript and cookies enabled in order to take the survey. "]
[]
[11,"Invite your participant to click the button below if they understand and agree with all of the above."]
[]
[12]
[]
[13]
[]
[14]
[]
[15]
[]
[16]
[]
[17]
[]
[18]
[]
[19]
[]
[20]

{"sheet":"websurvey","index":3,"n_rows":18,"n_cols":45,"rows_kept":18,"cut":false,"hidden":false,"merged":[[13,2,13,3],[7,2,7,3],[8,2,8,3],[9,2,9,3],[10,2,10,3],[11,2,11,3],[12,2,12,3]]}
[null,null,null,null,null,null,null,null,null,null,null,null,null,null,null,null,null,null,null,null,null,null,null,null,null,null,null,"Binary","Short Answer","Essay","Mult. Choice (Choose 1)","Mult. Choice (Choose many)","Likert 4","Likert 5","Likert 6","Likert 7","Likert 8 end labels","Likert 9 end labels","Likert 10 end labels","Likert 11 end labels","Instruction Paragraph","Image","Embed HTML","Color Section","Page Break"]
["Type: ","Likert 6",null,"Source Question #:",1,"Question #:",1,null,null,null,null,null,null,null,null,null,null,null,null,null,null,null,null,null,null,null,1,1]
["Destination Q #:",2,null,"Destination Question #:",2,null,null,null,null,null,null,null,null,null,null,null,null,null,null,null,null,null,null,null,null,null,null,2]
[]
[1,"Likert 6",null,null,null,null,null,null,"qtype"]
[null,"Variable name:","test",null,null,null,null,null,"vname"]
[]
[null,"Question text:","I like web surveys.",null,null,null,null,null,"qtxt"]
[null,"Label 1","Strongly Disagree",null,null,null,null,null,"lbl1"]
[null,"Label 2","Moderately Disagree",null,null,null,null,null,"lbl2"]
[null,"Label 3","Somewhat Disagree",null,null,null,null,null,"lbl3"]
[null,"Label 4","Somewhat Agree",null,null,null,null,null,"lbl4"]
[null,"Label 5","Moderately Agree",null,null,null,null,null,"lbl5"]
[null,"Label 6","Strongly Agree",null,null,null,null,null,"lbl6"]
[]
[null,"Scale starting value",1,null,null,null,null,null,"start"]
[null,null,"Data will range from ",{"$f":"IF(C18=\"yes\",C16+H17 & \" to \" & C16,C16 & \" to \" & C16+H17)","v":"1 to 6"},null,null,null,5]
[null,"Reverse scoring?","no",null,null,null,null,null,"rvrs",null,null,null,null,null,null,null,null,"no","yes"]

{"sheet":"Thank you","index":4,"n_rows":45,"n_cols":4,"rows_kept":45,"cut":false,"hidden":false,"merged":[[1,1,1,3],[3,1,3,3]]}
[null,"\"Thank you\" page"]
[null,"This will be the last page that your users will see.  It will appear as soon as the user clicks the Submit button at the end of the Questions page.  You may enter up to 18 paragraphs of text, but you may leave some blank if you wish. (You may put up to 32,767 characters in each paragraph, although only the first 1024 characters will be displayed in this spreadsheet.  All of the characters will appear on the actual website.) You may use HTML tags to format the text.  The default text for paragraph 20 creates a link to the Bates College homepage."]
[]
[null,"The last two sections are only used when Particiption Credit is enabled.  Section 19 will appear before the Participation Credit questions are asked.  Section 20 will appear on the page after the user submits their information. "]
[]
[null,"(This first paragraph will appear in a title font.)"]
[1,"Thank you!"]
[]
[2,"Your data have been saved.  Thank you for participating in this survey. "]
[]
[3]
[]
[4]
[]
[5]
[]
[6]
[]
[7]
[]
[8]
[]
[9]
[]
[10]
[]
[11]
[]
[12]
[]
[13]
[]
[14]
[]
[15]
[]
[16]
[]
[17]
[]
[18,"You are done with this survey and may close this window now or return to the <a href=\"http://www.bates.edu\">Bates College Home Page</a>.",null,"Paragraph 18 is displayed only if the Participation Credit option is NOT selected."]
[]
[19,"This study is registered as <b>Experiment #XX </b>in the Bates College Psychology Department.  The codeword is <b>$$</b>. If you are a student in a psychology course that \noffers participation credit for eligible experiments, please click the button below and enter the required information.  You will need to give the above experiment number and codeword, along with your email address and psychology instructor. </p><input type='button' value=\"Click for participation credit\" onclick=parent.location=\"https://docs.google.com/a/bates.edu/forms/d/1K2ld-kVt0_r-7dIR2cBWLqzDtbsEBDZg66c9i3GXYxc/viewform\"><p>Note that this information is stored separately from the answers that you provided on the previous page. If you choose to provide your email address we will know only that you took this survey, but we will not know your responses to any of the questions on the previous page.  You must fill out the linked survey to receive participation credit.  If you are not in an eligible psychology course, or do not wish to receive participation credit, you are done with this survey and may close this window now or return to the <a href=&quot;http://www.bates.edu&quot;>Bates College Home Page</a>.</p>",null,"Paragraph 19 is displayed only if the Participation Credit option is selected.#XX will be filled in with your experiment number (from the \"Basic Settings\" tab). "]
[]
[20,"Thank you for taking our survey.  Your name has been recorded for participation credit.  You may close this window or return to the <a href=\"http://www.bates.edu\">Bates College Home Page</a>.",null,"Paragraph 20 is displayed only if the Participation Credit option is selected.  It will be shown after the user provides their course information."]

{"sheet":"Finish","index":5,"n_rows":36,"n_cols":5,"rows_kept":36,"cut":false,"hidden":false,"merged":[[3,0,3,2],[29,0,29,2],[31,0,31,2],[13,0,13,2],[17,0,17,2],[23,0,23,2],[20,0,20,2],[6,0,6,2],[10,0,10,2]]}
["Final Page"]
[]
["Data Storage"]
["Please select which data storage method you prefer. Consult the documentation for suggestions and warnings about data storage options. If you are collecting very personal information, or if you are asking open-ended (Essay) questions where your participants may reveal identifying information about themselves or others, it is strongly encouraged that you use the e-mail option unless you have explicit permission from the Bates IRB."]
[]
["Page Colors"]
["Use Excel's formatting tools to change the color of the background and/or text as well as the font type in the \"Sample text\" cells.  The background colors must match between the two cells. (This will be configured automatically if you alter only one of the sample cells.)  It is highly recommended that you use common fonts. If your participants do not have the font you choose installed on their machine, a different font will be substituted."]
[]
[null,"Sample title",null,null,0]
[null,"Sample text",null,null,0]
["The settings you supply in these sample cells will be used in your websurvey."]
[]
["File Names"]
["This spreadsheet will generate several HTML files which will enable you to put your survey online. The \"Survey Name\" specified above will determine the name of some of the files that will be created.  All of these files must be placed in a directory named after your \"Survey Name\" in your Paris folder.  After the files are created, you can edit these HTML files in Notepad or any HTML editor if you would like to make changes.  Here are the file names for the 3 main pages of your survey for reference:"]
["Consent page filename:","index.html"]
["Questionnaire filename:",{"$f":"CONCATENATE('Basic Settings'!B12, \".html\")","v":"websurvey.html"}]
["Thank you page filename:",{"$f":"CONCATENATE('Basic Settings'!B12, \"_thx.html\")","v":"websurvey_thx.html"}]
["If you have chosen above to store data in an online text file, this file is named after your \"Survey Name\" with the suffix \"_results.txt\".  You may choose a different suffix if you like.  "]
["Results file suffix:","_results"]
["Complete Results filename:",{"$f":"CONCATENATE('Basic Settings'!B12,B19,\".txt\")","v":"websurvey_results.txt"}]
["These files and other supporting files will be placed in the following folder on the hard drive of this computer:"]
[{"$f":"CONCATENATE(\"c:\\websurvey\\\", 'Basic Settings'!B12)","v":"c:\\websurvey\\websurvey"}]
[]
["Once all of the steps for creating the survey are done, the survey will be hosted at the following address:"]
[{"$f":"CONCATENATE(\"http://abacus.bates.edu/~\",'Basic Settings'!B11,\"/\",'Basic Settings'!B12)","v":"http://abacus.bates.edu/~bstudent/websurvey"}]
[]
[]
[]
[]
["Please see the instructions on the following website to learn what to do with these files after they have been generated:"]
[]
["http://abacus.bates.edu/~bpfohl/websurveys"]
[]
[]
["IMPORTANT: If you are planning to collect data of a personal nature, you should contact "]
["the Bates Internal Review Board (IRB) for guidelines on how to handle sensitive data."]

{"sheet":"survey blank","index":6,"n_rows":3,"n_cols":42,"rows_kept":3,"cut":false,"hidden":true,"merged":[]}
[null,null,null,null,null,null,null,null,null,null,null,null,null,null,null,null,null,null,null,null,null,null,null,null,null,null,null,"Binary","Short Answer","Essay","Mult. Choice (Choose 1)","Mult. Choice (Choose many)","Likert 4","Likert 5","Likert 6","Likert 7","Likert 8 end labels","Likert 9 end labels","Likert 10 end labels","Likert 11 end labels","Instruction Paragraph","Image"]
["Type: ","Likert 11 end labels",null,"Source Question #:",null,"Question #:",null,null,null,null,null,null,null,null,null,null,null,null,null,null,null,null,null,null,null,null,null,1]
["Destination Q #:",1,null,"Destination Question #:",1]

{"sheet":"question templates","index":7,"n_rows":198,"n_cols":20,"rows_kept":198,"cut":false,"hidden":true,"merged":[[161,3,161,4],[143,2,143,4],[156,2,156,4],[150,3,150,4],[151,3,151,4],[160,3,160,4],[40,3,40,4],[39,3,39,4],[94,2,99,2],[95,3,99,4],[105,3,105,4],[81,3,81,4],[82,2,87,2],[83,3,87,4],[93,3,93,4],[41,3,41,4],[42,3,42,4],[44,3,44,4],[54,3,54,4],[55,3,55,4],[56,3,56,4],[43,3,43,4],[3,3,3,4],[14,3,14,4],[15,3,15,4],[16,3,16,4],[38,3,38,4],[26,3,26,4],[27,3,27,4],[28,3,28,4],[138,3,138,4],[149,3,149,4],[58,3,58,4],[57,3,57,4],[59,3,59,4],[69,3,69,4],[109,3,109,4],[110,3,110,4],[124,3,124,4],[125,3,125,4],[126,3,126,4],[192,3,192,4],[194,2,194,4],[178,2,178,4],[186,3,186,4],[75,3,75,4],[172,2,172,4],[106,3,106,4],[111,3,111,4],[112,3,112,4],[122,3,122,4],[123,3,123,4],[107,3,107,4],[108,3,108,4],[170,3,170,4],[136,3,136,4],[137,3,137,4]]}
["binary","xx","Binary",null,null,null,null,null,null,"qtype"]
[null,null,"Variable name:",null,null,null,null,null,null,"vname"]
[]
[null,null,"Question text:","This spreadsheet is amazing!",null,null,null,null,null,"qtxt"]
[]
[null,null,"Option 1 data",0,null,null,null,null,null,"b1dta"]
[null,null,"Option 1 label","False",null,null,null,null,null,"b1txt"]
[null,null,"Option 2 data",1,null,null,null,null,null,"b2dta"]
[null,null,"Option 2 label","True",null,null,null,null,null,"b2txt"]
[]
["end"]
["likert9","xx","Likert 9 end labels",null,null,null,null,null,null,"qtype"]
[null,null,"Variable name:",null,null,null,null,null,null,"vname"]
[]
[null,null,"Question text:","I like web surveys.",null,null,null,null,null,"qtxt"]
[null,null,"Left Label","Strongly Disagree",null,null,null,null,null,"left"]
[null,null,"Right Label","Strongly Agree",null,null,null,null,null,"right"]
[]
[null,null,"Scale starting value",-4,null,null,null,null,null,"start"]
[null,null,null,"Data will range from ",{"$f":"IF(D21=\"yes\",D19+I20 & \" to \" & D19,D19 & \" to \" & D19+I20)","v":"-4 to 4"},null,null,null,8]
[null,null,"Reverse scoring?","no",null,null,null,null,null,"rvrs",null,null,null,null,null,null,null,null,"no","yes"]
[]
["end"]
["likert8","xx","Likert 8 end labels",null,null,null,null,null,null,"qtype"]
[null,null,"Variable name:",null,null,null,null,null,null,"vname"]
[]
[null,null,"Question text:","I like web surveys.",null,null,null,null,null,"qtxt"]
[null,null,"Left Label","Strongly Disagree",null,null,null,null,null,"left"]
[null,null,"Right Label","Strongly Agree",null,null,null,null,null,"right"]
[]
[null,null,"Scale starting value",1,null,null,null,null,null,"start"]
[null,null,null,"Data will range from ",{"$f":"IF(D33=\"yes\",D31+I32 & \" to \" & D31,D31 & \" to \" & D31+I32)","v":"1 to 8"},null,null,null,7]
[null,null,"Reverse scoring?","no",null,null,null,null,null,"rvrs",null,null,null,null,null,null,null,null,"no","yes"]
[]
["end"]
["likert6","xx","Likert 6",null,null,null,null,null,null,"qtype"]
[null,null,"Variable name:",null,null,null,null,null,null,"vname"]
[]
[null,null,"Question text:","I like web surveys.",null,null,null,null,null,"qtxt"]
[null,null,"Label 1","Strongly Disagree",null,null,null,null,null,"lbl1"]
[null,null,"Label 2","Moderately Disagree",null,null,null,null,null,"lbl2"]
[null,null,"Label 3","Somewhat Disagree",null,null,null,null,null,"lbl3"]
[null,null,"Label 4","Somewhat Agree",null,null,null,null,null,"lbl4"]
[null,null,"Label 5","Moderately Agree",null,null,null,null,null,"lbl5"]
[null,null,"Label 6","Strongly Agree",null,null,null,null,null,"lbl6"]
[]
[null,null,"Scale starting value",1,null,null,null,null,null,"start"]
[null,null,null,"Data will range from ",{"$f":"IF(D49=\"yes\",D47+I48 & \" to \" & D47,D47 & \" to \" & D47+I48)","v":"1 to 6"},null,null,null,5]
[null,null,"Reverse scoring?","no",null,null,null,null,null,"rvrs",null,null,null,null,null,null,null,null,"no","yes"]
[]
["end"]
["likert5","xx","Likert 5",null,null,null,null,null,null,"qtype"]
[null,null,"Variable name:",null,null,null,null,null,null,"vname"]
[]
[null,null,"Question text:","I like web surveys.",null,null,null,null,null,"qtxt"]
[null,null,"Label 1","Strongly Disagree",null,null,null,null,null,"lbl1"]
[null,null,"Label 2","Moderately Disagree",null,null,null,null,null,"lbl2"]
[null,null,"Label 3","No Opinion",null,null,null,null,null,"lbl3"]
[null,null,"Label 4","Moderately Agree",null,null,null,null,null,"lbl4"]
[null,null,"Label 5","Strongly Agree",null,null,null,null,null,"lbl5"]
[]
[null,null,"Scale starting value",1,null,null,null,null,null,"start"]
[null,null,null,"Data will range from ",{"$f":"IF(D64=\"yes\",D62+I63 & \" to \" & D62,D62 & \" to \" & D62+I63)","v":"1 to 5"},null,null,null,4]
[null,null,"Reverse scoring?","no",null,null,null,null,null,"rvrs",null,null,null,null,null,null,null,null,"no","yes"]
[]
["end"]
["short","xx","Short Answer",null,null,null,null,null,null,"qtype"]
[null,null,"Variable name:",null,null,null,null,null,null,"vname"]
[]
[null,null,"Question text:","What is your favorite color?",null,null,null,null,null,"qtxt"]
[]
["end"]
["essay","xx","Essay",null,null,null,null,null,null,"qtype"]
[null,null,"Variable name:",null,null,null,null,null,null,"vname"]
[]
[null,null,"Question text:","Tell me about yourself.",null,null,null,null,null,"qtxt"]
[]
["end"]
["multi1","xx","Multiple Choice (Choose 1)",null,null,null,null,null,null,"qtype"]
[null,null,"Variable name:",null,null,null,null,null,null,"vname"]
[]
[null,null,"Question text:","What is your favorite animal?",null,null,null,null,null,"qtxt"]
[null,null,"Insert ALL options into this field.  Separate each possible answer with the * character."]
[null,null,null,"Dog*Cat*Aardvark*Squid*Badger*Fruit Bat*Guinea Pig*Walrus",null,null,null,null,null,"multxt"]
[]
[]
[]
[]
[]
["end"]
["multimany","xx","Multiple Choice (Choose many)",null,null,null,null,null,null,"qtype"]
[null,null,"Variable name:",null,null,null,null,null,null,"vname"]
[]
[null,null,"Question text:","What animals do you like?  (Choose all that apply.)",null,null,null,null,null,"qtxt"]
[null,null,"Insert ALL options into this field.  Separate each possible answer with the * character."]
[null,null,null,"Dog*Cat*Aardvark*Squid*Badger*Fruit Bat*Guinea Pig*Walrus",null,null,null,null,null,"multxt"]
[]
[]
[]
[]
[]
["end"]
["likert7","xx","Likert 7",null,null,null,null,null,null,"qtype"]
[null,null,"Variable name:",null,null,null,null,null,null,"vname"]
[]
[null,null,"Question text:","I like web surveys.",null,null,null,null,null,"qtxt"]
[null,null,"Label 1","Strongly Disagree",null,null,null,null,null,"lbl1"]
[null,null,"Label 2","Moderately Disagree",null,null,null,null,null,"lbl2"]
[null,null,"Label 3","Somewhat Disagree",null,null,null,null,null,"lbl3"]
[null,null,"Label 4","No opinion",null,null,null,null,null,"lbl4"]
[null,null,"Label 5","Somewhat Agree",null,null,null,null,null,"lbl5"]
[null,null,"Label 6","Moderately Agree",null,null,null,null,null,"lbl6"]
[null,null,"Label 7","Strongly Agree",null,null,null,null,null,"lbl7"]
[]
[null,null,"Scale starting value",1,null,null,null,null,null,"strt"]
[null,null,null,"Data will range from ",{"$f":"IF(D117=\"yes\",D115+I116 & \" to \" & D115,D115 & \" to \" & D115+I116)","v":"1 to 7"},null,null,null,6]
[null,null,"Reverse scoring?","no",null,null,null,null,null,"rvrs",null,null,null,null,null,null,null,null,"no","yes"]
[]
["end"]
["likert4","xx","Likert 4",null,null,null,null,null,null,"qtype"]
[null,null,"Variable name:",null,null,null,null,null,null,"vname"]
[]
[null,null,"Question text:","I like web surveys.",null,null,null,null,null,"qtxt"]
[null,null,"Label 1","Strongly Disagree",null,null,null,null,null,"lbl1"]
[null,null,"Label 2","Moderately Disagree",null,null,null,null,null,"lbl2"]
[null,null,"Label 3","Moderately Agree",null,null,null,null,null,"lbl3"]
[null,null,"Label 4","Strongly Agree",null,null,null,null,null,"lbl4"]
[]
[null,null,"Scale starting value",1,null,null,null,null,null,"strt"]
[null,null,null,"Data will range from ",{"$f":"IF(D131=\"yes\",D129+I130 & \" to \" & D129,D129 & \" to \" & D129+I130)","v":"1 to 4"},null,null,null,3]
[null,null,"Reverse scoring?","no",null,null,null,null,null,"rvrs",null,null,null,null,null,null,null,null,"no","yes"]
[]
["end"]
["likert10","xx","Likert 10 end labels",null,null,null,null,null,null,"qtype"]
[null,null,"Variable name:",null,null,null,null,null,null,"vname"]
[]
[null,null,"Question text:","I like web surveys. (Rate on a scale of 1 to 10)",null,null,null,null,null,"qtxt"]
[null,null,"Left Label","Strongly Disagree",null,null,null,null,null,"left"]
[null,null,"Right Label","Strongly Agree",null,null,null,null,null,"right"]
[]
[null,null,"Scale starting value",1,null,null,null,null,null,"strt"]
[]
[null,null,"Reverse scoring?","no",null,null,null,null,null,"rvrs",null,null,null,null,null,null,null,null,"no","yes"]
[null,null,{"$f":"\"Ascending numbers \" & D141& \" to \" & D141+I144  & \" will be displayed with each choice. Enabling reverse scoring will alter how the data are stored (e.g. \" & D141+I144& \" will be stored as \" & D141 & \"), but will not change the display.\"","v":"Ascending numbers 1 to 10 will be displayed with each choice. Enabling reverse scoring will alter how the data are stored (e.g. 10 will be stored as 1), but will not change the display."},null,null,null,null,null,9]
[]
["end"]
["likert11","xx","Likert 11 end labels",null,null,null,null,null,null,"qtype"]
[null,null,"Variable name:",null,null,null,null,null,null,"vname"]
[]
[null,null,"Question text:","I like web surveys.",null,null,null,null,null,"qtxt"]
[null,null,"Left Label","Strongly Disagree",null,null,null,null,null,"left"]
[null,null,"Right Label","Strongly Agree",null,null,null,null,null,"right"]
[]
[null,null,"Scale starting value",1,null,null,null,null,null,"strt"]
[]
[null,null,"Reverse scoring?","no",null,null,null,null,null,"rvrs",null,null,null,null,null,null,null,null,"no","yes"]
[null,null,{"$f":"\"Ascending numbers \" & D154& \" to \" & D154+I157  & \" will be displayed with each choice. Enabling reverse scoring will alter how the data are stored (e.g. \" & D154+I157& \" will be stored as \" & D154 & \"), but will not change the display.\"","v":"Ascending numbers 1 to 11 will be displayed with each choice. Enabling reverse scoring will alter how the data are stored (e.g. 11 will be stored as 1), but will not change the display."},null,null,null,null,null,10]
[]
["end"]
["instruct","xx","Instruction Paragraph",null,null,null,null,null,null,"qtype"]
[null,null,"Title (optional)","Section 1",null,null,null,null,null,"title"]
[null,null,"Text:","For the following questions…..",null,null,null,null,null,"txt"]
[null,null,null,"instparaplaceholder",null,null,null,null,null,"vname"]
[null,null,"Horizontal line separators","no",null,null,null,null,null,"hr",null,null,null,null,null,null,null,null,"no","yes"]
[]
[null,null,"This allows you to insert additional text between questions. "]
[null,null,"No response will be solicited"]
[]
["end"]
["image","xx","Image",null,null,null,null,null,null,"qtype"]
[null,null,"File name","picture.jpg",null,null,null,null,null,"img"]
[null,null,null,"imgplaceholder",null,null,null,null,null,"vname"]
[null,null,"This allows you to insert an image in your questionnaire. Please specify the complete file name including extension (e.g. 'picture.jpg', not just 'picture').  The image file must be located in the same directory as your web survey in order to be displayed."]
[null,null,"Filenames should not contain spaces and are case-sensitive."]
["end"]
["colorsection","xx","Color Section",null,null,null,null,null,null,"qtype"]
[null,null,null,"Change This Cell Background",null,null,null,null,null,"colorcell"]
[null,null,null,"colorsectionplaceholder",null,null,null,null,null,"vname"]
[null,null,"At this point in your questionnaire, the background color of your website will change.  Use Excel's formatting tools to change the background color of the cell above to choose the new background color. "]
[]
[]
[]
[]
[]
["end"]
["pagebreak","xx","Page Break",null,null,null,null,null,null,"qtype"]
[null,null,null,"A new page will begin at this point in your survey."]
[null,null,null,"pagebreakplaceholder",null,null,null,null,null,"vname"]
[]
[]
["end"]
["image","xx","Embed HTML",null,null,null,null,null,null,"qtype"]
[null,null,"HTML code",null,null,null,null,null,null,"qtxt"]
[null,null,null,"embedHTMLplaceholder",null,null,null,null,null,"vname"]
[null,null,"This allows you to paste or type HTML code, which will be transferred unaltered into your websurvey code. One possible application of this feature is to use the Embed Video code from youtube.com or similar sites."]
[null,null,"Please remember to use the Paste Text from Clipboad button!"]
["end"]
[null,null,"finished"]